{"text_format":"1","workbook":"xlsx","n_sheets":16,"sheets":["Form","Protokol","Ceník","Svépomocí","Výpočty","Settings","Room01","Room02","Room03","Room04","Room05","Room06","Room07","Room08","Room09","Room10"],"not_rendered":{"charts":0,"images":1,"macros":1,"external_links":0,"defined_names":11,"comments":0,"pivot_tables":0},"unopened":[],"bounds":{"document_bytes":16777216,"sheet_cells":100000,"rows_first":2000,"rows_last":500,"rows_between":2000,"halvings":0,"cell_chars":16384,"cell_head_chars":4096},"cells_cut":0,"cells_raw":0,"read":"whole","date_system":"1900"}

{"sheet":"Form","index":0,"n_rows":18,"n_cols":3,"rows_kept":18,"cut":false,"hidden":false,"merged":[[12,2,16,11],[17,2,20,11]]}
[]
[]
[]
[]
[]
[]
[]
[]
[]
[]
[]
[]
[null,null,"Pokud Vám Kalkulačku nelze spustit, je možné, že máte zakázaná makra.\nMakra povolíte, pokud se Vám v horní části obrazovky zobrazil žlutý panel s tlačítkem \"Povolit obsah\", stisknutím tohoto tlačítka. Pokud se Vám panel nezobrazil postupujte podle návodu zde:\n"]
[]
[]
[]
[]
[null,null,"https://support.office.com/cs-cz/article/povolen%C3%AD-nebo-z%C3%A1kaz-maker-v-souborech-office-12b036fd-d140-4e74-b45e-16fed1a7e5c6"]

{"sheet":"Protokol","index":1,"n_rows":46,"n_cols":5,"rows_kept":46,"cut":false,"hidden":false,"merged":[[45,1,49,4],[22,1,22,4],[38,1,43,4],[15,1,15,4],[1,1,1,4],[10,1,10,4],[5,1,5,4],[29,1,29,4]]}
[null,"Položka","Materiál","Práce profi","Svépomocí"]
[null,"Přípravné práce"]
[null,"Zakrytí podlah a oken",{"$f":"Výpočty!L77","v":0},{"$f":"Výpočty!L76","v":0},{"$f":"Výpočty!N76+Výpočty!L77","v":0}]
[null,"Olepování páskou",{"$f":"Výpočty!L80","v":0},{"$f":"Výpočty!L79","v":0},{"$f":"Výpočty!N79+Výpočty!L80","v":0}]
[]
[null,"Demolice stávajícího podkladu"]
[null,"Stržení tapet",0,{"$f":"Výpočty!L23","v":0},{"$f":"Výpočty!N23","v":0}]
[null,"Odsekání obkladu",0,{"$f":"Výpočty!L16","v":0},{"$f":"Výpočty!N16","v":0}]
[null,"Oškrábání malby, rozmývání ",0,{"$f":"Výpočty!L20+Výpočty!L21+Výpočty!L27","v":0},{"$f":"Výpočty!N20+Výpočty!N21+Výpočty!N27","v":0}]
[]
[null,"Vyrovnání povrchu"]
[null,"Nová štuková omítka",{"$f":"Výpočty!L30+Výpočty!L36","v":0},{"$f":"Výpočty!L29+Výpočty!L35","v":0},{"$f":"MAX(Výpočty!N29,Výpočty!N35)+Výpočty!L30+Výpočty!L36","v":0}]
[null,"Vyrovnání povrchu omítkou",{"$f":"Výpočty!L18+Výpočty!L25","v":0},{"$f":"Výpočty!L17+Výpočty!L24","v":0},{"$f":"MAX(Výpočty!N17,Výpočty!N24)+Výpočty!L18+Výpočty!L25","v":0}]
[null,"Vyrovnání povrchu stěrkou",{"$f":"Výpočty!L33+Výpočty!L39","v":0},{"$f":"Výpočty!L32+Výpočty!L38","v":0},{"$f":"MAX(Výpočty!N32,Výpočty!N38)+Výpočty!L33+Výpočty!L39","v":0}]
[]
[null,"Příprava podkladu"]
[null,"Broušení, oprášení",{"$f":"ROUNDUP(Výpočty!L41+Výpočty!L43+Výpočty!L45,0)","v":0},{"$f":"Výpočty!L40+Výpočty!L42+Výpočty!L44","v":0},{"$f":"Výpočty!N40+Výpočty!N42+Výpočty!N44+ROUNDUP(Výpočty!L41+Výpočty!L43+Výpočty!L45,0)","v":0}]
[null,"Ošetření proti plísni",{"$f":"Výpočty!L48","v":0},{"$f":"Výpočty!L47","v":0},{"$f":"Výpočty!N47+Výpočty!L48","v":0}]
[null,"Penetrace povrchu",{"$f":"Výpočty!L51+Výpočty!L53","v":0},{"$f":"Výpočty!L50+Výpočty!L52","v":0},{"$f":"MAX(Výpočty!N50,Výpočty!N52)+Výpočty!L51+Výpočty!L53","v":0}]
[null,"Akrylování detailů",{"$f":"Výpočty!L83","v":0},{"$f":"Výpočty!L82","v":0},{"$f":"Výpočty!N82+Výpočty!L83","v":0}]
[null,"Vyspravení trhlin",{"$f":"75*0.015*(Výpočty!L62+Výpočty!L65+Výpočty!L68+Výpočty!L71)","v":0},{"$f":"200*0.015*(Výpočty!L62+Výpočty!L65+Výpočty!L68+Výpočty!L71)","v":0},{"$f":"IF(C21>0,Svépomocí!B35,0)+75*0.015*(Výpočty!L62+Výpočty!L65+Výpočty!L68+Výpočty!L71)","v":0}]
[]
[null,"Malování"]
[null,"Podkladová tapeta",{"$f":"Výpočty!L57+Výpočty!L60","v":0},{"$f":"Výpočty!L56+Výpočty!L59","v":0},{"$f":"MAX(Výpočty!N56,Výpočty!N59)+Výpočty!L57+Výpočty!L60","v":0}]
[null,"Běžná barva bílá",{"$f":"Výpočty!L64","v":0},{"$f":"Výpočty!L63","v":0},{"$f":"Výpočty!L64","v":0}]
[null,"Běžná barva barevná",{"$f":"Výpočty!L67","v":0},{"$f":"Výpočty!L66","v":0},{"$f":"Výpočty!L67","v":0}]
[null,"Vinylová barva bílá",{"$f":"Výpočty!L70","v":0},{"$f":"Výpočty!L69","v":0},{"$f":"Výpočty!L70","v":0}]
[null,"Vinylová barva barevná",{"$f":"Výpočty!L73","v":0},{"$f":"Výpočty!L72","v":0},{"$f":"Výpočty!L73","v":0}]
[]
[null,"Úklid"]
[null,"Finální úklid",{"$f":"Výpočty!L86","v":0},{"$f":"Výpočty!L85","v":0},{"$f":"Výpočty!N85+Výpočty!L86","v":0}]
[]
[null,"Nářadí a pomůcky nezávislé na konkrétní činnosti (např. štafle)",null,null,{"$f":"Výpočty!L89+MAX(Výpočty!N63,Výpočty!N66,Výpočty!N69,Výpočty!N72)","v":0}]
[]
[null,"Celkem materiál bez DPH",{"$f":"SUM(C3:C31)","v":0}]
[null,"Celkem práce profi s materiálem bez DPH",null,{"$f":"SUM(D3:D31)","v":0}]
[null,"Celkem svépomocí vč. materiálu bez DPH",null,null,{"$f":"SUM(E3:E33)","v":0}]
[]
[null,"Pozn. 1: Položky, u nichž je uvedena cena, jsou práce doporučené k provedení na základě Vašich odpovědí.\nPozn. 2: V ceně svépomocí je započten materiál a koupě potřebných pomůcek, nářadí a náčiní. Hodnotu svého času musíte zvážit sami.\nPozn. 3: Veškeré ceny jsou orientační, ceny se mohou lišit v závislosti na dodavateli, ať již práce či materiálu, na lokalitě, apod."]
[]
[]
[]
[]
[]
[]
[null,{"$f":"IF(OR(Room01!E24>0,Room02!E24>0,Room03!E24>0,Room04!E24>0,Room05!E24>0,Room06!E24>0,Room07!E24>0,Room08!E24>0,Room09!E24>0,Room10!E24>0),Settings!A106,Settings!A112)","v":"   "}]

{"sheet":"Ceník","index":2,"n_rows":106,"n_cols":9,"rows_kept":106,"cut":false,"hidden":true,"merged":[[36,8,37,8],[34,8,35,8],[29,8,31,8],[26,8,28,8],[53,8,56,8],[41,8,43,8],[38,8,40,8],[50,8,52,8],[47,8,49,8],[44,8,46,8],[74,8,75,8],[70,8,72,8],[66,8,68,8],[64,8,65,8],[57,8,59,8],[8,8,9,8],[14,8,16,8],[10,8,11,8],[20,8,22,8],[17,8,19,8]]}
["Položka","Jednotka","J. cena","Materiál","Stroje","Mzdy a režie",null,"Materiál přímý","Svépomocí dokoupit"]
["Lešení pomocné pro objekty pozemních staveb s lešeňovou podlahou v do 1,9 m zatížení do 150 kg/m2","m2",{"$f":"SUM(D2:F2)","v":41.24},14.69,0,26.55,null,"lešení"]
["Lešení pomocné pro objekty pozemních staveb s lešeňovou podlahou v do 3,5 m zatížení do 150 kg/m2","m2",{"$f":"SUM(D3:F3)","v":55.59},23.73,0,31.86,null,"lešení"]
["Zakrytí podlah fólií přilepenou lepící páskou","m2",22.869999999999997,11.54,0,11.33,null,"fólie, páska"]
["Oblepení rámů otvorů a keramických soklů lepící páskou","m",4.26,1.43,0,2.83,null,"páska"]
["Obalení konstrukcí a prvků fólií přilepenou lepící páskou","m2",46,23.34,0,22.66,null,"fólie, páska"]
["Sádrová stěrka tl.do 3 mm vnitřních stěn","m2",115.59,30.46,0,85.13,null,"voda, brusný papír, směs na stěrku"]
["Sádrová stěrka tl.do 3 mm vnitřních rovných stropů","m2",142.85,30.46,0,112.39,null,"voda, brusný papír, směs na stěrku"]
["Potažení vnitřních stěn vápenným štukem tloušťky do 3 mm","m2",102.38000000000001,14.2,0.03,88.15,null,"voda, maltová směs, míchačka",{"$f":"Svépomocí!B27+Svépomocí!B3+Svépomocí!B5","v":410.74380165289256}]
["Potažení vnitřních rovných stropů vápenným štukem tloušťky do 3 mm","m2",129.63999999999999,14.2,0.03,115.41,null,"voda, maltová směs, míchačka"]
["Vyčištění budov bytové a občanské výstavby při výšce podlaží do 4 m","m2",79.06,1.18,0,77.88,null,"voda, mýdlo, jar",{"$f":"Svépomocí!B38+Svépomocí!B39+Svépomocí!B40+Svépomocí!B41","v":247.10743801652893}]
["Vyčištění budov bytové a občanské výstavby při výšce podlaží přes 4 m","m2",90.690000000000012,1.18,0,89.51,null,"voda, mýdlo, jar"]
[null,null,null,null,0]
["Zakrytí vnitřních podlah včetně pozdějšího odkrytí","m2",{"$f":"SUM(D14:F14)","v":11.08},7.09,0,3.99,null,"fólie, páska"]
["Zakrytí vnitřních ploch stěn v místnostech výšky do 3,80 m","m2",12.399999999999999,7.09,0,5.31,null,"fólie, páska",0]
["Zakrytí vnitřních ploch stěn v místnostech výšky do 5,00 m","m2",12.73,7.09,0,5.64,null,"fólie, páska"]
["Zakrytí vnitřních ploch stěn v místnostech výšky přes 5,00 m","m2",13.07,7.09,0,5.98,null,"fólie, páska"]
["Olepování vnitřních ploch páskou v místnostech výšky do 3,80 m","m",9.01,1.37,0,7.64,null,"páska",0]
["Olepování vnitřních ploch páskou v místnostech výšky do 5,00 m","m",9.6700000000000017,1.37,0,8.3000000000000007,null,"páska"]
["Olepování vnitřních ploch páskou v místnostech výšky přes 5,00 m","m",10.34,1.37,0,8.9700000000000006,null,"páska"]
["Oprášení (ometení ) podkladu v místnostech výšky do 3,80 m","m2",3.98,0,0,3.98,null,"-",{"$f":"Svépomocí!B38+Svépomocí!B39","v":143.80165289256198}]
["Oprášení (ometení ) podkladu v místnostech výšky do 5,00 m","m2",4.32,0,0,4.32,null,"-"]
["Oprášení (ometení ) podkladu v místnostech výšky přes 5,00 m","m2",4.6500000000000004,0,0,4.6500000000000004,null,"-"]
["Mydlení podkladu v místnostech výšky do 3,80 m","m2",13.969999999999999,0.68,0,13.29,null,"mýdlo"]
["Mydlení podkladu v místnostech výšky do 5,00 m","m2",{"$f":"SUM(D25:F25)","v":14.64},0.68,0,13.96,null,"mýdlo"]
["Mydlení podkladu v místnostech výšky přes 5,00 m","m2",{"$f":"SUM(D26:F26)","v":15.629999999999999},0.68,0,14.95,null,"mýdlo"]
["Oškrabání malby v mísnostech výšky do 3,80 m","m2",{"$f":"SUM(D27:F27)","v":24.63},0.04,0,24.59,null,"voda",{"$f":"Svépomocí!B13","v":29.75206611570248}]
["Oškrabání malby v mísnostech výšky do 5,00 m","m2",{"$f":"SUM(D28:F28)","v":26.29},0.04,0,26.25,null,"voda"]
["Oškrabání malby v mísnostech výšky přes 5,00 m","m2",28.29,0.04,0,28.25,null,"voda"]
["Rozmývání podkladu po oškrabání malby v místnostech výšky do 3,80 m","m2",{"$f":"SUM(D30:F30)","v":12.4},0.1,0,12.3,null,"voda",{"$f":"Svépomocí!B14","v":114.87603305785125}]
["Rozmývání podkladu po oškrabání malby v místnostech výšky do 5,00 m","m2",13.389999999999999,0.1,0,13.29,null,"voda"]
["Rozmývání podkladu po oškrabání malby v místnostech výšky přes 5,00 m","m2",14.389999999999999,0.1,0,14.29,null,"voda"]
["Odstranění lepených tapet s makulaturou ze stěn výšky do 3,80 m","m2",53.83,0,0,53.83,null,"-",{"$f":"Svépomocí!B13+Svépomocí!B17","v":276.85950413223139}]
["Odstranění lepených tapet s makulaturou ze stropů nebo sloupů výšky do 3,80 m","m2",70.11,0,0,70.11,null,"-"]
["Odsekání a odebrání obkladů stěn z vnitřních obkládaček plochy do 1 m2","m2",121.37,0,0,121.37,null,"-",{"$f":"Svépomocí!B11+Svépomocí!B12","v":378.51239669421489}]
["Odsekání a odebrání obkladů stěn z vnitřních obkládaček plochy přes 1 m2","m2",75.849999999999994,0,0,75.849999999999994,null,"-"]
["Vyrovnání podkladu vnitřních stěn maltou vápenocementovou tl do 10 mm","m2",203.87,76.45,0.53,126.89,null,"voda, malta, míchačka",{"$f":"Svépomocí!B2+Svépomocí!B3+Svépomocí!B9+Svépomocí!B10+Svépomocí!B8","v":399.17355371900828}]
["Vyrovnání podkladu vnitřních stropů maltou vápenocementovou tl do 10 mm","m2",228.76,76.45,0.53,151.78,null,"voda, malta, míchačka"]
["Obroušení podkladu omítnutého v místnostech výšky do 3,80 m","m2",{"$f":"SUM(D39:F39)","v":11.790000000000001},0.16,0,11.63,null,"brusný papír",{"$f":"Svépomocí!B15","v":30}]
["Obroušení podkladu omítnutého v místnostech výšky do 5,00 m","m2",12.46,0.16,0,12.3,null,"brusný papír"]
["Obroušení podkladu omítnutého v místnostech výšky přes 5,00 m","m2",13.45,0.16,0,13.29,null,"brusný papír"]
["Dvojnásobné pačokování v místnostech výšky do 3,80 m","m2",23.55,3.61,0,19.940000000000001,null,"voda, vápno",{"$f":"Svépomocí!B8+Svépomocí!B19","v":111.5702479338843}]
["Dvojnásobné pačokování v místnostech výšky do 5,00 m","m2",24.88,3.61,0,21.27,null,"voda, vápno"]
["Dvojnásobné pačokování v místnostech výšky přes 5,00 m","m2",26.87,3.61,0,23.26,null,"voda, vápno"]
["Celoplošné vyhlazení podkladu sádrovou stěrkou v místnostech výšky do 3,80 m","m2",116.73,79.510000000000005,0,37.22,null,"voda, stěrka",{"$f":"Svépomocí!B8+Svépomocí!B9+Svépomocí!B10+Svépomocí!B7","v":1955.9504132231405}]
["Celoplošné  vyhlazení podkladu sádrovou stěrkou v místnostech výšky do 5,00 m","m2",119.39000000000001,79.510000000000005,0,39.880000000000003,null,"voda, stěrka"]
["Celoplošné vyhlazení podkladu sádrovou stěrkou v místnostech výšky přes 5,00 m","m2",122.38,79.510000000000005,0,42.87,null,"voda, stěrka"]
["Obroušení podkladu ze stěrky v místnostech výšky do 3,80 m","m2",14.360000000000001,0.4,0,13.96,null,"brusný papír",{"$f":"Svépomocí!B15","v":30}]
["Obroušení podkladu ze stěrky v místnostech výšky do 5,00 m","m2",15.35,0.4,0,14.95,null,"brusný papír"]
["Obroušení podkladu ze stěrky v místnostech výšky přes 5,00 m","m2",16.68,0.4,0,16.28,null,"brusný papír"]
["Ošetření plísní napadených ploch včetně odstranění plísní v místnostech výšky do 3,80 m","m2",46.05,8.82,0,37.229999999999997,null,"voda, roztok",0]
["Ošetření plísní napadených ploch včetně odstranění plísní v místnostech výšky do 5,00 m","m2",48.57,8.82,0,39.75,null,"voda, roztok"]
["Ošetření plísní napadených ploch včetně odstranění plísní v místnostech výšky přes 5,00 m","m2",51.59,8.82,0,42.77,null,"voda, roztok"]
["SDK základní penetrační nátěr","m2",24.6,9.77,0,14.83,null,"penetrační nátěr",{"$f":"Svépomocí!B26","v":81.818181818181827}]
["Hloubková jednonásobná penetrace podkladu v místnostech výšky do 3,80 m","m2",20.03,9.06,0,10.97,null,"voda, penetrace"]
["Hloubková jednonásobná penetrace podkladu v místnostech výšky do 5,00 m","m2",20.69,9.06,0,11.63,null,"voda, penetrace"]
["Hloubková jednonásobná penetrace podkladu v místnostech výšky přes 5,00 m","m2",21.69,9.06,0,12.63,null,"voda, penetrace"]
["Tmelení spar a rohů šířky do 3 mm akrylátovým tmelem v místnostech výšky do 3,80 m","m",15.93,1.64,0,14.29,null,"tmel akrylátový",{"$f":"Svépomocí!B33+Svépomocí!B34","v":115.70247933884298}]
["Tmelení spar a rohů šířky do 3 mm akrylátovým tmelem v místnostech výšky do 5,00 m","m",16.93,1.64,0,15.29,null,"tmel akrylátový"]
["Tmelení spar a rohů šířky do 3 mm akrylátovým tmelem v místnostech výšky přes 5,00 m","m",18.260000000000002,1.64,0,16.62,null,"tmel akrylátový"]
["Lepení papírových hladkých tapet na stěny výšky do 3,00 m","m2",170.68,52.28,0,118.4,null,"lepidlo, tapeta"]
["Lepení papírových vzorovaných tapet na stěny výšky do 3,00 m","m2",298.72000000000003,168.48,0,130.24,null,"lepidlo, tapeta",{"$f":"Svépomocí!B20+Svépomocí!B8+Svépomocí!B16+Svépomocí!B27+Svépomocí!B18","v":1130.909090909091}]
["Lepení vinylových hladkých tapet na stěny výšky do 3,00 m","m2",245.98000000000002,81.8,0,164.18,null,"lepidlo, tapeta"]
["Lepení vinylových vzorovaných tapet na stěny výšky do 3,00 m","m2",428.63,231.3,0,197.33,null,"lepidlo, tapeta"]
["Příplatek k cenám lepení tapet za provádění ve výšce přes 3,0 m","m2",50.12,0,0,50.12,null,"-",0]
["Příplatek k cenám lepení tapet za provádění stropů nebo sloupů","m2",77.75,0,0,77.75,null,"-"]
["Dvojnásobné bílé malby  ze směsí za sucha dobře otěruvzdorných v místnostech do 3,80 m","m2",33.08,11.81,0,21.27,null,"malba primalex polar",{"$f":"Svépomocí!B22+Svépomocí!B24+Svépomocí!B26+Svépomocí!B29+Svépomocí!B30+Svépomocí!B31+Svépomocí!B32","v":496.69421487603307}]
["Dvojnásobné bílé malby  ze směsí za sucha dobře otěruvzdorných v místnostech do 5,00 m","m2",34.410000000000004,11.81,0,22.6,null,"malba primalex polar"]
["Dvojnásobné bílé malby  ze směsí za sucha dobře otěruvzdorných v místnostech přes 5,00 m","m2",36.4,11.81,0,24.59,null,"malba primalex polar"]
["Příplatek k cenám 2x maleb za sucha otěruvzdorných za barevnou malbu tónovanou tónovacími přípravky","m2",3.61,3.61,0,0,null,"pigment",0]
["Dvojnásobné bílé malby ze směsí za mokra výborně otěruvzdorných v místnostech výšky do 3,80 m","m2",62.680000000000007,28.12,0,34.56,null,"malba omyvatelná",{"$f":"Svépomocí!B22+Svépomocí!B24+Svépomocí!B26+Svépomocí!B29+Svépomocí!B30+Svépomocí!B31+Svépomocí!B32","v":496.69421487603307}]
["Dvojnásobné bílé malby ze směsí za mokra výborně otěruvzdorných v místnostech výšky do 5,00 m","m2",65.010000000000005,28.12,0,36.89,null,"malba omyvatelná"]
["Dvojnásobné bílé malby ze směsí za mokra výborně otěruvzdorných v místnostech výšky přes 5,00 m","m2",67.67,28.12,0,39.549999999999997,null,"malba omyvatelná"]
["Příplatek k cenám 2x  maleb ze směsí za mokra otěruvzdorných za barevnou malbu tónovanou přípravky","m2",8.43,8.43,0,0,null,"pigment",0]
["Čištění vnitřních ploch podlah po provedení malířských prací","m2",2.19,0.53,0,1.66,null,"voda, jar",{"$f":"I11","v":247.10743801652893}]
["Čištění vnitřních ploch oken nebo balkonových dveří jednoduchých po provedení malířských prací","m2",8.6,0.62,0,7.98,null,"voda, jar, iron"]
["Čištění vnitřních ploch dveří nebo vrat po provedení malířských prací","m2",11.84,0.54,0,11.3,null,"voda, jar, iron"]
[]
["Omytí podkladu v místnostech výšky do 3,80 m","m2",{"$f":"SUM(D79:F79)","v":27.98},0.06,0,27.92,null,"voda"]
["Omytí podkladu v místnostech výšky do 5,00 m","m2",29.97,0.06,0,29.91,null,"voda"]
["Omytí podkladu v místnostech výšky přes 5,00 m","m2",32.300000000000004,0.06,0,32.24,null,"voda"]
["Základní akrylátová jednonásobná penetrace podkladu v místnostech výšky do 3,80m","m2",13,2.0299999999999998,0,10.97,null,"voda, penetrace akrylátová"]
["Základní akrylátová jednonásobná penetrace podkladu v místnostech výšky do 5,00m","m2",13.66,2.0299999999999998,0,11.63,null,"voda, penetrace akrylátová"]
["Základní akrylátová jednonásobná penetrace podkladu v místnostech výšky přes 5,00 m","m2",14.66,2.0299999999999998,0,12.63,null,"voda, penetrace akrylátová"]
["Základní silikátová jednonásobná penetrace podkladu v místnostech výšky do 3,80m","m2",18.43,7.46,0,10.97,null,"voda, penetrace silikátová"]
["Základní silikátová jednonásobná penetrace podkladu v místnostech výšky do 5,00m","m2",19.09,7.46,0,11.63,null,"voda, penetrace silikátová"]
["Základní silikátová jednonásobná penetrace podkladu v místnostech výšky přes 5,00 m","m2",20.09,7.46,0,12.63,null,"voda, penetrace silikátová"]
["Dvojnásobné  bílé malby ze směsí za mokra velmi dobře otěruvzdorných v místnostech výšky do 3,80 m","m2",53.13,19.57,0,33.56,null,"malba vinylová"]
["Dvojnásobné  bílé malby ze směsí za mokra velmi dobře otěruvzdorných v místnostech výšky do 5,00 m","m2",55.79,19.57,0,36.22,null,"malba vinylová"]
["Dvojnásobné  bílé malby ze směsí za mokra velmi dobře otěruvzdorných v místnostech výšky přes 5,00 m","m2",58.45,19.57,0,38.880000000000003,null,"malba vinylová"]
["Dvojnásobné bílé malby ze směsí za mokra středně otěruvzdorných v místnostech výšky do 3,80 m","m2",47.589999999999996,14.69,0,32.9,null,"malba"]
["Dvojnásobné bílé malby ze směsí za mokra středně otěruvzdorných v místnostech výšky do 5,00 m","m2",49.58,14.69,0,34.89,null,"malba"]
["Dvojnásobné bílé malby ze směsí za mokra středně otěruvzdorných v místnostech výšky přes 5,00 m","m2",52.91,14.69,0,38.22,null,"malba"]
["Dvojnásobné bílé malby ze směsí za mokra minimálně otěruvzdorných v místnostech do 3,80 m","m2",42.15,9.58,0,32.57,null,"malba paropropustná"]
["Dvojnásobné bílé malby ze směsí za mokra minimálně otěruvzdorných v místnostech do 5,00 m","m2",44.14,9.58,0,34.56,null,"malba paropropustná"]
["Dvojnásobné bílé malby ze směsí za mokra minimálně otěruvzdorných v místnostech přes 5,00 m","m2",46.47,9.58,0,36.89,null,"malba paropropustná"]
["Dvojnásobné bílé malby  ze směsí za sucha minimálně otěruvzdorných v místnostech do 3,80 m","m2",23.46,3.52,0,19.940000000000001,null,"malba primalex standard"]
["Dvojnásobné bílé malby  ze směsí za sucha mimálně otěruvzdorných v místnostech do 5,00 m","m2",24.79,3.52,0,21.27,null,"malba primalex standard"]
["Dvojnásobné bílé malby  ze směsí za sucha minimálně otěruvzdorných v místnostech přes 5,00 m","m2",26.78,3.52,0,23.26,null,"malba primalex standard"]
["Dvojnásobné bílé klihové malby v místnostech výšky do 3,80 m","m2",23.03,5.08,0,17.95,null,"malba hlinková"]
["Dvojnásobné bílé klihové malby v místnostech výšky do 5,00 m","m2",24.689999999999998,5.08,0,19.61,null,"malba hlinková"]
["Dvojnásobné bílé klihové malby v místnostech výšky přes 5,00 m","m2",25.68,5.08,0,20.6,null,"malba hlinková"]
["Dvojnásobné bílé protiplísňové malby v místnostech výšky do 3,80 m","m2",{"$f":"SUM(D103:F103)","v":45.65},10.76,0,34.89,null,"malba protiplísňová"]
["Dvojnásobné bílé protiplísňové malby v místnostech výšky do 5,00 m","m2",{"$f":"SUM(D104:F104)","v":48.309999999999995},10.76,0,37.549999999999997,null,"malba protiplísňová"]
["Dvojnásobné bílé protiplísňové malby v místnostech výšky přes 5,00 m","m2",{"$f":"SUM(D105:F105)","v":50.97},10.76,0,40.21,null,"malba protiplísňová"]
["Příplatek k cenám protiplísňových maleb za barevné malby tónované tónovacími prostředky","m2",{"$f":"SUM(D106:F106)","v":6.62},6.62,0,0,null,"pigment"]

{"sheet":"Svépomocí","index":3,"n_rows":45,"n_cols":4,"rows_kept":45,"cut":false,"hidden":true,"merged":[]}
["Položka","Cena / (ks/sada/jednotka) Kč bez DPH",null,"zdroj/e"]
["dřevěná lať",23.966942148760332]
["ocelové hladítko 480*130mm rovný okraj",189.25619834710744,null,"https://www.promistry.cz/rovna-hladitka/hladitko-480-x-130-mm-rovne/"]
["ocelové hladítko se zubem 270*130mm",98.347107438016536,null,"https://www.promistry.cz/zubata-hladitka-na-lepidlo/hladitko-nerezove-130x270mm-zub-8x8/"]
["plstěné hladítko 280 mm x 140 mm ",139.6694214876033,null,"https://www.obi.cz/zednicke-a-obkladacske-naradi-pokladka-podlah/lux-plstene-hladitko-280-mm-x-140-mm-classic/p/1491943"]
["dřevěné hladítko",147.93388429752068,null,"https://www.obi.cz/zednicke-a-obkladacske-naradi-pokladka-podlah/hladitko-drevene-400-x-140-mm/p/4457453"]
["špachtle pro celoplošné tmelení",1770,null,"https://www.izomat.cz/naradi-1/stavebni-a-malirske-potreby-pasky-uklid/lzice-naberacky-a-spachtle/spachtle-pro-celoplosne-tmeleni-60cm.html?gclid=Cj0KCQjw8svsBRDqARIsAHKVyqEyXnNlUedp2GWjCVS2TGt3_Hz0qWA2EIZnm96cFILqDDaXlTAhhQIaAueHEALw_wcB"]
["kýbl na maltu, …",{"$f":"70/1.21","v":57.851239669421489}]
["fanka s rukojetí 215mm",78.512396694214885,null,"https://www.hornbach.cz/shop/Fanka-s-rukojeti-215-mm/7671450/artikl.html"]
["zednická lžíce",{"$f":"60/1.21","v":49.586776859504134}]
["kladívko zednické ",247.10743801652893,null,"https://www.hornbach.cz/shop/Zednicke-kladivo-600g-2K-VPA/8396629/artikl.html?wt_mc=cz.paid.sea.google.alwayson_assortment..zzpla_produkty.697666290.36620686493.&wt_cc1=697666290&wt_cc2=36620686493&wt_cc3=162909013127&wt_cc4=&wt_cc6=8396629&wt_cc7=&gclid=EAIaIQobChMI7eifxNP75AIVSeJ3Ch0TMQGQEAQYBSABEgJ7efD_BwE \nhttps://www.obi.cz/sekery-a-kladiva/lux-kladivo-500-g-comfort/p/1324391"]
["majzlík plochý 100mm",131.40495867768595,null,"https://www.obi.cz/pacidla-a-sekace/lux-sekac-na-dlazdice-plochy-100-mm-comfort/p/5408232"]
["škrabka malířská",29.75206611570248,null,"https://www.hornbach.cz/shop/Malirska-skrabka-YORK-PH-100mm/5231158/artikl.html?wt_mc=cz.paid.sea.google.alwayson_assortment..zzpla_produkty.697666290.37319430152.&wt_cc1=697666290&wt_cc2=37319430152&wt_cc3=162904367431&wt_cc4=&wt_cc6=5231158&wt_cc7=&gclid=EAIaIQobChMIm6HyztD75AIVzeR3Ch1zcgluEAQYASABEgKHS_D_BwE"]
["houba syntetická jemná 165x 110x 60mm",114.87603305785125,null,"https://www.hornbach.cz/shop/Houba-synteticka-jemna-165x-110x-60mm/7417604/artikl.html"]
["houba brusná",30]
["řezací hrana",140,null,"https://tapety-samolepky.cz/Mako/hrana-rezaci?limit=25"]
["tapetovací ostnatý válec 15 cm",{"$f":"299/1.21","v":247.10743801652893},null,"https://www.obi.cz/odstranovace-tapet-a-podkladove-natery-pod-tapety/lux-tapetovaci-ostnaty-valec-15-cm/p/2200244"]
["vodováha 1,2 m",{"$f":"949/1.21","v":784.29752066115702},null,"https://www.hornbach.cz/shop/Elektrikarska-vodovaha-Stabila-16136-typ-70-delka-120-cm/7073002/artikl.html"]
["štětka zednická/malířská kulatá průměr 100mm",53.719008264462815,null,"https://www.hornbach.cz/shop/Stetka-zednicka-C3015/4208600/artikl.html"]
["štětka malířská hranatá 636 170 x 75 mm",66.942148760330582,null,"https://www.hornbach.cz/shop/Stetka-malirska-Spokar-hranata-6106-636-170-x-75-mm/4208597/artikl.html"]
["štetec malířský plochý 60mm",37.190082644628099,null,"https://www.obi.cz/stetce/spokar-stetec-plochy-81215-2-5-/p/5263454"]
["štětec malířský plochý 100mm",53.719008264462815,null,"https://malirske-naradi-doplnky.heureka.cz/stetec-natiraci-plochy-100mm-zltop-72348/#"]
["štětec plochý zárohák 1''  (š. 25mm)",37.190082644628099,null,"https://www.hornbach.cz/shop/Stetec-plochy-zarohak-Profi-1-Spokar/4289910/artikl.html"]
["štětec plochý zárohák 3''  (š. 75mm)",81.818181818181827,null,"https://www.hornbach.cz/shop/Stetec-zarohak-3-EVO-PROFI/6749710/artikl.html"]
["váleček mikroplyš šířka 18cm",61.983471074380169,null,"https://www.obi.cz/valecky-na-barvu/valecek-vestan-s-drzakem-18-cm/p/1879105"]
["váleček mikroplyš šířka 25cm",81.818181818181827,null,"odhad"]
["váleček pěnový 15cm",81.818181818181827,null,"https://www.obi.cz/valecky-na-barvu/lux-penovy-valecek-15-cm/p/1489012"]
["váleček pěnový 10cm",40.495867768595041,null,"https://www.obi.cz/valecky-na-barvu/lux-penovy-valecek-10-cm-1k/p/4379756"]
["teleskopická tyč na malování, L=200cm",95.041322314049594,null,"https://www.hornbach.cz/shop/Tyc-prodluzovaci-teleskopicka-2m-ocelova/4200201/artikl.html"]
["nádoba na mřížku na malování",28.925619834710744,null,"https://www.hornbach.cz/shop/Vanicka-na-barvu-26x-32cm-plast/3885366/artikl.html"]
["mřížka stírání barvy 270*290mm",15.702479338842975,null,"https://www.hornbach.cz/shop/Mrizka-stiraci-27x-29cm-plast/8470439/artikl.html"]
["malířský kbelík obdélníkový, 14l",139.6694214876033,null,"https://www.googleadservices.com/pagead/aclk?sa=L&ai=DChcSEwif0Zee3fvkAhWDQ9MKHWZwA5AYABAIGgJ3Yg&ohost=www.google.com&cid=CAASE-RoDWIVhPaS6Ry_sQZxaAjvslw&sig=AOD64_2c_475G6We-FEVhK-1tNR1zFnXNA&ctype=5&rct=j&q=&ved=0ahUKEwiwhJCe3fvkAhVTr3EKHbR-BnUQ9aACCEM&adurl="]
["vytlačovací pistole na kartuše",78.512396694214885,null,"https://www.hornbach.cz/shop/Strip-ROXOLID-Vytlacovaci-pistol-skelet/6153143/artikl.html"]
["stěrka gumová 180mm na hlazení spár",37.190082644628099,null,"https://www.hornbach.cz/shop/Sterka-gumova-180mm-drevene-drzadlo/7417649/artikl.html"]
["malířská špachtle(škrabka) 40/60/80 mm",32.231404958677686,null,"https://www.hornbach.cz/shop/Malirska-spachtle-sada-40-60-a-80-mm/3840067/artikl.html"]
["sádrový tmel 500ml",90.082644628099175,null,"https://www.hornbach.cz/shop/Sadrovy-tmel-DEN-BRAVEN-Qualy-Fill-lehceny-500-ml/4214009/artikl.html"]
["šlehaný tmel 500ml",114.87603305785125,null,"https://www.hornbach.cz/shop/Slehany-lehceny-tmel-Het-500-ml/7970326/artikl.html"]
["smetáček a lopatka",40.495867768595041,null,"https://www.hornbach.cz/shop/SMetacek-a-lopatka-Spontex/10012926/artikl.html"]
["smeták s holí 120 cm",103.30578512396694,null,"https://www.hornbach.cz/shop/Smetak-s-holi-120-cm/7600556/artikl.html"]
["odpadkové pytle 60l",49.586776859504134,null,"https://www.eva.cz/zbozi/DRO46841/pytle-na-odpad-fino-eko-natura-60l-20ks-vazaci-rozlozitelne/"]
["kbelík s výlevkou 15l",53.719008264462815,null,"https://www.eva.cz/zbozi/DOP16028/kbelik-s-vylevkou-15-l/"]
["dřevěné štafle na práci do 3,05m (LŠ 166,5+ PRV140)",1090.0826446280992,null,"https://www.zahrada-domacnost.cz/stafle-drevene-5-pricek"]
["dřevěné štafle na práci do 4,565m (LŠ 316,5+ PRV140)",2197.5206611570247,null,"https://www.zahrada-domacnost.cz/stafle-drevene-10-pricek"]
["míchadlo lepidel a malty a barev",1652.0661157024795,null,"https://www.hornbach.cz/shop/Michadlo-lepidel-a-malty-Einhell-TC-MX-1400-2-E/6013411/artikl.html"]
["hřídel se spirálou - míchací na barvu/lepidlo 10kg",180.9917355371901,null,"https://www.hornbach.cz/shop/Michadlo-na-smesi-spirala-140-x-590-x-10-mm/5908367/artikl.html"]

{"sheet":"Výpočty","index":4,"n_rows":93,"n_cols":14,"rows_kept":93,"cut":false,"hidden":true,"merged":[]}
["Parametr/ č.místnosti","01","02","03","04","05","06","07","08","09",10,"Celkem",null,"Svépomocí"]
["Plocha stěn [m2] (nebude přeci jen lepší obvod???)",{"$f":"Room01!F10","v":0},{"$f":"Room02!F10","v":0},{"$f":"Room03!F10","v":0},{"$f":"Room04!F10","v":0},{"$f":"Room05!F10","v":0},{"$f":"Room06!F10","v":0},{"$f":"Room07!F10","v":0},{"$f":"Room08!F10","v":0},{"$f":"Room09!F10","v":0},{"$f":"Room10!F10","v":0},{"$f":"SUM(B2:K2)","v":0}]
["Plocha [m2]",{"$f":"Room01!F11","v":0},{"$f":"Room02!F11","v":0},{"$f":"Room03!F11","v":0},{"$f":"Room04!F11","v":0},{"$f":"Room05!F11","v":0},{"$f":"Room06!F11","v":0},{"$f":"Room07!F11","v":0},{"$f":"Room08!F11","v":0},{"$f":"Room09!F11","v":0},{"$f":"Room10!F11","v":0},{"$f":"SUM(B3:K3)","v":0}]
["Plocha otvorů [m2]",{"$f":"Room01!F12","v":0},{"$f":"Room02!F12","v":0},{"$f":"Room03!F12","v":0},{"$f":"Room04!F12","v":0},{"$f":"Room05!F12","v":0},{"$f":"Room06!F12","v":0},{"$f":"Room07!F12","v":0},{"$f":"Room08!F12","v":0},{"$f":"Room09!F12","v":0},{"$f":"Room10!F12","v":0},0]
["Výška místnosti [m]",{"$f":"Room01!F13","v":0},{"$f":"Room02!F13","v":0},{"$f":"Room03!F13","v":0},{"$f":"Room04!F13","v":0},{"$f":"Room05!F13","v":0},{"$f":"Room06!F13","v":0},{"$f":"Room07!F13","v":0},{"$f":"Room08!F13","v":0},{"$f":"Room09!F13","v":0},{"$f":"Room10!F13","v":0}]
["Obvod místnosti [m]",{"$f":"IF(B5=0,0,B2/B5)","v":0},{"$f":"IF(C5=0,0,C2/C5)","v":0},{"$f":"IF(D5=0,0,D2/D5)","v":0},0,0,0,0,0,0,0,0]
[]
[]
["keramický obklad",{"$f":"Room01!E19","v":0},{"$f":"Room02!E19","v":0},{"$f":"Room03!E19","v":0},{"$f":"Room04!E19","v":0},{"$f":"Room05!E19","v":0},{"$f":"Room06!E19","v":0},{"$f":"Room07!E19","v":0},{"$f":"Room08!E19","v":0},{"$f":"Room09!E19","v":0},{"$f":"Room10!E19","v":0},0]
["stará malba",{"$f":"Room01!E20","v":0},{"$f":"Room02!E20","v":0},{"$f":"Room03!E20","v":0},{"$f":"Room04!E20","v":0},{"$f":"Room05!E20","v":0},{"$f":"Room06!E20","v":0},{"$f":"Room07!E20","v":0},{"$f":"Room08!E20","v":0},{"$f":"Room09!E20","v":0},{"$f":"Room10!E20","v":0},0]
["tapety",{"$f":"Room01!E21","v":0},{"$f":"Room02!E21","v":0},{"$f":"Room03!E21","v":0},{"$f":"Room04!E21","v":0},{"$f":"Room05!E21","v":0},{"$f":"Room06!E21","v":0},{"$f":"Room07!E21","v":0},{"$f":"Room08!E21","v":0},{"$f":"Room09!E21","v":0},{"$f":"Room10!E21","v":0},0]
["nová omítka",{"$f":"Room01!E22","v":0},{"$f":"Room02!E22","v":0},{"$f":"Room03!E22","v":0},{"$f":"Room04!E22","v":0},{"$f":"Room05!E22","v":0},{"$f":"Room06!E22","v":0},{"$f":"Room07!E22","v":0},{"$f":"Room08!E22","v":0},{"$f":"Room09!E22","v":0},{"$f":"Room10!E22","v":0},0]
["SDK deska",{"$f":"Room01!E23","v":0},{"$f":"Room02!E23","v":0},{"$f":"Room03!E23","v":0},{"$f":"Room04!E23","v":0},{"$f":"Room05!E23","v":0},{"$f":"Room06!E23","v":0},{"$f":"Room07!E23","v":0},{"$f":"Room08!E23","v":0},{"$f":"Room09!E23","v":0},{"$f":"Room10!E23","v":0},{"$f":"SUM(B13:K13)","v":0}]
["hrubá konstrukce",{"$f":"Room01!E24","v":0},{"$f":"Room02!E24","v":0},{"$f":"Room03!E24","v":0},{"$f":"Room04!E24","v":0},{"$f":"Room05!E24","v":0},{"$f":"Room06!E24","v":0},{"$f":"Room07!E24","v":0},{"$f":"Room08!E24","v":0},{"$f":"Room09!E24","v":0},{"$f":"Room10!E24","v":0},0]
[]
["Odsekání obkladu",{"$f":"IF(B9<1,Ceník!$C$35,Ceník!$C$36)*B9","v":0},{"$f":"IF(C9<1,Ceník!$C$35,Ceník!$C$36)*C9","v":0},{"$f":"IF(D9<1,Ceník!$C$35,Ceník!$C$36)*D9","v":0},{"$f":"IF(E9<1,Ceník!$C$35,Ceník!$C$36)*E9","v":0},{"$f":"IF(F9<1,Ceník!$C$35,Ceník!$C$36)*F9","v":0},{"$f":"IF(G9<1,Ceník!$C$35,Ceník!$C$36)*G9","v":0},{"$f":"IF(H9<1,Ceník!$C$35,Ceník!$C$36)*H9","v":0},{"$f":"IF(I9<1,Ceník!$C$35,Ceník!$C$36)*I9","v":0},{"$f":"IF(J9<1,Ceník!$C$35,Ceník!$C$36)*J9","v":0},{"$f":"IF(K9<1,Ceník!$C$35,Ceník!$C$36)*K9","v":0},{"$f":"SUM(B16:K16)","v":0},null,{"$f":"IF(L16>0,Ceník!I35,0)","v":0}]
["vyrovnání podkladu omítkou pod obkladem",{"$f":"B$9*(Ceník!$C$37+IF(B$5<3.8,Ceník!$C$42,IF(B$5<5,Ceník!$C$43,IF(B$5>5,Ceník!$C$44))))","v":0},{"$f":"C$9*(Ceník!$C$37+IF(C$5<3.8,Ceník!$C$42,IF(C$5<5,Ceník!$C$43,IF(C$5>5,Ceník!$C$44))))","v":0},{"$f":"D$9*(Ceník!$C$37+IF(D$5<3.8,Ceník!$C$42,IF(D$5<5,Ceník!$C$43,IF(D$5>5,Ceník!$C$44))))","v":0},{"$f":"E$9*(Ceník!$C$37+IF(E$5<3.8,Ceník!$C$42,IF(E$5<5,Ceník!$C$43,IF(E$5>5,Ceník!$C$44))))","v":0},{"$f":"F$9*(Ceník!$C$37+IF(F$5<3.8,Ceník!$C$42,IF(F$5<5,Ceník!$C$43,IF(F$5>5,Ceník!$C$44))))","v":0},{"$f":"G$9*(Ceník!$C$37+IF(G$5<3.8,Ceník!$C$42,IF(G$5<5,Ceník!$C$43,IF(G$5>5,Ceník!$C$44))))","v":0},{"$f":"H$9*(Ceník!$C$37+IF(H$5<3.8,Ceník!$C$42,IF(H$5<5,Ceník!$C$43,IF(H$5>5,Ceník!$C$44))))","v":0},{"$f":"I$9*(Ceník!$C$37+IF(I$5<3.8,Ceník!$C$42,IF(I$5<5,Ceník!$C$43,IF(I$5>5,Ceník!$C$44))))","v":0},{"$f":"J$9*(Ceník!$C$37+IF(J$5<3.8,Ceník!$C$42,IF(J$5<5,Ceník!$C$43,IF(J$5>5,Ceník!$C$44))))","v":0},{"$f":"K$9*(Ceník!$C$37+IF(K$5<3.8,Ceník!$C$42,IF(K$5<5,Ceník!$C$43,IF(K$5>5,Ceník!$C$44))))","v":0},0,null,{"$f":"IF(L17>0,Ceník!I42,0)","v":0}]
["materiál",{"$f":"B$9*(Ceník!$D$37+IF(B$5<3.8,Ceník!$D$42,IF(B$5<5,Ceník!$D$43,IF(B$5>5,Ceník!$D$44))))","v":0},{"$f":"C$9*(Ceník!$D$37+IF(C$5<3.8,Ceník!$D$42,IF(C$5<5,Ceník!$D$43,IF(C$5>5,Ceník!$D$44))))","v":0},{"$f":"D$9*(Ceník!$D$37+IF(D$5<3.8,Ceník!$D$42,IF(D$5<5,Ceník!$D$43,IF(D$5>5,Ceník!$D$44))))","v":0},{"$f":"E$9*(Ceník!$D$37+IF(E$5<3.8,Ceník!$D$42,IF(E$5<5,Ceník!$D$43,IF(E$5>5,Ceník!$D$44))))","v":0},{"$f":"F$9*(Ceník!$D$37+IF(F$5<3.8,Ceník!$D$42,IF(F$5<5,Ceník!$D$43,IF(F$5>5,Ceník!$D$44))))","v":0},{"$f":"G$9*(Ceník!$D$37+IF(G$5<3.8,Ceník!$D$42,IF(G$5<5,Ceník!$D$43,IF(G$5>5,Ceník!$D$44))))","v":0},{"$f":"H$9*(Ceník!$D$37+IF(H$5<3.8,Ceník!$D$42,IF(H$5<5,Ceník!$D$43,IF(H$5>5,Ceník!$D$44))))","v":0},{"$f":"I$9*(Ceník!$D$37+IF(I$5<3.8,Ceník!$D$42,IF(I$5<5,Ceník!$D$43,IF(I$5>5,Ceník!$D$44))))","v":0},{"$f":"J$9*(Ceník!$D$37+IF(J$5<3.8,Ceník!$D$42,IF(J$5<5,Ceník!$D$43,IF(J$5>5,Ceník!$D$44))))","v":0},{"$f":"K$9*(Ceník!$D$37+IF(K$5<3.8,Ceník!$D$42,IF(K$5<5,Ceník!$D$43,IF(K$5>5,Ceník!$D$44))))","v":0},0]
["malba oškrábat",{"$f":"IF(OR(Room01!A27=TRUE,Room01!B30=TRUE,Room01!C34=TRUE,Room01!D38=TRUE,Room01!D39=TRUE,Room01!D40=TRUE),Výpočty!B10,0)","v":0},{"$f":"IF(OR(Room02!A27=TRUE,Room02!B30=TRUE,Room02!C34=TRUE,Room02!D38=TRUE,Room02!D39=TRUE,Room02!D40=TRUE),Výpočty!C10,0)","v":0},{"$f":"IF(OR(Room03!A27=TRUE,Room03!B30=TRUE,Room03!C34=TRUE,Room03!D38=TRUE,Room03!D39=TRUE,Room03!D40=TRUE),Výpočty!D10,0)","v":0},{"$f":"IF(OR(Room04!A27=TRUE,Room04!B30=TRUE,Room04!C34=TRUE,Room04!D38=TRUE,Room04!D39=TRUE,Room04!D40=TRUE),Výpočty!E10,0)","v":0},{"$f":"IF(OR(Room05!A27=TRUE,Room05!B30=TRUE,Room05!C34=TRUE,Room05!D38=TRUE,Room05!D39=TRUE,Room05!D40=TRUE),Výpočty!F10,0)","v":0},{"$f":"IF(OR(Room06!A27=TRUE,Room06!B30=TRUE,Room06!C34=TRUE,Room06!D38=TRUE,Room06!D39=TRUE,Room06!D40=TRUE),Výpočty!G10,0)","v":0},{"$f":"IF(OR(Room07!A27=TRUE,Room07!B30=TRUE,Room07!C34=TRUE,Room07!D38=TRUE,Room07!D39=TRUE,Room07!D40=TRUE),Výpočty!H10,0)","v":0},{"$f":"IF(OR(Room08!A27=TRUE,Room08!B30=TRUE,Room08!C34=TRUE,Room08!D38=TRUE,Room08!D39=TRUE,Room08!D40=TRUE),Výpočty!I10,0)","v":0},{"$f":"IF(OR(Room09!A27=TRUE,Room09!B30=TRUE,Room09!C34=TRUE,Room09!D38=TRUE,Room09!D39=TRUE,Room09!D40=TRUE),Výpočty!J10,0)","v":0},{"$f":"IF(OR(Room10!A27=TRUE,Room10!B30=TRUE,Room10!C34=TRUE,Room10!D38=TRUE,Room10!D39=TRUE,Room10!D40=TRUE),Výpočty!K10,0)","v":0},0]
[null,{"$f":"IF(B$5<3.8,Ceník!$C$27,IF(B$5<5,Ceník!$C$28,IF(B$5>5,Ceník!$C$29)))*B19","v":0},{"$f":"IF(C$5<3.8,Ceník!$C$27,IF(C$5<5,Ceník!$C$28,IF(C$5>5,Ceník!$C$29)))*C19","v":0},{"$f":"IF(D$5<3.8,Ceník!$C$27,IF(D$5<5,Ceník!$C$28,IF(D$5>5,Ceník!$C$29)))*D19","v":0},{"$f":"IF(E$5<3.8,Ceník!$C$27,IF(E$5<5,Ceník!$C$28,IF(E$5>5,Ceník!$C$29)))*E19","v":0},{"$f":"IF(F$5<3.8,Ceník!$C$27,IF(F$5<5,Ceník!$C$28,IF(F$5>5,Ceník!$C$29)))*F19","v":0},{"$f":"IF(G$5<3.8,Ceník!$C$27,IF(G$5<5,Ceník!$C$28,IF(G$5>5,Ceník!$C$29)))*G19","v":0},{"$f":"IF(H$5<3.8,Ceník!$C$27,IF(H$5<5,Ceník!$C$28,IF(H$5>5,Ceník!$C$29)))*H19","v":0},{"$f":"IF(I$5<3.8,Ceník!$C$27,IF(I$5<5,Ceník!$C$28,IF(I$5>5,Ceník!$C$29)))*I19","v":0},{"$f":"IF(J$5<3.8,Ceník!$C$27,IF(J$5<5,Ceník!$C$28,IF(J$5>5,Ceník!$C$29)))*J19","v":0},{"$f":"IF(K$5<3.8,Ceník!$C$27,IF(K$5<5,Ceník!$C$28,IF(K$5>5,Ceník!$C$29)))*K19","v":0},{"$f":"SUM(B20:K20)","v":0},null,{"$f":"IF(L20>0,Ceník!I27,0)","v":0}]
["rozmývání",{"$f":"IF(B$5<3.8,Ceník!$C$30,IF(B$5<5,Ceník!$C$31,IF(B$5>5,Ceník!$C$32)))*B19","v":0},{"$f":"IF(C$5<3.8,Ceník!$C$30,IF(C$5<5,Ceník!$C$31,IF(C$5>5,Ceník!$C$32)))*C19","v":0},{"$f":"IF(D$5<3.8,Ceník!$C$30,IF(D$5<5,Ceník!$C$31,IF(D$5>5,Ceník!$C$32)))*D19","v":0},{"$f":"IF(E$5<3.8,Ceník!$C$30,IF(E$5<5,Ceník!$C$31,IF(E$5>5,Ceník!$C$32)))*E19","v":0},{"$f":"IF(F$5<3.8,Ceník!$C$30,IF(F$5<5,Ceník!$C$31,IF(F$5>5,Ceník!$C$32)))*F19","v":0},{"$f":"IF(G$5<3.8,Ceník!$C$30,IF(G$5<5,Ceník!$C$31,IF(G$5>5,Ceník!$C$32)))*G19","v":0},{"$f":"IF(H$5<3.8,Ceník!$C$30,IF(H$5<5,Ceník!$C$31,IF(H$5>5,Ceník!$C$32)))*H19","v":0},{"$f":"IF(I$5<3.8,Ceník!$C$30,IF(I$5<5,Ceník!$C$31,IF(I$5>5,Ceník!$C$32)))*I19","v":0},{"$f":"IF(J$5<3.8,Ceník!$C$30,IF(J$5<5,Ceník!$C$31,IF(J$5>5,Ceník!$C$32)))*J19","v":0},{"$f":"IF(K$5<3.8,Ceník!$C$30,IF(K$5<5,Ceník!$C$31,IF(K$5>5,Ceník!$C$32)))*K19","v":0},{"$f":"SUM(B21:K21)","v":0},null,{"$f":"IF(L21>0,Ceník!I30,0)","v":0}]
["tapety strhnout",{"$f":"IF(OR(Room01!A44=TRUE,Room01!B47=TRUE,Room01!C51=TRUE),Výpočty!B11,0)","v":0},{"$f":"IF(OR(Room02!A44=TRUE,Room02!B47=TRUE,Room02!C51=TRUE),Výpočty!C11,0)","v":0},{"$f":"IF(OR(Room03!A44=TRUE,Room03!B47=TRUE,Room03!C51=TRUE),Výpočty!D11,0)","v":0},{"$f":"IF(OR(Room04!A44=TRUE,Room04!B47=TRUE,Room04!C51=TRUE),Výpočty!E11,0)","v":0},{"$f":"IF(OR(Room05!A44=TRUE,Room05!B47=TRUE,Room05!C51=TRUE),Výpočty!F11,0)","v":0},{"$f":"IF(OR(Room06!A44=TRUE,Room06!B47=TRUE,Room06!C51=TRUE),Výpočty!G11,0)","v":0},{"$f":"IF(OR(Room07!A44=TRUE,Room07!B47=TRUE,Room07!C51=TRUE),Výpočty!H11,0)","v":0},{"$f":"IF(OR(Room08!A44=TRUE,Room08!B47=TRUE,Room08!C51=TRUE),Výpočty!I11,0)","v":0},{"$f":"IF(OR(Room09!A44=TRUE,Room09!B47=TRUE,Room09!C51=TRUE),Výpočty!J11,0)","v":0},{"$f":"IF(OR(Room10!A44=TRUE,Room10!B47=TRUE,Room10!C51=TRUE),Výpočty!K11,0)","v":0},0]
[null,{"$f":"B22*Ceník!$C$33","v":0},{"$f":"C22*Ceník!$C$33","v":0},{"$f":"D22*Ceník!$C$33","v":0},{"$f":"E22*Ceník!$C$33","v":0},{"$f":"F22*Ceník!$C$33","v":0},{"$f":"G22*Ceník!$C$33","v":0},{"$f":"H22*Ceník!$C$33","v":0},{"$f":"I22*Ceník!$C$33","v":0},{"$f":"J22*Ceník!$C$33","v":0},{"$f":"K22*Ceník!$C$33","v":0},{"$f":"SUM(B23:K23)","v":0},null,{"$f":"IF(L23>0,Ceník!I33,0)","v":0}]
["vyrovnání podkladu omítkou pod tapetou",{"$f":"B$22*(Ceník!$C$37+IF(B$5<3.8,Ceník!$C$42,IF(B$5<5,Ceník!$C$43,IF(B$5>5,Ceník!$C$44))))","v":0},{"$f":"C$22*(Ceník!$C$37+IF(C$5<3.8,Ceník!$C$42,IF(C$5<5,Ceník!$C$43,IF(C$5>5,Ceník!$C$44))))","v":0},{"$f":"D$22*(Ceník!$C$37+IF(D$5<3.8,Ceník!$C$42,IF(D$5<5,Ceník!$C$43,IF(D$5>5,Ceník!$C$44))))","v":0},{"$f":"E$22*(Ceník!$C$37+IF(E$5<3.8,Ceník!$C$42,IF(E$5<5,Ceník!$C$43,IF(E$5>5,Ceník!$C$44))))","v":0},{"$f":"F$22*(Ceník!$C$37+IF(F$5<3.8,Ceník!$C$42,IF(F$5<5,Ceník!$C$43,IF(F$5>5,Ceník!$C$44))))","v":0},{"$f":"G$22*(Ceník!$C$37+IF(G$5<3.8,Ceník!$C$42,IF(G$5<5,Ceník!$C$43,IF(G$5>5,Ceník!$C$44))))","v":0},{"$f":"H$22*(Ceník!$C$37+IF(H$5<3.8,Ceník!$C$42,IF(H$5<5,Ceník!$C$43,IF(H$5>5,Ceník!$C$44))))","v":0},{"$f":"I$22*(Ceník!$C$37+IF(I$5<3.8,Ceník!$C$42,IF(I$5<5,Ceník!$C$43,IF(I$5>5,Ceník!$C$44))))","v":0},{"$f":"J$22*(Ceník!$C$37+IF(J$5<3.8,Ceník!$C$42,IF(J$5<5,Ceník!$C$43,IF(J$5>5,Ceník!$C$44))))","v":0},{"$f":"K$22*(Ceník!$C$37+IF(K$5<3.8,Ceník!$C$42,IF(K$5<5,Ceník!$C$43,IF(K$5>5,Ceník!$C$44))))","v":0},{"$f":"SUM(B24:K24)","v":0},null,{"$f":"IF(L24>0,Ceník!I35,0)","v":0}]
["materiál",{"$f":"B$22*(Ceník!$D$37+IF(B$5<3.8,Ceník!$D$42,IF(B$5<5,Ceník!$D$43,IF(B$5>5,Ceník!$D$44))))","v":0},{"$f":"C$22*(Ceník!$D$37+IF(C$5<3.8,Ceník!$D$42,IF(C$5<5,Ceník!$D$43,IF(C$5>5,Ceník!$D$44))))","v":0},{"$f":"D$22*(Ceník!$D$37+IF(D$5<3.8,Ceník!$D$42,IF(D$5<5,Ceník!$D$43,IF(D$5>5,Ceník!$D$44))))","v":0},{"$f":"E$22*(Ceník!$D$37+IF(E$5<3.8,Ceník!$D$42,IF(E$5<5,Ceník!$D$43,IF(E$5>5,Ceník!$D$44))))","v":0},{"$f":"F$22*(Ceník!$D$37+IF(F$5<3.8,Ceník!$D$42,IF(F$5<5,Ceník!$D$43,IF(F$5>5,Ceník!$D$44))))","v":0},{"$f":"G$22*(Ceník!$D$37+IF(G$5<3.8,Ceník!$D$42,IF(G$5<5,Ceník!$D$43,IF(G$5>5,Ceník!$D$44))))","v":0},{"$f":"H$22*(Ceník!$D$37+IF(H$5<3.8,Ceník!$D$42,IF(H$5<5,Ceník!$D$43,IF(H$5>5,Ceník!$D$44))))","v":0},{"$f":"I$22*(Ceník!$D$37+IF(I$5<3.8,Ceník!$D$42,IF(I$5<5,Ceník!$D$43,IF(I$5>5,Ceník!$D$44))))","v":0},{"$f":"J$22*(Ceník!$D$37+IF(J$5<3.8,Ceník!$D$42,IF(J$5<5,Ceník!$D$43,IF(J$5>5,Ceník!$D$44))))","v":0},{"$f":"K$22*(Ceník!$D$37+IF(K$5<3.8,Ceník!$D$42,IF(K$5<5,Ceník!$D$43,IF(K$5>5,Ceník!$D$44))))","v":0},0]
["tapety oškrábat",{"$f":"IF(OR(Room01!E58=TRUE,Room01!E59=TRUE,Room01!E60=TRUE),Výpočty!B11,0)","v":0},{"$f":"IF(OR(Room02!E58=TRUE,Room02!E59=TRUE,Room02!E60=TRUE),Výpočty!C11,0)","v":0},{"$f":"IF(OR(Room03!E58=TRUE,Room03!E59=TRUE,Room03!E60=TRUE),Výpočty!D11,0)","v":0},{"$f":"IF(OR(Room04!E58=TRUE,Room04!E59=TRUE,Room04!E60=TRUE),Výpočty!E11,0)","v":0},{"$f":"IF(OR(Room05!E58=TRUE,Room05!E59=TRUE,Room05!E60=TRUE),Výpočty!F11,0)","v":0},{"$f":"IF(OR(Room06!E58=TRUE,Room06!E59=TRUE,Room06!E60=TRUE),Výpočty!G11,0)","v":0},{"$f":"IF(OR(Room07!E58=TRUE,Room07!E59=TRUE,Room07!E60=TRUE),Výpočty!H11,0)","v":0},{"$f":"IF(OR(Room08!E58=TRUE,Room08!E59=TRUE,Room08!E60=TRUE),Výpočty!I11,0)","v":0},{"$f":"IF(OR(Room09!E58=TRUE,Room09!E59=TRUE,Room09!E60=TRUE),Výpočty!J11,0)","v":0},{"$f":"IF(OR(Room10!E58=TRUE,Room10!E59=TRUE,Room10!E60=TRUE),Výpočty!K11,0)","v":0},{"$f":"SUM(B26:K26)","v":0}]
[null,{"$f":"IF(B$5<3.8,Ceník!$C$27,IF(B$5<5,Ceník!$C$28,IF(B$5>5,Ceník!$C$29)))*B26","v":0},{"$f":"IF(C$5<3.8,Ceník!$C$27,IF(C$5<5,Ceník!$C$28,IF(C$5>5,Ceník!$C$29)))*C26","v":0},{"$f":"IF(D$5<3.8,Ceník!$C$27,IF(D$5<5,Ceník!$C$28,IF(D$5>5,Ceník!$C$29)))*D26","v":0},{"$f":"IF(E$5<3.8,Ceník!$C$27,IF(E$5<5,Ceník!$C$28,IF(E$5>5,Ceník!$C$29)))*E26","v":0},{"$f":"IF(F$5<3.8,Ceník!$C$27,IF(F$5<5,Ceník!$C$28,IF(F$5>5,Ceník!$C$29)))*F26","v":0},{"$f":"IF(G$5<3.8,Ceník!$C$27,IF(G$5<5,Ceník!$C$28,IF(G$5>5,Ceník!$C$29)))*G26","v":0},{"$f":"IF(H$5<3.8,Ceník!$C$27,IF(H$5<5,Ceník!$C$28,IF(H$5>5,Ceník!$C$29)))*H26","v":0},{"$f":"IF(I$5<3.8,Ceník!$C$27,IF(I$5<5,Ceník!$C$28,IF(I$5>5,Ceník!$C$29)))*I26","v":0},{"$f":"IF(J$5<3.8,Ceník!$C$27,IF(J$5<5,Ceník!$C$28,IF(J$5>5,Ceník!$C$29)))*J26","v":0},{"$f":"IF(K$5<3.8,Ceník!$C$27,IF(K$5<5,Ceník!$C$28,IF(K$5>5,Ceník!$C$29)))*K26","v":0},{"$f":"SUM(B27:K27)","v":0},null,{"$f":"IF(L27>0,Ceník!I33,0)","v":0}]
["nová omítka",{"$f":"IF(Room01!B66=TRUE,Room01!$I$64,0)","v":0},{"$f":"IF(Room01!C66=TRUE,Room01!$I$64,0)","v":0},{"$f":"IF(Room01!D66=TRUE,Room01!$I$64,0)","v":0},{"$f":"IF(Room01!E66=TRUE,Room01!$I$64,0)","v":0},{"$f":"IF(Room05!B66=TRUE,Room05!$I$64,0)","v":0},{"$f":"IF(Room06!B66=TRUE,Room06!$I$64,0)","v":0},{"$f":"IF(Room07!B66=TRUE,Room07!$I$64,0)","v":0},{"$f":"IF(Room08!B66=TRUE,Room08!$I$64,0)","v":0},{"$f":"IF(Room09!B66=TRUE,Room09!$I$64,0)","v":0},{"$f":"IF(Room10!B66=TRUE,Room10!$I$64,0)","v":0},0]
["celkem",{"$f":"B$28*(Ceník!$C$9+IF(B$5<3.8,Ceník!$C$42,IF(B$5<5,Ceník!$C$43,IF(B$5>5,Ceník!$C$44))))","v":0},{"$f":"C$28*(Ceník!$C$9+IF(C$5<3.8,Ceník!$C$42,IF(C$5<5,Ceník!$C$43,IF(C$5>5,Ceník!$C$44))))","v":0},{"$f":"D$28*(Ceník!$C$9+IF(D$5<3.8,Ceník!$C$42,IF(D$5<5,Ceník!$C$43,IF(D$5>5,Ceník!$C$44))))","v":0},{"$f":"E$28*(Ceník!$C$9+IF(E$5<3.8,Ceník!$C$42,IF(E$5<5,Ceník!$C$43,IF(E$5>5,Ceník!$C$44))))","v":0},{"$f":"F$28*(Ceník!$C$9+IF(F$5<3.8,Ceník!$C$42,IF(F$5<5,Ceník!$C$43,IF(F$5>5,Ceník!$C$44))))","v":0},{"$f":"G$28*(Ceník!$C$9+IF(G$5<3.8,Ceník!$C$42,IF(G$5<5,Ceník!$C$43,IF(G$5>5,Ceník!$C$44))))","v":0},{"$f":"H$28*(Ceník!$C$9+IF(H$5<3.8,Ceník!$C$42,IF(H$5<5,Ceník!$C$43,IF(H$5>5,Ceník!$C$44))))","v":0},{"$f":"I$28*(Ceník!$C$9+IF(I$5<3.8,Ceník!$C$42,IF(I$5<5,Ceník!$C$43,IF(I$5>5,Ceník!$C$44))))","v":0},{"$f":"J$28*(Ceník!$C$9+IF(J$5<3.8,Ceník!$C$42,IF(J$5<5,Ceník!$C$43,IF(J$5>5,Ceník!$C$44))))","v":0},{"$f":"K$28*(Ceník!$C$9+IF(K$5<3.8,Ceník!$C$42,IF(K$5<5,Ceník!$C$43,IF(K$5>5,Ceník!$C$44))))","v":0},{"$f":"SUM(B29:K29)","v":0},null,{"$f":"IF(L29>0,Ceník!I42,0)","v":0}]
["materiál",{"$f":"B$28*(Ceník!$D$9+IF(B$5<3.8,Ceník!$D$42,IF(B$5<5,Ceník!$D$43,IF(B$5>5,Ceník!$D$44))))","v":0},{"$f":"C$28*Ceník!$D$9","v":0},{"$f":"D$28*Ceník!$D$9","v":0},{"$f":"E$28*Ceník!$D$9","v":0},{"$f":"F$28*Ceník!$D$9","v":0},{"$f":"G$28*Ceník!$D$9","v":0},{"$f":"H$28*Ceník!$D$9","v":0},{"$f":"I$28*Ceník!$D$9","v":0},{"$f":"J$28*Ceník!$D$9","v":0},{"$f":"K$28*Ceník!$D$9","v":0},0]
["vyspravení omítky",{"$f":"IF(Room01!B67=TRUE,Room01!$I$64,0)","v":0},{"$f":"IF(Room02!B67=TRUE,Room02!$I$64,0)","v":0},{"$f":"IF(Room03!B67=TRUE,Room03!$I$64,0)","v":0},{"$f":"IF(Room04!B67=TRUE,Room04!$I$64,0)","v":0},{"$f":"IF(Room05!B67=TRUE,Room05!$I$64,0)","v":0},{"$f":"IF(Room06!B67=TRUE,Room06!$I$64,0)","v":0},{"$f":"IF(Room07!B67=TRUE,Room07!$I$64,0)","v":0},{"$f":"IF(Room08!B67=TRUE,Room08!$I$64,0)","v":0},{"$f":"IF(Room09!B67=TRUE,Room09!$I$64,0)","v":0},{"$f":"IF(Room10!B67=TRUE,Room10!$I$64,0)","v":0},0]
["celkem",{"$f":"B$31*(IF(B$5<3.8,Ceník!$C$45,IF(B$5<5,Ceník!$C$46,IF(B$5>5,Ceník!$C$47))))","v":0},{"$f":"C$31*(IF(C$5<3.8,Ceník!$C$45,IF(C$5<5,Ceník!$C$46,IF(C$5>5,Ceník!$C$47))))","v":0},{"$f":"D$31*(IF(D$5<3.8,Ceník!$C$45,IF(D$5<5,Ceník!$C$46,IF(D$5>5,Ceník!$C$47))))","v":0},{"$f":"E$31*(IF(E$5<3.8,Ceník!$C$45,IF(E$5<5,Ceník!$C$46,IF(E$5>5,Ceník!$C$47))))","v":0},{"$f":"F$31*(IF(F$5<3.8,Ceník!$C$45,IF(F$5<5,Ceník!$C$46,IF(F$5>5,Ceník!$C$47))))","v":0},{"$f":"G$31*(IF(G$5<3.8,Ceník!$C$45,IF(G$5<5,Ceník!$C$46,IF(G$5>5,Ceník!$C$47))))","v":0},{"$f":"H$31*(IF(H$5<3.8,Ceník!$C$45,IF(H$5<5,Ceník!$C$46,IF(H$5>5,Ceník!$C$47))))","v":0},{"$f":"I$31*(IF(I$5<3.8,Ceník!$C$45,IF(I$5<5,Ceník!$C$46,IF(I$5>5,Ceník!$C$47))))","v":0},{"$f":"J$31*(IF(J$5<3.8,Ceník!$C$45,IF(J$5<5,Ceník!$C$46,IF(J$5>5,Ceník!$C$47))))","v":0},{"$f":"K$31*(IF(K$5<3.8,Ceník!$C$45,IF(K$5<5,Ceník!$C$46,IF(K$5>5,Ceník!$C$47))))","v":0},{"$f":"L$31*(IF(L$5<3.8,Ceník!$C$45,IF(L$5<5,Ceník!$C$46,IF(L$5>5,Ceník!$C$47))))","v":0},null,{"$f":"IF(L32>0,Ceník!I45,0)","v":0}]
["materiál",{"$f":"B$31*(IF(B$5<3.8,Ceník!$D$45,IF(B$5<5,Ceník!$D$46,IF(B$5>5,Ceník!$D$47))))","v":0},{"$f":"C$31*(IF(C$5<3.8,Ceník!$D$45,IF(C$5<5,Ceník!$D$46,IF(C$5>5,Ceník!$D$47))))","v":0},{"$f":"D$31*(IF(D$5<3.8,Ceník!$D$45,IF(D$5<5,Ceník!$D$46,IF(D$5>5,Ceník!$D$47))))","v":0},{"$f":"E$31*(IF(E$5<3.8,Ceník!$D$45,IF(E$5<5,Ceník!$D$46,IF(E$5>5,Ceník!$D$47))))","v":0},{"$f":"F$31*(IF(F$5<3.8,Ceník!$D$45,IF(F$5<5,Ceník!$D$46,IF(F$5>5,Ceník!$D$47))))","v":0},{"$f":"G$31*(IF(G$5<3.8,Ceník!$D$45,IF(G$5<5,Ceník!$D$46,IF(G$5>5,Ceník!$D$47))))","v":0},{"$f":"H$31*(IF(H$5<3.8,Ceník!$D$45,IF(H$5<5,Ceník!$D$46,IF(H$5>5,Ceník!$D$47))))","v":0},{"$f":"I$31*(IF(I$5<3.8,Ceník!$D$45,IF(I$5<5,Ceník!$D$46,IF(I$5>5,Ceník!$D$47))))","v":0},{"$f":"J$31*(IF(J$5<3.8,Ceník!$D$45,IF(J$5<5,Ceník!$D$46,IF(J$5>5,Ceník!$D$47))))","v":0},{"$f":"K$31*(IF(K$5<3.8,Ceník!$D$45,IF(K$5<5,Ceník!$D$46,IF(K$5>5,Ceník!$D$47))))","v":0},{"$f":"L$31*(IF(L$5<3.8,Ceník!$D$45,IF(L$5<5,Ceník!$D$46,IF(L$5>5,Ceník!$D$47))))","v":0}]
["nová omítka",{"$f":"IF(Room01!$B$71=TRUE,Room01!$I$69,0)","v":0},{"$f":"IF(Room02!$B$71=TRUE,Room02!$I$69,0)","v":0},{"$f":"IF(Room03!$B$71=TRUE,Room03!$I$69,0)","v":0},{"$f":"IF(Room04!$B$71=TRUE,Room04!$I$69,0)","v":0},{"$f":"IF(Room05!$B$71=TRUE,Room05!$I$69,0)","v":0},{"$f":"IF(Room06!$B$71=TRUE,Room06!$I$69,0)","v":0},{"$f":"IF(Room07!$B$71=TRUE,Room07!$I$69,0)","v":0},{"$f":"IF(Room08!$B$71=TRUE,Room08!$I$69,0)","v":0},{"$f":"IF(Room09!$B$71=TRUE,Room09!$I$69,0)","v":0},{"$f":"IF(Room10!$B$71=TRUE,Room10!$I$69,0)","v":0},0]
["celkem",{"$f":"B$34*(Ceník!$C$9+IF(B$5<3.8,Ceník!$C$42,IF(B$5<5,Ceník!$C$43,IF(B$5>5,Ceník!$C$44))))","v":0},{"$f":"C$34*(Ceník!$C$9+IF(C$5<3.8,Ceník!$C$42,IF(C$5<5,Ceník!$C$43,IF(C$5>5,Ceník!$C$44))))","v":0},{"$f":"D$34*(Ceník!$C$9+IF(D$5<3.8,Ceník!$C$42,IF(D$5<5,Ceník!$C$43,IF(D$5>5,Ceník!$C$44))))","v":0},{"$f":"E$34*(Ceník!$C$9+IF(E$5<3.8,Ceník!$C$42,IF(E$5<5,Ceník!$C$43,IF(E$5>5,Ceník!$C$44))))","v":0},{"$f":"F$34*(Ceník!$C$9+IF(F$5<3.8,Ceník!$C$42,IF(F$5<5,Ceník!$C$43,IF(F$5>5,Ceník!$C$44))))","v":0},{"$f":"G$34*(Ceník!$C$9+IF(G$5<3.8,Ceník!$C$42,IF(G$5<5,Ceník!$C$43,IF(G$5>5,Ceník!$C$44))))","v":0},{"$f":"H$34*(Ceník!$C$9+IF(H$5<3.8,Ceník!$C$42,IF(H$5<5,Ceník!$C$43,IF(H$5>5,Ceník!$C$44))))","v":0},{"$f":"I$34*(Ceník!$C$9+IF(I$5<3.8,Ceník!$C$42,IF(I$5<5,Ceník!$C$43,IF(I$5>5,Ceník!$C$44))))","v":0},{"$f":"J$34*(Ceník!$C$9+IF(J$5<3.8,Ceník!$C$42,IF(J$5<5,Ceník!$C$43,IF(J$5>5,Ceník!$C$44))))","v":0},{"$f":"K$34*(Ceník!$C$9+IF(K$5<3.8,Ceník!$C$42,IF(K$5<5,Ceník!$C$43,IF(K$5>5,Ceník!$C$44))))","v":0},0,null,{"$f":"IF(L35>0,Ceník!I42,0)","v":0}]
["materiál",{"$f":"B$34*(Ceník!$D$9+IF(B$5<3.8,Ceník!$D$42,IF(B$5<5,Ceník!$D$43,IF(B$5>5,Ceník!$D$44))))","v":0},{"$f":"C$34*(Ceník!$D$9+IF(C$5<3.8,Ceník!$D$42,IF(C$5<5,Ceník!$D$43,IF(C$5>5,Ceník!$D$44))))","v":0},{"$f":"D$34*(Ceník!$D$9+IF(D$5<3.8,Ceník!$D$42,IF(D$5<5,Ceník!$D$43,IF(D$5>5,Ceník!$D$44))))","v":0},{"$f":"E$34*(Ceník!$D$9+IF(E$5<3.8,Ceník!$D$42,IF(E$5<5,Ceník!$D$43,IF(E$5>5,Ceník!$D$44))))","v":0},{"$f":"F$34*(Ceník!$D$9+IF(F$5<3.8,Ceník!$D$42,IF(F$5<5,Ceník!$D$43,IF(F$5>5,Ceník!$D$44))))","v":0},{"$f":"G$34*(Ceník!$D$9+IF(G$5<3.8,Ceník!$D$42,IF(G$5<5,Ceník!$D$43,IF(G$5>5,Ceník!$D$44))))","v":0},{"$f":"H$34*(Ceník!$D$9+IF(H$5<3.8,Ceník!$D$42,IF(H$5<5,Ceník!$D$43,IF(H$5>5,Ceník!$D$44))))","v":0},{"$f":"I$34*(Ceník!$D$9+IF(I$5<3.8,Ceník!$D$42,IF(I$5<5,Ceník!$D$43,IF(I$5>5,Ceník!$D$44))))","v":0},{"$f":"J$34*(Ceník!$D$9+IF(J$5<3.8,Ceník!$D$42,IF(J$5<5,Ceník!$D$43,IF(J$5>5,Ceník!$D$44))))","v":0},{"$f":"K$34*(Ceník!$D$9+IF(K$5<3.8,Ceník!$D$42,IF(K$5<5,Ceník!$D$43,IF(K$5>5,Ceník!$D$44))))","v":0},0]
["vyspravení omítky",{"$f":"IF(Room01!$B$72=TRUE,Room01!$I$69,0)","v":0},{"$f":"IF(Room02!$B$72=TRUE,Room02!$I$69,0)","v":0},{"$f":"IF(Room03!$B$72=TRUE,Room03!$I$69,0)","v":0},{"$f":"IF(Room04!$B$72=TRUE,Room04!$I$69,0)","v":0},{"$f":"IF(Room05!$B$72=TRUE,Room05!$I$69,0)","v":0},{"$f":"IF(Room06!$B$72=TRUE,Room06!$I$69,0)","v":0},{"$f":"IF(Room07!$B$72=TRUE,Room07!$I$69,0)","v":0},{"$f":"IF(Room08!$B$72=TRUE,Room08!$I$69,0)","v":0},{"$f":"IF(Room09!$B$72=TRUE,Room09!$I$69,0)","v":0},{"$f":"IF(Room10!$B$72=TRUE,Room10!$I$69,0)","v":0},0]
["celkem",{"$f":"B$37*(IF(B$5<3.8,Ceník!$C$45,IF(B$5<5,Ceník!$C$46,IF(B$5>5,Ceník!$C$47))))","v":0},{"$f":"C$37*(IF(C$5<3.8,Ceník!$C$45,IF(C$5<5,Ceník!$C$46,IF(C$5>5,Ceník!$C$47))))","v":0},{"$f":"D$37*(IF(D$5<3.8,Ceník!$C$45,IF(D$5<5,Ceník!$C$46,IF(D$5>5,Ceník!$C$47))))","v":0},{"$f":"E$37*(IF(E$5<3.8,Ceník!$C$45,IF(E$5<5,Ceník!$C$46,IF(E$5>5,Ceník!$C$47))))","v":0},{"$f":"F$37*(IF(F$5<3.8,Ceník!$C$45,IF(F$5<5,Ceník!$C$46,IF(F$5>5,Ceník!$C$47))))","v":0},{"$f":"G$37*(IF(G$5<3.8,Ceník!$C$45,IF(G$5<5,Ceník!$C$46,IF(G$5>5,Ceník!$C$47))))","v":0},{"$f":"H$37*(IF(H$5<3.8,Ceník!$C$45,IF(H$5<5,Ceník!$C$46,IF(H$5>5,Ceník!$C$47))))","v":0},{"$f":"I$37*(IF(I$5<3.8,Ceník!$C$45,IF(I$5<5,Ceník!$C$46,IF(I$5>5,Ceník!$C$47))))","v":0},{"$f":"J$37*(IF(J$5<3.8,Ceník!$C$45,IF(J$5<5,Ceník!$C$46,IF(J$5>5,Ceník!$C$47))))","v":0},{"$f":"K$37*(IF(K$5<3.8,Ceník!$C$45,IF(K$5<5,Ceník!$C$46,IF(K$5>5,Ceník!$C$47))))","v":0},0,null,{"$f":"IF(L38>0,Ceník!I45,0)","v":0}]
["materiál",{"$f":"B$37*(IF(B$5<3.8,Ceník!$D$45,IF(B$5<5,Ceník!$D$46,IF(B$5>5,Ceník!$D$47))))","v":0},{"$f":"C$37*(IF(C$5<3.8,Ceník!$D$45,IF(C$5<5,Ceník!$D$46,IF(C$5>5,Ceník!$D$47))))","v":0},{"$f":"D$37*(IF(D$5<3.8,Ceník!$D$45,IF(D$5<5,Ceník!$D$46,IF(D$5>5,Ceník!$D$47))))","v":0},{"$f":"E$37*(IF(E$5<3.8,Ceník!$D$45,IF(E$5<5,Ceník!$D$46,IF(E$5>5,Ceník!$D$47))))","v":0},{"$f":"F$37*(IF(F$5<3.8,Ceník!$D$45,IF(F$5<5,Ceník!$D$46,IF(F$5>5,Ceník!$D$47))))","v":0},{"$f":"G$37*(IF(G$5<3.8,Ceník!$D$45,IF(G$5<5,Ceník!$D$46,IF(G$5>5,Ceník!$D$47))))","v":0},{"$f":"H$37*(IF(H$5<3.8,Ceník!$D$45,IF(H$5<5,Ceník!$D$46,IF(H$5>5,Ceník!$D$47))))","v":0},{"$f":"I$37*(IF(I$5<3.8,Ceník!$D$45,IF(I$5<5,Ceník!$D$46,IF(I$5>5,Ceník!$D$47))))","v":0},{"$f":"J$37*(IF(J$5<3.8,Ceník!$D$45,IF(J$5<5,Ceník!$D$46,IF(J$5>5,Ceník!$D$47))))","v":0},{"$f":"K$37*(IF(K$5<3.8,Ceník!$D$45,IF(K$5<5,Ceník!$D$46,IF(K$5>5,Ceník!$D$47))))","v":0},0]
["obroušení omítky",{"$f":"(B$28+B$34+B$9+B$22)*(IF(B$5<3.8,Ceník!$C$39,IF(B$5<5,Ceník!$C$40,IF(B$5>5,Ceník!$C$41))))","v":0},{"$f":"(C$28+C$34+C$9+C$22)*(IF(C$5<3.8,Ceník!$C$39,IF(C$5<5,Ceník!$C$40,IF(C$5>5,Ceník!$C$41))))","v":0},{"$f":"(D$28+D$34+D$9+D$22)*(IF(D$5<3.8,Ceník!$C$39,IF(D$5<5,Ceník!$C$40,IF(D$5>5,Ceník!$C$41))))","v":0},{"$f":"(E$28+E$34+E$9+E$22)*(IF(E$5<3.8,Ceník!$C$39,IF(E$5<5,Ceník!$C$40,IF(E$5>5,Ceník!$C$41))))","v":0},{"$f":"(F$28+F$34+F$9+F$22)*(IF(F$5<3.8,Ceník!$C$39,IF(F$5<5,Ceník!$C$40,IF(F$5>5,Ceník!$C$41))))","v":0},{"$f":"(G$28+G$34+G$9+G$22)*(IF(G$5<3.8,Ceník!$C$39,IF(G$5<5,Ceník!$C$40,IF(G$5>5,Ceník!$C$41))))","v":0},{"$f":"(H$28+H$34+H$9+H$22)*(IF(H$5<3.8,Ceník!$C$39,IF(H$5<5,Ceník!$C$40,IF(H$5>5,Ceník!$C$41))))","v":0},{"$f":"(I$28+I$34+I$9+I$22)*(IF(I$5<3.8,Ceník!$C$39,IF(I$5<5,Ceník!$C$40,IF(I$5>5,Ceník!$C$41))))","v":0},{"$f":"(J$28+J$34+J$9+J$22)*(IF(J$5<3.8,Ceník!$C$39,IF(J$5<5,Ceník!$C$40,IF(J$5>5,Ceník!$C$41))))","v":0},{"$f":"(K$28+K$34+K$9+K$22)*(IF(K$5<3.8,Ceník!$C$39,IF(K$5<5,Ceník!$C$40,IF(K$5>5,Ceník!$C$41))))","v":0},0,null,{"$f":"IF(L40>0,Ceník!I39,0)","v":0}]
["materiál",{"$f":"(B$28+B$34+B$9+B$22)*(IF(B$5<3.8,Ceník!$D$39,IF(B$5<5,Ceník!$D$40,IF(B$5>5,Ceník!$D$41))))","v":0},{"$f":"(C$28+C$34+C$9+C$22)*(IF(C$5<3.8,Ceník!$D$39,IF(C$5<5,Ceník!$D$40,IF(C$5>5,Ceník!$D$41))))","v":0},{"$f":"(D$28+D$34+D$9+D$22)*(IF(D$5<3.8,Ceník!$D$39,IF(D$5<5,Ceník!$D$40,IF(D$5>5,Ceník!$D$41))))","v":0},{"$f":"(E$28+E$34+E$9+E$22)*(IF(E$5<3.8,Ceník!$D$39,IF(E$5<5,Ceník!$D$40,IF(E$5>5,Ceník!$D$41))))","v":0},{"$f":"(F$28+F$34+F$9+F$22)*(IF(F$5<3.8,Ceník!$D$39,IF(F$5<5,Ceník!$D$40,IF(F$5>5,Ceník!$D$41))))","v":0},{"$f":"(G$28+G$34+G$9+G$22)*(IF(G$5<3.8,Ceník!$D$39,IF(G$5<5,Ceník!$D$40,IF(G$5>5,Ceník!$D$41))))","v":0},{"$f":"(H$28+H$34+H$9+H$22)*(IF(H$5<3.8,Ceník!$D$39,IF(H$5<5,Ceník!$D$40,IF(H$5>5,Ceník!$D$41))))","v":0},{"$f":"(I$28+I$34+I$9+I$22)*(IF(I$5<3.8,Ceník!$D$39,IF(I$5<5,Ceník!$D$40,IF(I$5>5,Ceník!$D$41))))","v":0},{"$f":"(J$28+J$34+J$9+J$22)*(IF(J$5<3.8,Ceník!$D$39,IF(J$5<5,Ceník!$D$40,IF(J$5>5,Ceník!$D$41))))","v":0},{"$f":"(K$28+K$34+K$9+K$22)*(IF(K$5<3.8,Ceník!$D$39,IF(K$5<5,Ceník!$D$40,IF(K$5>5,Ceník!$D$41))))","v":0},0]
["obroušení sádry",{"$f":"(B$31+B$37)*(IF(B$5<3.8,Ceník!$C$48,IF(B$5<5,Ceník!$C$49,IF(B$5>5,Ceník!$C$50))))","v":0},{"$f":"(C$31+C$37)*(IF(C$5<3.8,Ceník!$C$48,IF(C$5<5,Ceník!$C$49,IF(C$5>5,Ceník!$C$50))))","v":0},{"$f":"(D$31+D$37)*(IF(D$5<3.8,Ceník!$C$48,IF(D$5<5,Ceník!$C$49,IF(D$5>5,Ceník!$C$50))))","v":0},{"$f":"(E$31+E$37)*(IF(E$5<3.8,Ceník!$C$48,IF(E$5<5,Ceník!$C$49,IF(E$5>5,Ceník!$C$50))))","v":0},{"$f":"(F$31+F$37)*(IF(F$5<3.8,Ceník!$C$48,IF(F$5<5,Ceník!$C$49,IF(F$5>5,Ceník!$C$50))))","v":0},{"$f":"(G$31+G$37)*(IF(G$5<3.8,Ceník!$C$48,IF(G$5<5,Ceník!$C$49,IF(G$5>5,Ceník!$C$50))))","v":0},{"$f":"(H$31+H$37)*(IF(H$5<3.8,Ceník!$C$48,IF(H$5<5,Ceník!$C$49,IF(H$5>5,Ceník!$C$50))))","v":0},{"$f":"(I$31+I$37)*(IF(I$5<3.8,Ceník!$C$48,IF(I$5<5,Ceník!$C$49,IF(I$5>5,Ceník!$C$50))))","v":0},{"$f":"(J$31+J$37)*(IF(J$5<3.8,Ceník!$C$48,IF(J$5<5,Ceník!$C$49,IF(J$5>5,Ceník!$C$50))))","v":0},{"$f":"(K$31+K$37)*(IF(K$5<3.8,Ceník!$C$48,IF(K$5<5,Ceník!$C$49,IF(K$5>5,Ceník!$C$50))))","v":0},0,null,{"$f":"IF(L42>0,Ceník!I48,0)","v":0}]
["materiál",{"$f":"(B$31+B$37)*(IF(B$5<3.8,Ceník!$D$48,IF(B$5<5,Ceník!$D$49,IF(B$5>5,Ceník!$D$50))))","v":0},{"$f":"(C$31+C$37)*(IF(C$5<3.8,Ceník!$D$48,IF(C$5<5,Ceník!$D$49,IF(C$5>5,Ceník!$D$50))))","v":0},{"$f":"(D$31+D$37)*(IF(D$5<3.8,Ceník!$D$48,IF(D$5<5,Ceník!$D$49,IF(D$5>5,Ceník!$D$50))))","v":0},{"$f":"(E$31+E$37)*(IF(E$5<3.8,Ceník!$D$48,IF(E$5<5,Ceník!$D$49,IF(E$5>5,Ceník!$D$50))))","v":0},{"$f":"(F$31+F$37)*(IF(F$5<3.8,Ceník!$D$48,IF(F$5<5,Ceník!$D$49,IF(F$5>5,Ceník!$D$50))))","v":0},{"$f":"(G$31+G$37)*(IF(G$5<3.8,Ceník!$D$48,IF(G$5<5,Ceník!$D$49,IF(G$5>5,Ceník!$D$50))))","v":0},{"$f":"(H$31+H$37)*(IF(H$5<3.8,Ceník!$D$48,IF(H$5<5,Ceník!$D$49,IF(H$5>5,Ceník!$D$50))))","v":0},{"$f":"(I$31+I$37)*(IF(I$5<3.8,Ceník!$D$48,IF(I$5<5,Ceník!$D$49,IF(I$5>5,Ceník!$D$50))))","v":0},{"$f":"(J$31+J$37)*(IF(J$5<3.8,Ceník!$D$48,IF(J$5<5,Ceník!$D$49,IF(J$5>5,Ceník!$D$50))))","v":0},{"$f":"(K$31+K$37)*(IF(K$5<3.8,Ceník!$D$48,IF(K$5<5,Ceník!$D$49,IF(K$5>5,Ceník!$D$50))))","v":0},0]
["oprášení",{"$f":"(B$31+B$37+B$28+B$34+B$9+B$22)*(IF(B$5<3.8,Ceník!$C$21,IF(B$5<5,Ceník!$C$22,IF(B$5>5,Ceník!$C$23))))","v":0},{"$f":"(C$31+C$37+C$28+C$34+C$9+C$22)*(IF(C$5<3.8,Ceník!$C$21,IF(C$5<5,Ceník!$C$22,IF(C$5>5,Ceník!$C$23))))","v":0},{"$f":"(D$31+D$37+D$28+D$34+D$9+D$22)*(IF(D$5<3.8,Ceník!$C$21,IF(D$5<5,Ceník!$C$22,IF(D$5>5,Ceník!$C$23))))","v":0},{"$f":"(E$31+E$37+E$28+E$34+E$9+E$22)*(IF(E$5<3.8,Ceník!$C$21,IF(E$5<5,Ceník!$C$22,IF(E$5>5,Ceník!$C$23))))","v":0},{"$f":"(F$31+F$37+F$28+F$34+F$9+F$22)*(IF(F$5<3.8,Ceník!$C$21,IF(F$5<5,Ceník!$C$22,IF(F$5>5,Ceník!$C$23))))","v":0},{"$f":"(G$31+G$37+G$28+G$34+G$9+G$22)*(IF(G$5<3.8,Ceník!$C$21,IF(G$5<5,Ceník!$C$22,IF(G$5>5,Ceník!$C$23))))","v":0},{"$f":"(H$31+H$37+H$28+H$34+H$9+H$22)*(IF(H$5<3.8,Ceník!$C$21,IF(H$5<5,Ceník!$C$22,IF(H$5>5,Ceník!$C$23))))","v":0},{"$f":"(I$31+I$37+I$28+I$34+I$9+I$22)*(IF(I$5<3.8,Ceník!$C$21,IF(I$5<5,Ceník!$C$22,IF(I$5>5,Ceník!$C$23))))","v":0},{"$f":"(J$31+J$37+J$28+J$34+J$9+J$22)*(IF(J$5<3.8,Ceník!$C$21,IF(J$5<5,Ceník!$C$22,IF(J$5>5,Ceník!$C$23))))","v":0},{"$f":"(K$31+K$37+K$28+K$34+K$9+K$22)*(IF(K$5<3.8,Ceník!$C$21,IF(K$5<5,Ceník!$C$22,IF(K$5>5,Ceník!$C$23))))","v":0},{"$f":"SUM(B44:K44)","v":0},null,{"$f":"IF(L44>0,Ceník!I21,0)","v":0}]
["materiál",{"$f":"(B$31+B$37+B$28+B$34+B$9+B$22)*(IF(B$5<3.8,Ceník!$D$21,IF(B$5<5,Ceník!$D$22,IF(B$5>5,Ceník!$D$23))))","v":0},{"$f":"(C$31+C$37+C$28+C$34+C$9+C$22)*(IF(C$5<3.8,Ceník!$D$21,IF(C$5<5,Ceník!$D$22,IF(C$5>5,Ceník!$D$23))))","v":0},{"$f":"(D$31+D$37+D$28+D$34+D$9+D$22)*(IF(D$5<3.8,Ceník!$D$21,IF(D$5<5,Ceník!$D$22,IF(D$5>5,Ceník!$D$23))))","v":0},{"$f":"(E$31+E$37+E$28+E$34+E$9+E$22)*(IF(E$5<3.8,Ceník!$D$21,IF(E$5<5,Ceník!$D$22,IF(E$5>5,Ceník!$D$23))))","v":0},{"$f":"(F$31+F$37+F$28+F$34+F$9+F$22)*(IF(F$5<3.8,Ceník!$D$21,IF(F$5<5,Ceník!$D$22,IF(F$5>5,Ceník!$D$23))))","v":0},{"$f":"(G$31+G$37+G$28+G$34+G$9+G$22)*(IF(G$5<3.8,Ceník!$D$21,IF(G$5<5,Ceník!$D$22,IF(G$5>5,Ceník!$D$23))))","v":0},{"$f":"(H$31+H$37+H$28+H$34+H$9+H$22)*(IF(H$5<3.8,Ceník!$D$21,IF(H$5<5,Ceník!$D$22,IF(H$5>5,Ceník!$D$23))))","v":0},{"$f":"(I$31+I$37+I$28+I$34+I$9+I$22)*(IF(I$5<3.8,Ceník!$D$21,IF(I$5<5,Ceník!$D$22,IF(I$5>5,Ceník!$D$23))))","v":0},{"$f":"(J$31+J$37+J$28+J$34+J$9+J$22)*(IF(J$5<3.8,Ceník!$D$21,IF(J$5<5,Ceník!$D$22,IF(J$5>5,Ceník!$D$23))))","v":0},{"$f":"(K$31+K$37+K$28+K$34+K$9+K$22)*(IF(K$5<3.8,Ceník!$D$21,IF(K$5<5,Ceník!$D$22,IF(K$5>5,Ceník!$D$23))))","v":0},0]
["plísně",{"$f":"IF(Room01!$A$76=TRUE,Room01!$H$76,0)","v":0},{"$f":"IF(Room02!$A$76=TRUE,Room02!$H$76,0)","v":0},{"$f":"IF(Room03!$A$76=TRUE,Room03!$H$76,0)","v":0},{"$f":"IF(Room04!$A$76=TRUE,Room04!$H$76,0)","v":0},{"$f":"IF(Room05!$A$76=TRUE,Room05!$H$76,0)","v":0},{"$f":"IF(Room06!$A$76=TRUE,Room06!$H$76,0)","v":0},{"$f":"IF(Room07!$A$76=TRUE,Room07!$H$76,0)","v":0},{"$f":"IF(Room08!$A$76=TRUE,Room08!$H$76,0)","v":0},{"$f":"IF(Room09!$A$76=TRUE,Room09!$H$76,0)","v":0},{"$f":"IF(Room10!$A$76=TRUE,Room10!$H$76,0)","v":0},{"$f":"SUM(C46:K46)","v":0}]
["celkem",{"$f":"IF(B$5<3.8,Ceník!$C$51,IF(B$5<5,Ceník!$C$52,IF(B$5>5,Ceník!$C$53)))*B$46","v":0},{"$f":"IF(C$5<3.8,Ceník!$C$51,IF(C$5<5,Ceník!$C$52,IF(C$5>5,Ceník!$C$53)))*C$46","v":0},{"$f":"IF(D$5<3.8,Ceník!$C$51,IF(D$5<5,Ceník!$C$52,IF(D$5>5,Ceník!$C$53)))*D$46","v":0},{"$f":"IF(E$5<3.8,Ceník!$C$51,IF(E$5<5,Ceník!$C$52,IF(E$5>5,Ceník!$C$53)))*E$46","v":0},{"$f":"IF(F$5<3.8,Ceník!$C$51,IF(F$5<5,Ceník!$C$52,IF(F$5>5,Ceník!$C$53)))*F$46","v":0},{"$f":"IF(G$5<3.8,Ceník!$C$51,IF(G$5<5,Ceník!$C$52,IF(G$5>5,Ceník!$C$53)))*G$46","v":0},{"$f":"IF(H$5<3.8,Ceník!$C$51,IF(H$5<5,Ceník!$C$52,IF(H$5>5,Ceník!$C$53)))*H$46","v":0},{"$f":"IF(I$5<3.8,Ceník!$C$51,IF(I$5<5,Ceník!$C$52,IF(I$5>5,Ceník!$C$53)))*I$46","v":0},{"$f":"IF(J$5<3.8,Ceník!$C$51,IF(J$5<5,Ceník!$C$52,IF(J$5>5,Ceník!$C$53)))*J$46","v":0},{"$f":"IF(K$5<3.8,Ceník!$C$51,IF(K$5<5,Ceník!$C$52,IF(K$5>5,Ceník!$C$53)))*K$46","v":0},0,null,{"$f":"IF(L47>0,Ceník!I51,0)","v":0}]
["materiál",{"$f":"IF(B$5<3.8,Ceník!$D$51,IF(B$5<5,Ceník!$D$52,IF(B$5>5,Ceník!$D$53)))*B$46","v":0},{"$f":"IF(C$5<3.8,Ceník!$D$51,IF(C$5<5,Ceník!$D$52,IF(C$5>5,Ceník!$D$53)))*C$46","v":0},{"$f":"IF(D$5<3.8,Ceník!$D$51,IF(D$5<5,Ceník!$D$52,IF(D$5>5,Ceník!$D$53)))*D$46","v":0},{"$f":"IF(E$5<3.8,Ceník!$D$51,IF(E$5<5,Ceník!$D$52,IF(E$5>5,Ceník!$D$53)))*E$46","v":0},{"$f":"IF(F$5<3.8,Ceník!$D$51,IF(F$5<5,Ceník!$D$52,IF(F$5>5,Ceník!$D$53)))*F$46","v":0},{"$f":"IF(G$5<3.8,Ceník!$D$51,IF(G$5<5,Ceník!$D$52,IF(G$5>5,Ceník!$D$53)))*G$46","v":0},{"$f":"IF(H$5<3.8,Ceník!$D$51,IF(H$5<5,Ceník!$D$52,IF(H$5>5,Ceník!$D$53)))*H$46","v":0},{"$f":"IF(I$5<3.8,Ceník!$D$51,IF(I$5<5,Ceník!$D$52,IF(I$5>5,Ceník!$D$53)))*I$46","v":0},{"$f":"IF(J$5<3.8,Ceník!$D$51,IF(J$5<5,Ceník!$D$52,IF(J$5>5,Ceník!$D$53)))*J$46","v":0},{"$f":"IF(K$5<3.8,Ceník!$D$51,IF(K$5<5,Ceník!$D$52,IF(K$5>5,Ceník!$D$53)))*K$46","v":0},0]
[]
["penetrace hloubková",{"$f":"IF(B$5<3.8,Ceník!$C$55,IF(B$5<5,Ceník!$C$56,IF(B$5>5,Ceník!$C$57)))*(B$9+B$22+B$28+B$31+B$34+B$37)","v":0},{"$f":"IF(C$5<3.8,Ceník!$C$55,IF(C$5<5,Ceník!$C$56,IF(C$5>5,Ceník!$C$57)))*(C$9+C$22+C$28+C$31+C$34+C$37)","v":0},{"$f":"IF(D$5<3.8,Ceník!$C$55,IF(D$5<5,Ceník!$C$56,IF(D$5>5,Ceník!$C$57)))*(D$9+D$22+D$28+D$31+D$34+D$37)","v":0},{"$f":"IF(E$5<3.8,Ceník!$C$55,IF(E$5<5,Ceník!$C$56,IF(E$5>5,Ceník!$C$57)))*(E$9+E$22+E$28+E$31+E$34+E$37)","v":0},{"$f":"IF(F$5<3.8,Ceník!$C$55,IF(F$5<5,Ceník!$C$56,IF(F$5>5,Ceník!$C$57)))*(F$9+F$22+F$28+F$31+F$34+F$37)","v":0},{"$f":"IF(G$5<3.8,Ceník!$C$55,IF(G$5<5,Ceník!$C$56,IF(G$5>5,Ceník!$C$57)))*(G$9+G$22+G$28+G$31+G$34+G$37)","v":0},{"$f":"IF(H$5<3.8,Ceník!$C$55,IF(H$5<5,Ceník!$C$56,IF(H$5>5,Ceník!$C$57)))*(H$9+H$22+H$28+H$31+H$34+H$37)","v":0},{"$f":"IF(I$5<3.8,Ceník!$C$55,IF(I$5<5,Ceník!$C$56,IF(I$5>5,Ceník!$C$57)))*(I$9+I$22+I$28+I$31+I$34+I$37)","v":0},{"$f":"IF(J$5<3.8,Ceník!$C$55,IF(J$5<5,Ceník!$C$56,IF(J$5>5,Ceník!$C$57)))*(J$9+J$22+J$28+J$31+J$34+J$37)","v":0},{"$f":"IF(K$5<3.8,Ceník!$C$55,IF(K$5<5,Ceník!$C$56,IF(K$5>5,Ceník!$C$57)))*(K$9+K$22+K$28+K$31+K$34+K$37)","v":0},0,null,{"$f":"IF(L50>0,Ceník!I54,0)","v":0}]
["materiál",{"$f":"IF(B$5<3.8,Ceník!$D$55,IF(B$5<5,Ceník!$D$56,IF(B$5>5,Ceník!$D$57)))*(B$9+B$22+B$28+B$31+B$34+B$37)","v":0},{"$f":"IF(C$5<3.8,Ceník!$D$55,IF(C$5<5,Ceník!$D$56,IF(C$5>5,Ceník!$D$57)))*(C$9+C$22+C$28+C$31+C$34+C$37)","v":0},{"$f":"IF(D$5<3.8,Ceník!$D$55,IF(D$5<5,Ceník!$D$56,IF(D$5>5,Ceník!$D$57)))*(D$9+D$22+D$28+D$31+D$34+D$37)","v":0},{"$f":"IF(E$5<3.8,Ceník!$D$55,IF(E$5<5,Ceník!$D$56,IF(E$5>5,Ceník!$D$57)))*(E$9+E$22+E$28+E$31+E$34+E$37)","v":0},{"$f":"IF(F$5<3.8,Ceník!$D$55,IF(F$5<5,Ceník!$D$56,IF(F$5>5,Ceník!$D$57)))*(F$9+F$22+F$28+F$31+F$34+F$37)","v":0},{"$f":"IF(G$5<3.8,Ceník!$D$55,IF(G$5<5,Ceník!$D$56,IF(G$5>5,Ceník!$D$57)))*(G$9+G$22+G$28+G$31+G$34+G$37)","v":0},{"$f":"IF(H$5<3.8,Ceník!$D$55,IF(H$5<5,Ceník!$D$56,IF(H$5>5,Ceník!$D$57)))*(H$9+H$22+H$28+H$31+H$34+H$37)","v":0},{"$f":"IF(I$5<3.8,Ceník!$D$55,IF(I$5<5,Ceník!$D$56,IF(I$5>5,Ceník!$D$57)))*(I$9+I$22+I$28+I$31+I$34+I$37)","v":0},{"$f":"IF(J$5<3.8,Ceník!$D$55,IF(J$5<5,Ceník!$D$56,IF(J$5>5,Ceník!$D$57)))*(J$9+J$22+J$28+J$31+J$34+J$37)","v":0},{"$f":"IF(K$5<3.8,Ceník!$D$55,IF(K$5<5,Ceník!$D$56,IF(K$5>5,Ceník!$D$57)))*(K$9+K$22+K$28+K$31+K$34+K$37)","v":0},0]
["penetrace SDK",{"$f":"B$13*Ceník!$C$54","v":0},{"$f":"C$13*Ceník!$C$54","v":0},{"$f":"D$13*Ceník!$C$54","v":0},{"$f":"E$13*Ceník!$C$54","v":0},{"$f":"F$13*Ceník!$C$54","v":0},{"$f":"G$13*Ceník!$C$54","v":0},{"$f":"H$13*Ceník!$C$54","v":0},{"$f":"I$13*Ceník!$C$54","v":0},{"$f":"J$13*Ceník!$C$54","v":0},{"$f":"K$13*Ceník!$C$54","v":0},0,null,{"$f":"IF(L52>0,Ceník!I54,0)","v":0}]
["materiál",{"$f":"B$13*Ceník!$D$54","v":0},{"$f":"C$13*Ceník!$D$54","v":0},{"$f":"D$13*Ceník!$D$54","v":0},{"$f":"E$13*Ceník!$D$54","v":0},{"$f":"F$13*Ceník!$D$54","v":0},{"$f":"G$13*Ceník!$D$54","v":0},{"$f":"H$13*Ceník!$D$54","v":0},{"$f":"I$13*Ceník!$D$54","v":0},{"$f":"J$13*Ceník!$D$54","v":0},{"$f":"K$13*Ceník!$D$54","v":0},0]
[]
["nová tapeta stěny"]
["celkem",{"$f":"IF(B$5<3,Ceník!$C$62,IF(B$5>3,Ceník!$C$62+Ceník!$C$65))*B55","v":0},{"$f":"IF(C$5<3,Ceník!$C$62,IF(C$5>3,Ceník!$C$62+Ceník!$C$65))*C55","v":0},{"$f":"IF(D$5<3,Ceník!$C$62,IF(D$5>3,Ceník!$C$62+Ceník!$C$65))*D55","v":0},{"$f":"IF(E$5<3,Ceník!$C$62,IF(E$5>3,Ceník!$C$62+Ceník!$C$65))*E55","v":0},{"$f":"IF(F$5<3,Ceník!$C$62,IF(F$5>3,Ceník!$C$62+Ceník!$C$65))*F55","v":0},{"$f":"IF(G$5<3,Ceník!$C$62,IF(G$5>3,Ceník!$C$62+Ceník!$C$65))*G55","v":0},{"$f":"IF(H$5<3,Ceník!$C$62,IF(H$5>3,Ceník!$C$62+Ceník!$C$65))*H55","v":0},{"$f":"IF(I$5<3,Ceník!$C$62,IF(I$5>3,Ceník!$C$62+Ceník!$C$65))*I55","v":0},{"$f":"IF(J$5<3,Ceník!$C$62,IF(J$5>3,Ceník!$C$62+Ceník!$C$65))*J55","v":0},{"$f":"IF(K$5<3,Ceník!$C$62,IF(K$5>3,Ceník!$C$62+Ceník!$C$65))*K55","v":0},0,null,{"$f":"IF(L56>0,Ceník!I62,0)","v":0}]
["materiál",{"$f":"IF(B$5<3,Ceník!$D$62,IF(B$5>3,Ceník!$D$62+Ceník!$D$65))*B55","v":0},{"$f":"IF(C$5<3,Ceník!$D$62,IF(C$5>3,Ceník!$D$62+Ceník!$D$65))*C55","v":0},{"$f":"IF(D$5<3,Ceník!$D$62,IF(D$5>3,Ceník!$D$62+Ceník!$D$65))*D55","v":0},{"$f":"IF(E$5<3,Ceník!$D$62,IF(E$5>3,Ceník!$D$62+Ceník!$D$65))*E55","v":0},{"$f":"IF(F$5<3,Ceník!$D$62,IF(F$5>3,Ceník!$D$62+Ceník!$D$65))*F55","v":0},{"$f":"IF(G$5<3,Ceník!$D$62,IF(G$5>3,Ceník!$D$62+Ceník!$D$65))*G55","v":0},{"$f":"IF(H$5<3,Ceník!$D$62,IF(H$5>3,Ceník!$D$62+Ceník!$D$65))*H55","v":0},{"$f":"IF(I$5<3,Ceník!$D$62,IF(I$5>3,Ceník!$D$62+Ceník!$D$65))*I55","v":0},{"$f":"IF(J$5<3,Ceník!$D$62,IF(J$5>3,Ceník!$D$62+Ceník!$D$65))*J55","v":0},{"$f":"IF(K$5<3,Ceník!$D$62,IF(K$5>3,Ceník!$D$62+Ceník!$D$65))*K55","v":0},{"$f":"SUM(B57:K57)","v":0}]
["nová tapeta stěny + stropy",{"$f":"IF(Room01!$A$83=TRUE,Room01!$D85,0)","v":0},{"$f":"IF(Room02!$A$83=TRUE,Room02!$D85,0)","v":0},{"$f":"IF(Room03!$A$83=TRUE,Room03!$D85,0)","v":0},{"$f":"IF(Room04!$A$83=TRUE,Room04!$D85,0)","v":0},{"$f":"IF(Room05!$A$83=TRUE,Room05!$D85,0)","v":0},{"$f":"IF(Room06!$A$83=TRUE,Room06!$D85,0)","v":0},{"$f":"IF(Room07!$A$83=TRUE,Room07!$D85,0)","v":0},{"$f":"IF(Room08!$A$83=TRUE,Room08!$D85,0)","v":0},{"$f":"IF(Room09!$A$83=TRUE,Room09!$D85,0)","v":0},{"$f":"IF(Room10!$A$83=TRUE,Room10!$D85,0)","v":0},0]
["celkem",{"$f":"IF(B$5<3,Ceník!$C$62,IF(B$5>3,Ceník!$C$62+Ceník!$C$66))*B58","v":0},{"$f":"IF(C$5<3,Ceník!$C$62,IF(C$5>3,Ceník!$C$62+Ceník!$C$66))*C58","v":0},{"$f":"IF(D$5<3,Ceník!$C$62,IF(D$5>3,Ceník!$C$62+Ceník!$C$66))*D58","v":0},{"$f":"IF(E$5<3,Ceník!$C$62,IF(E$5>3,Ceník!$C$62+Ceník!$C$66))*E58","v":0},{"$f":"IF(F$5<3,Ceník!$C$62,IF(F$5>3,Ceník!$C$62+Ceník!$C$66))*F58","v":0},{"$f":"IF(G$5<3,Ceník!$C$62,IF(G$5>3,Ceník!$C$62+Ceník!$C$66))*G58","v":0},{"$f":"IF(H$5<3,Ceník!$C$62,IF(H$5>3,Ceník!$C$62+Ceník!$C$66))*H58","v":0},{"$f":"IF(I$5<3,Ceník!$C$62,IF(I$5>3,Ceník!$C$62+Ceník!$C$66))*I58","v":0},{"$f":"IF(J$5<3,Ceník!$C$62,IF(J$5>3,Ceník!$C$62+Ceník!$C$66))*J58","v":0},{"$f":"IF(K$5<3,Ceník!$C$62,IF(K$5>3,Ceník!$C$62+Ceník!$C$66))*K58","v":0},0,null,{"$f":"IF(L59>0,Ceník!I62,0)","v":0}]
["materiál",{"$f":"IF(B$5<3,Ceník!$D$62,IF(B$5>3,Ceník!$D$62+Ceník!$D$66))*B58","v":0},{"$f":"IF(C$5<3,Ceník!$D$62,IF(C$5>3,Ceník!$D$62+Ceník!$D$66))*C58","v":0},{"$f":"IF(D$5<3,Ceník!$D$62,IF(D$5>3,Ceník!$D$62+Ceník!$D$66))*D58","v":0},{"$f":"IF(E$5<3,Ceník!$D$62,IF(E$5>3,Ceník!$D$62+Ceník!$D$66))*E58","v":0},{"$f":"IF(F$5<3,Ceník!$D$62,IF(F$5>3,Ceník!$D$62+Ceník!$D$66))*F58","v":0},{"$f":"IF(G$5<3,Ceník!$D$62,IF(G$5>3,Ceník!$D$62+Ceník!$D$66))*G58","v":0},{"$f":"IF(H$5<3,Ceník!$D$62,IF(H$5>3,Ceník!$D$62+Ceník!$D$66))*H58","v":0},{"$f":"IF(I$5<3,Ceník!$D$62,IF(I$5>3,Ceník!$D$62+Ceník!$D$66))*I58","v":0},{"$f":"IF(J$5<3,Ceník!$D$62,IF(J$5>3,Ceník!$D$62+Ceník!$D$66))*J58","v":0},{"$f":"IF(K$5<3,Ceník!$D$62,IF(K$5>3,Ceník!$D$62+Ceník!$D$66))*K58","v":0},0]
[]
["běžná bílá",{"$f":"IF(Room01!$A88=TRUE,IF(Room01!$B90=TRUE,Room01!$D90,0),0)","v":0},{"$f":"IF(Room02!$A88=TRUE,IF(Room02!$B90=TRUE,Room02!$D90,0),0)","v":0},{"$f":"IF(Room03!$A88=TRUE,IF(Room03!$B90=TRUE,Room03!$D90,0),0)","v":0},{"$f":"IF(Room04!$A88=TRUE,IF(Room04!$B90=TRUE,Room04!$D90,0),0)","v":0},{"$f":"IF(Room05!$A88=TRUE,IF(Room05!$B90=TRUE,Room05!$D90,0),0)","v":0},{"$f":"IF(Room06!$A88=TRUE,IF(Room06!$B90=TRUE,Room06!$D90,0),0)","v":0},{"$f":"IF(Room07!$A88=TRUE,IF(Room07!$B90=TRUE,Room07!$D90,0),0)","v":0},{"$f":"IF(Room08!$A88=TRUE,IF(Room08!$B90=TRUE,Room08!$D90,0),0)","v":0},{"$f":"IF(Room09!$A88=TRUE,IF(Room09!$B90=TRUE,Room09!$D90,0),0)","v":0},{"$f":"IF(Room10!$A88=TRUE,IF(Room10!$B90=TRUE,Room10!$D90,0),0)","v":0},0]
["celkem",{"$f":"IF(B$5<3.8,Ceník!$C$67,IF(Výpočty!B$5<5,Ceník!$C$68,IF(B$5>5,Ceník!$C$69)))*B62","v":0},{"$f":"IF(C$5<3.8,Ceník!$C$67,IF(Výpočty!C$5<5,Ceník!$C$68,IF(C$5>5,Ceník!$C$69)))*C62","v":0},{"$f":"IF(D$5<3.8,Ceník!$C$67,IF(Výpočty!D$5<5,Ceník!$C$68,IF(D$5>5,Ceník!$C$69)))*D62","v":0},{"$f":"IF(E$5<3.8,Ceník!$C$67,IF(Výpočty!E$5<5,Ceník!$C$68,IF(E$5>5,Ceník!$C$69)))*E62","v":0},{"$f":"IF(F$5<3.8,Ceník!$C$67,IF(Výpočty!F$5<5,Ceník!$C$68,IF(F$5>5,Ceník!$C$69)))*F62","v":0},{"$f":"IF(G$5<3.8,Ceník!$C$67,IF(Výpočty!G$5<5,Ceník!$C$68,IF(G$5>5,Ceník!$C$69)))*G62","v":0},{"$f":"IF(H$5<3.8,Ceník!$C$67,IF(Výpočty!H$5<5,Ceník!$C$68,IF(H$5>5,Ceník!$C$69)))*H62","v":0},{"$f":"IF(I$5<3.8,Ceník!$C$67,IF(Výpočty!I$5<5,Ceník!$C$68,IF(I$5>5,Ceník!$C$69)))*I62","v":0},{"$f":"IF(J$5<3.8,Ceník!$C$67,IF(Výpočty!J$5<5,Ceník!$C$68,IF(J$5>5,Ceník!$C$69)))*J62","v":0},{"$f":"IF(K$5<3.8,Ceník!$C$67,IF(Výpočty!K$5<5,Ceník!$C$68,IF(K$5>5,Ceník!$C$69)))*K62","v":0},0,null,{"$f":"IF(L63>0,Ceník!I67,0)","v":0}]
["materiál",{"$f":"IF(B$5<3.8,Ceník!$D$67,IF(Výpočty!B$5<5,Ceník!$D$68,IF(B$5>5,Ceník!$D$69)))*B62","v":0},{"$f":"IF(C$5<3.8,Ceník!$D$67,IF(Výpočty!C$5<5,Ceník!$D$68,IF(C$5>5,Ceník!$D$69)))*C62","v":0},{"$f":"IF(D$5<3.8,Ceník!$D$67,IF(Výpočty!D$5<5,Ceník!$D$68,IF(D$5>5,Ceník!$D$69)))*D62","v":0},{"$f":"IF(E$5<3.8,Ceník!$D$67,IF(Výpočty!E$5<5,Ceník!$D$68,IF(E$5>5,Ceník!$D$69)))*E62","v":0},{"$f":"IF(F$5<3.8,Ceník!$D$67,IF(Výpočty!F$5<5,Ceník!$D$68,IF(F$5>5,Ceník!$D$69)))*F62","v":0},{"$f":"IF(G$5<3.8,Ceník!$D$67,IF(Výpočty!G$5<5,Ceník!$D$68,IF(G$5>5,Ceník!$D$69)))*G62","v":0},{"$f":"IF(H$5<3.8,Ceník!$D$67,IF(Výpočty!H$5<5,Ceník!$D$68,IF(H$5>5,Ceník!$D$69)))*H62","v":0},{"$f":"IF(I$5<3.8,Ceník!$D$67,IF(Výpočty!I$5<5,Ceník!$D$68,IF(I$5>5,Ceník!$D$69)))*I62","v":0},{"$f":"IF(J$5<3.8,Ceník!$D$67,IF(Výpočty!J$5<5,Ceník!$D$68,IF(J$5>5,Ceník!$D$69)))*J62","v":0},{"$f":"IF(K$5<3.8,Ceník!$D$67,IF(Výpočty!K$5<5,Ceník!$D$68,IF(K$5>5,Ceník!$D$69)))*K62","v":0},0]
["běžná barevná",{"$f":"IF(Room01!$A88=TRUE,IF(Room01!$B91=TRUE,Room01!$D91,0),0)","v":0},{"$f":"IF(Room02!$A88=TRUE,IF(Room02!$B91=TRUE,Room02!$D91,0),0)","v":0},{"$f":"IF(Room03!$A88=TRUE,IF(Room03!$B91=TRUE,Room03!$D91,0),0)","v":0},{"$f":"IF(Room04!$A88=TRUE,IF(Room04!$B91=TRUE,Room04!$D91,0),0)","v":0},{"$f":"IF(Room05!$A88=TRUE,IF(Room05!$B91=TRUE,Room05!$D91,0),0)","v":0},{"$f":"IF(Room06!$A88=TRUE,IF(Room06!$B91=TRUE,Room06!$D91,0),0)","v":0},{"$f":"IF(Room07!$A88=TRUE,IF(Room07!$B91=TRUE,Room07!$D91,0),0)","v":0},{"$f":"IF(Room08!$A88=TRUE,IF(Room08!$B91=TRUE,Room08!$D91,0),0)","v":0},{"$f":"IF(Room09!$A88=TRUE,IF(Room09!$B91=TRUE,Room09!$D91,0),0)","v":0},{"$f":"IF(Room10!$A88=TRUE,IF(Room10!$B91=TRUE,Room10!$D91,0),0)","v":0},0]
["celkem",{"$f":"(IF(B$5<3.8,Ceník!$C$67,IF(Výpočty!B$5<5,Ceník!$C$68,IF(B$5>5,Ceník!$C$69)))+Ceník!$C$70)*B65","v":0},{"$f":"(IF(C$5<3.8,Ceník!$C$67,IF(Výpočty!C$5<5,Ceník!$C$68,IF(C$5>5,Ceník!$C$69)))+Ceník!$C$70)*C65","v":0},{"$f":"(IF(D$5<3.8,Ceník!$C$67,IF(Výpočty!D$5<5,Ceník!$C$68,IF(D$5>5,Ceník!$C$69)))+Ceník!$C$70)*D65","v":0},{"$f":"(IF(E$5<3.8,Ceník!$C$67,IF(Výpočty!E$5<5,Ceník!$C$68,IF(E$5>5,Ceník!$C$69)))+Ceník!$C$70)*E65","v":0},{"$f":"(IF(F$5<3.8,Ceník!$C$67,IF(Výpočty!F$5<5,Ceník!$C$68,IF(F$5>5,Ceník!$C$69)))+Ceník!$C$70)*F65","v":0},{"$f":"(IF(G$5<3.8,Ceník!$C$67,IF(Výpočty!G$5<5,Ceník!$C$68,IF(G$5>5,Ceník!$C$69)))+Ceník!$C$70)*G65","v":0},{"$f":"(IF(H$5<3.8,Ceník!$C$67,IF(Výpočty!H$5<5,Ceník!$C$68,IF(H$5>5,Ceník!$C$69)))+Ceník!$C$70)*H65","v":0},{"$f":"(IF(I$5<3.8,Ceník!$C$67,IF(Výpočty!I$5<5,Ceník!$C$68,IF(I$5>5,Ceník!$C$69)))+Ceník!$C$70)*I65","v":0},{"$f":"(IF(J$5<3.8,Ceník!$C$67,IF(Výpočty!J$5<5,Ceník!$C$68,IF(J$5>5,Ceník!$C$69)))+Ceník!$C$70)*J65","v":0},{"$f":"(IF(K$5<3.8,Ceník!$C$67,IF(Výpočty!K$5<5,Ceník!$C$68,IF(K$5>5,Ceník!$C$69)))+Ceník!$C$70)*K65","v":0},0,null,{"$f":"IF(L66>0,Ceník!I67,0)","v":0}]
["materiál",{"$f":"(IF(B$5<3.8,Ceník!$D$67,IF(Výpočty!B$5<5,Ceník!$D$68,IF(B$5>5,Ceník!$D$69)))+Ceník!$D$70)*B65","v":0},{"$f":"(IF(C$5<3.8,Ceník!$D$67,IF(Výpočty!C$5<5,Ceník!$D$68,IF(C$5>5,Ceník!$D$69)))+Ceník!$D$70)*C65","v":0},{"$f":"(IF(D$5<3.8,Ceník!$D$67,IF(Výpočty!D$5<5,Ceník!$D$68,IF(D$5>5,Ceník!$D$69)))+Ceník!$D$70)*D65","v":0},{"$f":"(IF(E$5<3.8,Ceník!$D$67,IF(Výpočty!E$5<5,Ceník!$D$68,IF(E$5>5,Ceník!$D$69)))+Ceník!$D$70)*E65","v":0},{"$f":"(IF(F$5<3.8,Ceník!$D$67,IF(Výpočty!F$5<5,Ceník!$D$68,IF(F$5>5,Ceník!$D$69)))+Ceník!$D$70)*F65","v":0},{"$f":"(IF(G$5<3.8,Ceník!$D$67,IF(Výpočty!G$5<5,Ceník!$D$68,IF(G$5>5,Ceník!$D$69)))+Ceník!$D$70)*G65","v":0},{"$f":"(IF(H$5<3.8,Ceník!$D$67,IF(Výpočty!H$5<5,Ceník!$D$68,IF(H$5>5,Ceník!$D$69)))+Ceník!$D$70)*H65","v":0},{"$f":"(IF(I$5<3.8,Ceník!$D$67,IF(Výpočty!I$5<5,Ceník!$D$68,IF(I$5>5,Ceník!$D$69)))+Ceník!$D$70)*I65","v":0},{"$f":"(IF(J$5<3.8,Ceník!$D$67,IF(Výpočty!J$5<5,Ceník!$D$68,IF(J$5>5,Ceník!$D$69)))+Ceník!$D$70)*J65","v":0},{"$f":"(IF(K$5<3.8,Ceník!$D$67,IF(Výpočty!K$5<5,Ceník!$D$68,IF(K$5>5,Ceník!$D$69)))+Ceník!$D$70)*K65","v":0},0]
["omyvatelná bílá",{"$f":"IF(Room01!$A93=TRUE,IF(Room01!$B95=TRUE,Room01!$D95,0),0)","v":0},{"$f":"IF(Room02!$A93=TRUE,IF(Room02!$B95=TRUE,Room02!$D95,0),0)","v":0},{"$f":"IF(Room03!$A93=TRUE,IF(Room03!$B95=TRUE,Room03!$D95,0),0)","v":0},{"$f":"IF(Room04!$A93=TRUE,IF(Room04!$B95=TRUE,Room04!$D95,0),0)","v":0},{"$f":"IF(Room05!$A93=TRUE,IF(Room05!$B95=TRUE,Room05!$D95,0),0)","v":0},{"$f":"IF(Room06!$A93=TRUE,IF(Room06!$B95=TRUE,Room06!$D95,0),0)","v":0},{"$f":"IF(Room07!$A93=TRUE,IF(Room07!$B95=TRUE,Room07!$D95,0),0)","v":0},{"$f":"IF(Room08!$A93=TRUE,IF(Room08!$B95=TRUE,Room08!$D95,0),0)","v":0},{"$f":"IF(Room09!$A93=TRUE,IF(Room09!$B95=TRUE,Room09!$D95,0),0)","v":0},{"$f":"IF(Room10!$A93=TRUE,IF(Room10!$B95=TRUE,Room10!$D95,0),0)","v":0},0]
["celkem",{"$f":"IF(B$5<3.8,Ceník!$C$71,IF(B$5<5,Ceník!$C$72,IF(B$5>5,Ceník!$C$73)))*B68","v":0},{"$f":"IF(C$5<3.8,Ceník!$C$71,IF(C$5<5,Ceník!$C$72,IF(C$5>5,Ceník!$C$73)))*C68","v":0},{"$f":"IF(D$5<3.8,Ceník!$C$71,IF(D$5<5,Ceník!$C$72,IF(D$5>5,Ceník!$C$73)))*D68","v":0},{"$f":"IF(E$5<3.8,Ceník!$C$71,IF(E$5<5,Ceník!$C$72,IF(E$5>5,Ceník!$C$73)))*E68","v":0},{"$f":"IF(F$5<3.8,Ceník!$C$71,IF(F$5<5,Ceník!$C$72,IF(F$5>5,Ceník!$C$73)))*F68","v":0},{"$f":"IF(G$5<3.8,Ceník!$C$71,IF(G$5<5,Ceník!$C$72,IF(G$5>5,Ceník!$C$73)))*G68","v":0},{"$f":"IF(H$5<3.8,Ceník!$C$71,IF(H$5<5,Ceník!$C$72,IF(H$5>5,Ceník!$C$73)))*H68","v":0},{"$f":"IF(I$5<3.8,Ceník!$C$71,IF(I$5<5,Ceník!$C$72,IF(I$5>5,Ceník!$C$73)))*I68","v":0},{"$f":"IF(J$5<3.8,Ceník!$C$71,IF(J$5<5,Ceník!$C$72,IF(J$5>5,Ceník!$C$73)))*J68","v":0},{"$f":"IF(K$5<3.8,Ceník!$C$71,IF(K$5<5,Ceník!$C$72,IF(K$5>5,Ceník!$C$73)))*K68","v":0},0,null,{"$f":"IF(L69>0,Ceník!I67,0)","v":0}]
["materiál",{"$f":"IF(B$5<3.8,Ceník!$D$71,IF(B$5<5,Ceník!$D$72,IF(B$5>5,Ceník!$D$73)))*B68","v":0},{"$f":"IF(C$5<3.8,Ceník!$D$71,IF(C$5<5,Ceník!$D$72,IF(C$5>5,Ceník!$D$73)))*C68","v":0},{"$f":"IF(D$5<3.8,Ceník!$D$71,IF(D$5<5,Ceník!$D$72,IF(D$5>5,Ceník!$D$73)))*D68","v":0},{"$f":"IF(E$5<3.8,Ceník!$D$71,IF(E$5<5,Ceník!$D$72,IF(E$5>5,Ceník!$D$73)))*E68","v":0},{"$f":"IF(F$5<3.8,Ceník!$D$71,IF(F$5<5,Ceník!$D$72,IF(F$5>5,Ceník!$D$73)))*F68","v":0},{"$f":"IF(G$5<3.8,Ceník!$D$71,IF(G$5<5,Ceník!$D$72,IF(G$5>5,Ceník!$D$73)))*G68","v":0},{"$f":"IF(H$5<3.8,Ceník!$D$71,IF(H$5<5,Ceník!$D$72,IF(H$5>5,Ceník!$D$73)))*H68","v":0},{"$f":"IF(I$5<3.8,Ceník!$D$71,IF(I$5<5,Ceník!$D$72,IF(I$5>5,Ceník!$D$73)))*I68","v":0},{"$f":"IF(J$5<3.8,Ceník!$D$71,IF(J$5<5,Ceník!$D$72,IF(J$5>5,Ceník!$D$73)))*J68","v":0},{"$f":"IF(K$5<3.8,Ceník!$D$71,IF(K$5<5,Ceník!$D$72,IF(K$5>5,Ceník!$D$73)))*K68","v":0},0]
["omyvatelná barevná",{"$f":"IF(Room01!$A93=TRUE,IF(Room01!$B96=TRUE,Room01!$D96,0),0)","v":0},{"$f":"IF(Room02!$A93=TRUE,IF(Room02!$B96=TRUE,Room02!$D96,0),0)","v":0},{"$f":"IF(Room03!$A93=TRUE,IF(Room03!$B96=TRUE,Room03!$D96,0),0)","v":0},{"$f":"IF(Room04!$A93=TRUE,IF(Room04!$B96=TRUE,Room04!$D96,0),0)","v":0},{"$f":"IF(Room05!$A93=TRUE,IF(Room05!$B96=TRUE,Room05!$D96,0),0)","v":0},{"$f":"IF(Room06!$A93=TRUE,IF(Room06!$B96=TRUE,Room06!$D96,0),0)","v":0},{"$f":"IF(Room07!$A93=TRUE,IF(Room07!$B96=TRUE,Room07!$D96,0),0)","v":0},{"$f":"IF(Room08!$A93=TRUE,IF(Room08!$B96=TRUE,Room08!$D96,0),0)","v":0},{"$f":"IF(Room09!$A93=TRUE,IF(Room09!$B96=TRUE,Room09!$D96,0),0)","v":0},{"$f":"IF(Room10!$A93=TRUE,IF(Room10!$B96=TRUE,Room10!$D96,0),0)","v":0},0]
["celkem",{"$f":"(IF(B$5<3.8,Ceník!$C$71,IF(B$5<5,Ceník!$C$72,IF(B$5>5,Ceník!$C$73)))+Ceník!$C$74)*B71","v":0},{"$f":"(IF(C$5<3.8,Ceník!$C$71,IF(C$5<5,Ceník!$C$72,IF(C$5>5,Ceník!$C$73)))+Ceník!$C$74)*C71","v":0},{"$f":"(IF(D$5<3.8,Ceník!$C$71,IF(D$5<5,Ceník!$C$72,IF(D$5>5,Ceník!$C$73)))+Ceník!$C$74)*D71","v":0},{"$f":"(IF(E$5<3.8,Ceník!$C$71,IF(E$5<5,Ceník!$C$72,IF(E$5>5,Ceník!$C$73)))+Ceník!$C$74)*E71","v":0},{"$f":"(IF(F$5<3.8,Ceník!$C$71,IF(F$5<5,Ceník!$C$72,IF(F$5>5,Ceník!$C$73)))+Ceník!$C$74)*F71","v":0},{"$f":"(IF(G$5<3.8,Ceník!$C$71,IF(G$5<5,Ceník!$C$72,IF(G$5>5,Ceník!$C$73)))+Ceník!$C$74)*G71","v":0},{"$f":"(IF(H$5<3.8,Ceník!$C$71,IF(H$5<5,Ceník!$C$72,IF(H$5>5,Ceník!$C$73)))+Ceník!$C$74)*H71","v":0},{"$f":"(IF(I$5<3.8,Ceník!$C$71,IF(I$5<5,Ceník!$C$72,IF(I$5>5,Ceník!$C$73)))+Ceník!$C$74)*I71","v":0},{"$f":"(IF(J$5<3.8,Ceník!$C$71,IF(J$5<5,Ceník!$C$72,IF(J$5>5,Ceník!$C$73)))+Ceník!$C$74)*J71","v":0},{"$f":"(IF(K$5<3.8,Ceník!$C$71,IF(K$5<5,Ceník!$C$72,IF(K$5>5,Ceník!$C$73)))+Ceník!$C$74)*K71","v":0},0,null,{"$f":"IF(L72>0,Ceník!I67,0)","v":0}]
["materiál",{"$f":"(IF(B$5<3.8,Ceník!$D$71,IF(B$5<5,Ceník!$D$72,IF(B$5>5,Ceník!$D$73)))+Ceník!$D$74)*B71","v":0},{"$f":"(IF(C$5<3.8,Ceník!$D$71,IF(C$5<5,Ceník!$D$72,IF(C$5>5,Ceník!$D$73)))+Ceník!$D$74)*C71","v":0},{"$f":"(IF(D$5<3.8,Ceník!$D$71,IF(D$5<5,Ceník!$D$72,IF(D$5>5,Ceník!$D$73)))+Ceník!$D$74)*D71","v":0},{"$f":"(IF(E$5<3.8,Ceník!$D$71,IF(E$5<5,Ceník!$D$72,IF(E$5>5,Ceník!$D$73)))+Ceník!$D$74)*E71","v":0},{"$f":"(IF(F$5<3.8,Ceník!$D$71,IF(F$5<5,Ceník!$D$72,IF(F$5>5,Ceník!$D$73)))+Ceník!$D$74)*F71","v":0},{"$f":"(IF(G$5<3.8,Ceník!$D$71,IF(G$5<5,Ceník!$D$72,IF(G$5>5,Ceník!$D$73)))+Ceník!$D$74)*G71","v":0},{"$f":"(IF(H$5<3.8,Ceník!$D$71,IF(H$5<5,Ceník!$D$72,IF(H$5>5,Ceník!$D$73)))+Ceník!$D$74)*H71","v":0},{"$f":"(IF(I$5<3.8,Ceník!$D$71,IF(I$5<5,Ceník!$D$72,IF(I$5>5,Ceník!$D$73)))+Ceník!$D$74)*I71","v":0},{"$f":"(IF(J$5<3.8,Ceník!$D$71,IF(J$5<5,Ceník!$D$72,IF(J$5>5,Ceník!$D$73)))+Ceník!$D$74)*J71","v":0},{"$f":"(IF(K$5<3.8,Ceník!$D$71,IF(K$5<5,Ceník!$D$72,IF(K$5>5,Ceník!$D$73)))+Ceník!$D$74)*K71","v":0},0]
[]
[]
["zakrytí podlah a oken",{"$f":"B$3*Ceník!$C$14+IF(B$5<3.8,Ceník!$C$15,IF(B$5<5,Ceník!$C$16,IF(B$5>5,Ceník!$C$17)))*B$4","v":0},{"$f":"C$3*Ceník!$C$14+IF(C$5<3.8,Ceník!$C$15,IF(C$5<5,Ceník!$C$16,IF(C$5>5,Ceník!$C$17)))*C$4","v":0},{"$f":"D$3*Ceník!$C$14+IF(D$5<3.8,Ceník!$C$15,IF(D$5<5,Ceník!$C$16,IF(D$5>5,Ceník!$C$17)))*D$4","v":0},{"$f":"E$3*Ceník!$C$14+IF(E$5<3.8,Ceník!$C$15,IF(E$5<5,Ceník!$C$16,IF(E$5>5,Ceník!$C$17)))*E$4","v":0},{"$f":"F$3*Ceník!$C$14+IF(F$5<3.8,Ceník!$C$15,IF(F$5<5,Ceník!$C$16,IF(F$5>5,Ceník!$C$17)))*F$4","v":0},{"$f":"G$3*Ceník!$C$14+IF(G$5<3.8,Ceník!$C$15,IF(G$5<5,Ceník!$C$16,IF(G$5>5,Ceník!$C$17)))*G$4","v":0},{"$f":"H$3*Ceník!$C$14+IF(H$5<3.8,Ceník!$C$15,IF(H$5<5,Ceník!$C$16,IF(H$5>5,Ceník!$C$17)))*H$4","v":0},{"$f":"I$3*Ceník!$C$14+IF(I$5<3.8,Ceník!$C$15,IF(I$5<5,Ceník!$C$16,IF(I$5>5,Ceník!$C$17)))*I$4","v":0},{"$f":"J$3*Ceník!$C$14+IF(J$5<3.8,Ceník!$C$15,IF(J$5<5,Ceník!$C$16,IF(J$5>5,Ceník!$C$17)))*J$4","v":0},{"$f":"K$3*Ceník!$C$14+IF(K$5<3.8,Ceník!$C$15,IF(K$5<5,Ceník!$C$16,IF(K$5>5,Ceník!$C$17)))*K$4","v":0},{"$f":"SUM(B76:K76)","v":0}]
["materiál",{"$f":"B$3*Ceník!$D$14+IF(B$5<3.8,Ceník!$D$15,IF(B$5<5,Ceník!$D$16,IF(B$5>5,Ceník!$D$17)))*B$4","v":0},{"$f":"C$3*Ceník!$D$14+IF(C$5<3.8,Ceník!$D$15,IF(C$5<5,Ceník!$D$16,IF(C$5>5,Ceník!$D$17)))*C$4","v":0},{"$f":"D$3*Ceník!$D$14+IF(D$5<3.8,Ceník!$D$15,IF(D$5<5,Ceník!$D$16,IF(D$5>5,Ceník!$D$17)))*D$4","v":0},{"$f":"E$3*Ceník!$D$14+IF(E$5<3.8,Ceník!$D$15,IF(E$5<5,Ceník!$D$16,IF(E$5>5,Ceník!$D$17)))*E$4","v":0},{"$f":"F$3*Ceník!$D$14+IF(F$5<3.8,Ceník!$D$15,IF(F$5<5,Ceník!$D$16,IF(F$5>5,Ceník!$D$17)))*F$4","v":0},{"$f":"G$3*Ceník!$D$14+IF(G$5<3.8,Ceník!$D$15,IF(G$5<5,Ceník!$D$16,IF(G$5>5,Ceník!$D$17)))*G$4","v":0},{"$f":"H$3*Ceník!$D$14+IF(H$5<3.8,Ceník!$D$15,IF(H$5<5,Ceník!$D$16,IF(H$5>5,Ceník!$D$17)))*H$4","v":0},{"$f":"I$3*Ceník!$D$14+IF(I$5<3.8,Ceník!$D$15,IF(I$5<5,Ceník!$D$16,IF(I$5>5,Ceník!$D$17)))*I$4","v":0},{"$f":"J$3*Ceník!$D$14+IF(J$5<3.8,Ceník!$D$15,IF(J$5<5,Ceník!$D$16,IF(J$5>5,Ceník!$D$17)))*J$4","v":0},{"$f":"K$3*Ceník!$D$14+IF(K$5<3.8,Ceník!$D$15,IF(K$5<5,Ceník!$D$16,IF(K$5>5,Ceník!$D$17)))*K$4","v":0},{"$f":"SUM(B77:K77)","v":0}]
[]
["olepování páskou",{"$f":"IF(B$5<3.8,Ceník!$C$18,IF(B$5<5,Ceník!$C$19,IF(B$5>5,Ceník!$C$20)))*(B$6+B$5*4+B$4/1.5)","v":0},{"$f":"IF(C$5<3.8,Ceník!$C$18,IF(C$5<5,Ceník!$C$19,IF(C$5>5,Ceník!$C$20)))*(C$6+C$5*4+C$4/1.5)","v":0},{"$f":"IF(D$5<3.8,Ceník!$C$18,IF(D$5<5,Ceník!$C$19,IF(D$5>5,Ceník!$C$20)))*(D$6+D$5*4+D$4/1.5)","v":0},{"$f":"IF(E$5<3.8,Ceník!$C$18,IF(E$5<5,Ceník!$C$19,IF(E$5>5,Ceník!$C$20)))*(E$6+E$5*4+E$4/1.5)","v":0},{"$f":"IF(F$5<3.8,Ceník!$C$18,IF(F$5<5,Ceník!$C$19,IF(F$5>5,Ceník!$C$20)))*(F$6+F$5*4+F$4/1.5)","v":0},{"$f":"IF(G$5<3.8,Ceník!$C$18,IF(G$5<5,Ceník!$C$19,IF(G$5>5,Ceník!$C$20)))*(G$6+G$5*4+G$4/1.5)","v":0},{"$f":"IF(H$5<3.8,Ceník!$C$18,IF(H$5<5,Ceník!$C$19,IF(H$5>5,Ceník!$C$20)))*(H$6+H$5*4+H$4/1.5)","v":0},{"$f":"IF(I$5<3.8,Ceník!$C$18,IF(I$5<5,Ceník!$C$19,IF(I$5>5,Ceník!$C$20)))*(I$6+I$5*4+I$4/1.5)","v":0},{"$f":"IF(J$5<3.8,Ceník!$C$18,IF(J$5<5,Ceník!$C$19,IF(J$5>5,Ceník!$C$20)))*(J$6+J$5*4+J$4/1.5)","v":0},{"$f":"IF(K$5<3.8,Ceník!$C$18,IF(K$5<5,Ceník!$C$19,IF(K$5>5,Ceník!$C$20)))*(K$6+K$5*4+K$4/1.5)","v":0},{"$f":"SUM(B79:K79)","v":0}]
["materiál",{"$f":"IF(B$5<3.8,Ceník!$D$18,IF(B$5<5,Ceník!$D$19,IF(B$5>5,Ceník!$D$20)))*(B$6+B$5*4+B$4/1.5)","v":0},{"$f":"IF(C$5<3.8,Ceník!$D$18,IF(C$5<5,Ceník!$D$19,IF(C$5>5,Ceník!$D$20)))*(C$6+C$5*4+C$4/1.5)","v":0},{"$f":"IF(D$5<3.8,Ceník!$D$18,IF(D$5<5,Ceník!$D$19,IF(D$5>5,Ceník!$D$20)))*(D$6+D$5*4+D$4/1.5)","v":0},{"$f":"IF(E$5<3.8,Ceník!$D$18,IF(E$5<5,Ceník!$D$19,IF(E$5>5,Ceník!$D$20)))*(E$6+E$5*4+E$4/1.5)","v":0},{"$f":"IF(F$5<3.8,Ceník!$D$18,IF(F$5<5,Ceník!$D$19,IF(F$5>5,Ceník!$D$20)))*(F$6+F$5*4+F$4/1.5)","v":0},{"$f":"IF(G$5<3.8,Ceník!$D$18,IF(G$5<5,Ceník!$D$19,IF(G$5>5,Ceník!$D$20)))*(G$6+G$5*4+G$4/1.5)","v":0},{"$f":"IF(H$5<3.8,Ceník!$D$18,IF(H$5<5,Ceník!$D$19,IF(H$5>5,Ceník!$D$20)))*(H$6+H$5*4+H$4/1.5)","v":0},{"$f":"IF(I$5<3.8,Ceník!$D$18,IF(I$5<5,Ceník!$D$19,IF(I$5>5,Ceník!$D$20)))*(I$6+I$5*4+I$4/1.5)","v":0},{"$f":"IF(J$5<3.8,Ceník!$D$18,IF(J$5<5,Ceník!$D$19,IF(J$5>5,Ceník!$D$20)))*(J$6+J$5*4+J$4/1.5)","v":0},{"$f":"IF(K$5<3.8,Ceník!$D$18,IF(K$5<5,Ceník!$D$19,IF(K$5>5,Ceník!$D$20)))*(K$6+K$5*4+K$4/1.5)","v":0},{"$f":"SUM(B80:K80)","v":0}]
[]
["tmelení",{"$f":"IF(B$5<3.8,Ceník!$C$58,IF(B$5<5,Ceník!$C$59,IF(B$5>5,Ceník!$C$60)))*B$6","v":0},{"$f":"IF(C$5<3.8,Ceník!$C$58,IF(C$5<5,Ceník!$C$59,IF(C$5>5,Ceník!$C$60)))*C$6","v":0},{"$f":"IF(D$5<3.8,Ceník!$C$58,IF(D$5<5,Ceník!$C$59,IF(D$5>5,Ceník!$C$60)))*D$6","v":0},{"$f":"IF(E$5<3.8,Ceník!$C$58,IF(E$5<5,Ceník!$C$59,IF(E$5>5,Ceník!$C$60)))*E$6","v":0},{"$f":"IF(F$5<3.8,Ceník!$C$58,IF(F$5<5,Ceník!$C$59,IF(F$5>5,Ceník!$C$60)))*F$6","v":0},{"$f":"IF(G$5<3.8,Ceník!$C$58,IF(G$5<5,Ceník!$C$59,IF(G$5>5,Ceník!$C$60)))*G$6","v":0},{"$f":"IF(H$5<3.8,Ceník!$C$58,IF(H$5<5,Ceník!$C$59,IF(H$5>5,Ceník!$C$60)))*H$6","v":0},{"$f":"IF(I$5<3.8,Ceník!$C$58,IF(I$5<5,Ceník!$C$59,IF(I$5>5,Ceník!$C$60)))*I$6","v":0},{"$f":"IF(J$5<3.8,Ceník!$C$58,IF(J$5<5,Ceník!$C$59,IF(J$5>5,Ceník!$C$60)))*J$6","v":0},{"$f":"IF(K$5<3.8,Ceník!$C$58,IF(K$5<5,Ceník!$C$59,IF(K$5>5,Ceník!$C$60)))*K$6","v":0},{"$f":"SUM(B82:K82)","v":0},null,{"$f":"IF(L82>0,Ceník!I58,0)","v":0}]
["materiál",{"$f":"IF(B$5<3.8,Ceník!$D$58,IF(B$5<5,Ceník!$D$59,IF(B$5>5,Ceník!$D$60)))*B$6","v":0},{"$f":"IF(C$5<3.8,Ceník!$D$58,IF(C$5<5,Ceník!$D$59,IF(C$5>5,Ceník!$D$60)))*C$6","v":0},{"$f":"IF(D$5<3.8,Ceník!$D$58,IF(D$5<5,Ceník!$D$59,IF(D$5>5,Ceník!$D$60)))*D$6","v":0},{"$f":"IF(E$5<3.8,Ceník!$D$58,IF(E$5<5,Ceník!$D$59,IF(E$5>5,Ceník!$D$60)))*E$6","v":0},{"$f":"IF(F$5<3.8,Ceník!$D$58,IF(F$5<5,Ceník!$D$59,IF(F$5>5,Ceník!$D$60)))*F$6","v":0},{"$f":"IF(G$5<3.8,Ceník!$D$58,IF(G$5<5,Ceník!$D$59,IF(G$5>5,Ceník!$D$60)))*G$6","v":0},{"$f":"IF(H$5<3.8,Ceník!$D$58,IF(H$5<5,Ceník!$D$59,IF(H$5>5,Ceník!$D$60)))*H$6","v":0},{"$f":"IF(I$5<3.8,Ceník!$D$58,IF(I$5<5,Ceník!$D$59,IF(I$5>5,Ceník!$D$60)))*I$6","v":0},{"$f":"IF(J$5<3.8,Ceník!$D$58,IF(J$5<5,Ceník!$D$59,IF(J$5>5,Ceník!$D$60)))*J$6","v":0},{"$f":"IF(K$5<3.8,Ceník!$D$58,IF(K$5<5,Ceník!$D$59,IF(K$5>5,Ceník!$D$60)))*K$6","v":0},{"$f":"SUM(B83:K83)","v":0}]
[]
["úklid",{"$f":"B3*Ceník!$C$75+B4*Ceník!$C$76","v":0},{"$f":"C3*Ceník!$C$75+C4*Ceník!$C$76","v":0},{"$f":"D3*Ceník!$C$75+D4*Ceník!$C$76","v":0},{"$f":"E3*Ceník!$C$75+E4*Ceník!$C$76","v":0},{"$f":"F3*Ceník!$C$75+F4*Ceník!$C$76","v":0},{"$f":"G3*Ceník!$C$75+G4*Ceník!$C$76","v":0},{"$f":"H3*Ceník!$C$75+H4*Ceník!$C$76","v":0},{"$f":"I3*Ceník!$C$75+I4*Ceník!$C$76","v":0},{"$f":"J3*Ceník!$C$75+J4*Ceník!$C$76","v":0},{"$f":"K3*Ceník!$C$75+K4*Ceník!$C$76","v":0},{"$f":"SUM(B85:K85)","v":0},null,{"$f":"IF(L85>0,Ceník!I75,0)","v":0}]
["materiál",{"$f":"B3*Ceník!$D$75+B4*Ceník!$D$76","v":0},{"$f":"C3*Ceník!$D$75+C4*Ceník!$D$76","v":0},{"$f":"D3*Ceník!$D$75+D4*Ceník!$D$76","v":0},{"$f":"E3*Ceník!$D$75+E4*Ceník!$D$76","v":0},{"$f":"F3*Ceník!$D$75+F4*Ceník!$D$76","v":0},{"$f":"G3*Ceník!$D$75+G4*Ceník!$D$76","v":0},{"$f":"H3*Ceník!$D$75+H4*Ceník!$D$76","v":0},{"$f":"I3*Ceník!$D$75+I4*Ceník!$D$76","v":0},{"$f":"J3*Ceník!$D$75+J4*Ceník!$D$76","v":0},{"$f":"K3*Ceník!$D$75+K4*Ceník!$D$76","v":0},0]
[]
[]
["materiál nezávislý na konkrétní činnosti",null,null,null,null,null,null,null,null,null,null,{"$f":"SUM(L90:L105)","v":0}]
["štafle do v 3,0 m",null,null,null,null,null,null,null,null,null,null,{"$f":"IF(OR(AND(B5<3,B5>0),AND(C5<3,C5>0),AND(D5<3,D5>0),AND(E5<3,E5>0),AND(F5<3,F5>0),AND(G5<3,G5>0),AND(H5<3,H5>0),AND(I5<3,I5>0),AND(J5<3,J5>0),AND(K5<3,K5>0)),Svépomocí!B42,0)","v":0}]
["štafle nad v 3,0 m",null,null,null,null,null,null,null,null,null,null,{"$f":"IF(OR(B5>3,C5>3,D5>3,E5>3,F5>3,G5>3,H5>3,I5>3,J5>3,K5>3),Svépomocí!B43,0)","v":0}]
["míchadlo",null,null,null,null,null,null,null,null,null,null,{"$f":"IF(OR(L17>0,L24>0,L29>0,L32>0,L35>0,L38>0),Svépomocí!B44,0)","v":0}]
["hřídel do míchadla",null,null,null,null,null,null,null,null,null,null,{"$f":"IF(L92>0,Svépomocí!B45,0)","v":0}]

{"sheet":"Settings","index":5,"n_rows":113,"n_cols":10,"rows_kept":113,"cut":false,"hidden":true,"merged":[[105,0,109,8],[100,1,100,7],[87,9,87,16],[99,0,99,7],[80,0,80,7],[81,1,81,7],[82,1,82,7],[82,9,82,16],[86,0,86,7],[86,9,86,16],[92,9,92,16],[72,2,72,7],[71,2,71,7],[70,2,70,7],[75,1,75,3],[76,1,76,3],[75,5,75,6],[63,1,63,7],[68,1,68,7],[60,5,60,13],[59,5,59,13],[58,5,58,13],[57,5,57,13],[49,3,49,7],[23,9,23,16],[37,4,37,12],[38,4,38,12],[39,4,39,12],[40,4,40,12],[33,3,33,7],[34,3,34,7],[26,9,26,16],[27,9,27,16],[1,9,1,16],[1,0,1,7],[16,0,16,7],[30,2,30,7],[32,3,32,7]]}
["Úvod:"]
["Chápeme, že ne všechny práce chcete svěřit profesionálům, ať už kvůli ceně nebo z jiných důvodů, přesto vše vyplňte. Řekneme Vám, kolik by Vás práce stála od profesionálů a Vy sami se potom můžete na základě ceny rozhodnout, zda si zvolíte práci profesionála či si některou činnost zkusíte sami.\n\nRádi bychom Vás také informovali o tom, že výsledky této kalkulace předpokládají běžné bytové (i rodinné domy) podmínky, tedy pokud plánujete výmalbu atypických, sklepních, vlhkých či jinak nestandardních prostor, doporučujeme návštěvu profesionála ke konzultaci.",null,null,null,null,null,null,null,null,"Jak kalkulačku ovládat?\nKalkulačka umožňuje počítat až 10 místností zároveň a ve výsledném protokolu Vám je všechny sečte. Místnosti ovládáte tak, že si vždy zde v záložce \"Úvod\" pomocí roletky zvolíte číslo místnosti a stisknete \"Nahrát\". Od této chvíle se Vám do všech ostatních záložek nahrála zvolená místnost. Pokud chcete editovat již vyplněnou místnost, opět pouze v roletce zvolíte číslo místnosti, pro kterou jste již údaje vyplnili, a po kliknutí na tlačítko \"Nahrát\" se Vám do ostatních záložek nahrají znovu již zapsané údaje.\n\nTip pro další ovládání\nU některých otázek najdete symbol i, když na tento symbol najedete myší, zobrazí se Vám nápověda k této otázce."]
[]
["Kolik místností plánujete malovat?",null,null,null,null,"Maximum:",10,null,null,"(tolikrát zobrazit formulář)"]
[]
["Základní rozměry:"]
["Název místnosti:"]
[]
["Jelikož malování je věc rozměrová, potřebujeme znát několik málo čísel.",null,null,null,null,null,null,null,null,"Spočtěte tak, že změříte obvod místnosti a vynásobíte jej výškou místností. "]
["Jakou plochu stěn plánujete malovat (vč. otvorů)?",null,null,null,null,null,"m2",null,null,"Neodečítejte plochy otvorů jako jsou např. okna a dveře. Pozor!, ať sem nezapočtete místa, která malovat nechcete nebo nemůžete, např. za vestavěným nábytkem nebo v místě, kde máte keramické či jiné obklady a chcete je tam ponechat."]
["Jaká je podlahová plocha místnosti?",null,null,null,null,null,"m2",null,null,"Tip: Pokud má místnost složitější tvar, zkuste si jej rozdělit na pomyslné obdélníky a ty vzájemně odečtěte či přičtěte."]
["Jaká je plocha otvorů a jiných nemalovaných ploch?",null,null,null,null,null,"m2",null,null,"Okna, dveře, dvířka k revizní šachtě apod. plochy."]
["Jaká je výška místnosti?",null,null,null,null,null,"m",null,null,"Ostatní potřebné míry dopočteme za Vás."]
[]
["Podklad:"]
["Místnost: (1) ….",null,null,null,null,null,null,null,null,"(Název a číslo místnosti)"]
["Abychom Vám mohli poradit s postupem, potřebujeme vědět, jaký je stávající podklad v místě plánované malby."]
["V místě plánované malby se právě nachází:"]
["x","keramický nebo jiný obklad",null,null,null,"m2"]
["x","stará malba",null,null,null,"m2"]
["x","tapety",null,null,null,"m2"]
["x","nová omítka",null,null,null,"m2"]
["x","nová SDK deska",null,null,null,"m2"]
["x","hrubá konstrukce",null,null,null,"m2",null,null,null,"Stěna je holá, je vidět zdivo, panel…"]
[]
[null,"Malba"]
["O","Chci malbu oškrábat. (Nebo vím, že stávající malba je vápenná/latexová/klihová, a tudíž se musí oškrábat.)",null,null,null,null,null,null,null,"Vypsané barvy nejsou jako podklad pro novou barvu vhodné, později by docházelo k oprýskání a loupání nové malby."]
["O","Pokud možno chci ji jen přetřít novou malbou.",null,null,null,null,null,null,null,"Pokud se malba nachází ve vhodném stavu, je možné provést novou malbu jen jako další vrstvu bez nutnosti škrábání. Poradíme Vám, zda je to u Vás možné."]
[]
[null,"O","Na stěně se nachází nerovnosti, které mi vadí (praskliny, prohlubně, vypoukliny, stěna je \"vlnitá\", ...)."]
[null,"O","Stěna je krásně rovná nebo mi drobné nerovnosti nevadí."]
[]
[null,null,null,"V jakém je stávající malba stavu?"]
[null,null,"O","Malba se loupe, je oprýskaná nebo tvoří boule."]
[null,null,"O","Malba se jeví na pohled v pořádku."]
[]
[null,null,null,null,"Test: Vyzkoušejte následující testy a zaškrtněte pravdivé."]
[null,null,null,"x","Pokud po stěně přejedu silnějším tlakem rukou, barva se mi na ruku otře."]
[null,null,null,"x","Když malbu více namočím, ztmavne a vytvoří mazlavou skvrnu, po stírání palcem krouživými pohyby na palci ulpí mazlavá hmota."]
[null,null,null,"x","Po přilepení kusu lepící pásky pevně na stěnu a následném strhnutí na pásce ulpí větší částice."]
[null,null,null,"x","Po provedení testů se nestalo nic z výše uvedeného."]
[]
[null,"Tapety"]
["O","Tapety chci strhnout."]
["O","Pokud možno, chci je jen přetřít novou malbou."]
[]
[null,"O","Na stěně se nachází nerovnosti, které mi vadí (praskliny, prohlubně, vypoukliny, stěna je \"vlnitá\", ...)."]
[null,"O","Stěna je krásně rovná nebo mi drobné nerovnosti nevadí."]
[]
[null,null,null,"V jakém je stávající tapeta stavu?"]
[null,null,"O","Tapety se odlupují a/nebo tvoří boule."]
[null,null,"O","Tapety jsou naprosto v pořádku, nikde se neodlupují, netvoří boule, pevně drží na svém podkladu."]
[]
[null,null,null,"O","Na tapetách se žádná malba nenachází."]
[null,null,null,"O","Na tapetách se nachází malba."]
[]
[null,null,null,null,null,"Test: Vyzkoušejte následující testy a zaškrtněte pravdivé."]
[null,null,null,null,"x","Pokud po stěně přejedu silnějším tlakem rukou, barva se mi na ruku otře."]
[null,null,null,null,"x","Když malbu více namočím, ztmavne a vytvoří mazlavou skvrnu, po stírání palcem krouživými pohyby na palci ulpí mazlavá hmota."]
[null,null,null,null,"x","Po přilepení kusu lepící pásky pevně na stěnu a následném strhnutí na pásce ulpí větší částice."]
[null,null,null,null,"x","Po provedení testů se nestalo nic z výše uvedeného."]
[]
[null,"Nová omítka"]
["O","Chci opravit omítku.",null,null,null,null,null,null,null,"m2"]
[]
[null,"O","Stávající omítka je v nepoužitelném stavu, drolí se a opadává."]
[null,"O","Omítka má jen drobné nerovnosti (praskliny, prohlubně, vypoukliny, stěna je \"vlnitá\", ...)."]
[]
["O","Chci malovat  na již hotovou novou omítku.",null,null,null,null,null,null,null,"m2"]
[]
[null,"O","Omítka je oprýskaná, odlupuje se, opadává."]
[null,"O","Omítka má jen drobné nerovnosti, které mi vadí (drobné vypoukliny, či prohlubně, drobné rýhy)."]
[null,"O","Omítka je naprosto v pořádku, nikde se neodlupuje, neopadává, pevně drží na svém podkladu a nemá žádné nerovnosti, popř. mi nevadí."]
[]
["Vyskytují se v místě nové malby plísně?"]
["O","Ano, vyskytují v přibližné ploše.",null,null,null,"V přibližné ploše",null,null,"m2"]
["O","Ne, nevyskytují."]
[]
["Nová malba:"]
["Místnost: (1) ….",null,null,null,null,null,null,null,null,"(Název a číslo místnosti)"]
["Jakou bude mít malba podobu?"]
["O","Chci, aby výsledný vzhled byl hladký bez jakýchkoli vzorů."]
["O","Chci, aby výsledný vzhled byl strukturovaný (se vzorem) a proto bude pod malbou tapeta.",null,null,null,null,null,null,null,"Tyto tapety se později dají přemalovat hned několikrát, tedy v několika vrstvách, a vydrží Vám po mnoho let. Příklad můžete vidět na obrázku."]
[null,null,"bez",null,"m2"]
[null,null,"tapeta",null,"m2"]
[]
["Jakou barvu?",null,null,null,null,null,null,null,null,"Tím nemyslíme růžovou nebo zelenou, ale typ barvy."]
["O","Nemám žádné nároky, stačí mi běžná interiérová barva.",null,null,null,null,null,null,null,"V tomto případě se užívá běžná disperzní barva."]
[]
[null,"x","bílá",null,"m2"]
[null,"x","barevná",null,"m2"]
[]
["O","Mám vyšší nároky na otěruodolný nebo omyvatelný povrch.",null,null,null,null,null,null,null,"V tomto případě se užívá dražší vinylová barva. Vhodná do dětských pokojů, kde děti nežádoucně malují na stěny, nebo např. do předsíně, kde se oklepává špinavý pes. Tato barva má několik dalších výhod - vynikající přilnavost a díky své velmi tenké vrstvě se následně nemusí tak často škrábat, stačí přetřít novou barvou. Je sice dražší, ale zato se nanáší v menší vrstvě, tím se cena téměř vyrovná."]
[]
[null,"x","bílá",null,"m2"]
[null,"x","barevná",null,"m2"]
[]
[]
["Závěr:"]
["Na závěr už bychom Vás jen rádi požádali o e-mail, abychom Vám mohli zaslat celou kalkulaci v digitální podobě."]
["e-mail:","@"]
[]
[]
[]
[]
["Nová povrchová úprava\nNa základě Vámi uvedené odpovědi doporučujeme vyhotovit novou povrchovou úpravu hrubé konstrukce. Jelikož se zde nachází mnoho možností, jak tuto úpravu provést (omítka vápenná, sádrová, jiná, nebo SDK zákryt či jiné desky), rádi Vám poradíme v našem dalším modulu kalkulací, a to Kalkulačka povrchů hrubé konstrukce."]
[]
[]
[]
[]
[]
["   "]
["   "]

{"sheet":"Room01","index":6,"n_rows":101,"n_cols":10,"rows_kept":101,"cut":false,"hidden":true,"merged":[[37,4,37,12],[1,0,1,7],[16,0,16,7],[23,9,23,16],[26,9,26,16],[27,9,27,16],[30,2,30,7],[32,3,32,7],[33,3,33,7],[34,3,34,7],[38,4,38,12],[39,4,39,12],[40,4,40,12],[49,3,49,7],[75,1,75,3],[75,5,75,6],[65,2,65,7],[66,2,66,7],[68,1,68,7],[70,2,70,7],[71,2,71,7],[72,2,72,7],[87,9,87,16],[92,9,92,16],[99,0,99,7],[100,1,100,7],[76,1,76,3],[81,1,81,7],[82,1,82,7],[82,9,82,16],[86,0,86,7],[86,9,86,16]]}
[{"$f":"Settings!A1","v":"Úvod:"}]
[{"$f":"Settings!A2","v":"Chápeme, že ne všechny práce chcete svěřit profesionálům, ať už kvůli ceně nebo z jiných důvodů, přesto vše vyplňte. Řekneme Vám, kolik by Vás práce stála od profesionálů a Vy sami se potom můžete na základě ceny rozhodnout, zda si zvolíte práci profesionála či si některou činnost zkusíte sami.\n\nRádi bychom Vás také informovali o tom, že výsledky této kalkulace předpokládají běžné bytové (i rodinné domy) podmínky, tedy pokud plánujete výmalbu atypických, sklepních, vlhkých či jinak nestandardních prostor, doporučujeme návštěvu profesionála ke konzultaci."}]
[]
[{"$f":"Settings!A4","v":"Kolik místností plánujete malovat?"}]
[]
[{"$f":"Settings!A6","v":"Základní rozměry:"}]
[{"$f":"Settings!A7","v":"Název místnosti:"}]
[]
[{"$f":"Settings!A9","v":"Jelikož malování je věc rozměrová, potřebujeme znát několik málo čísel."}]
[{"$f":"Settings!A10","v":"Jakou plochu stěn plánujete malovat (vč. otvorů)?"},null,null,null,null,null,{"$f":"Settings!G10","v":"m2"},null,null,{"$f":"Settings!J10","v":"Neodečítejte plochy otvorů jako jsou např. okna a dveře. Pozor!, ať sem nezapočtete místa, která malovat nechcete nebo nemůžete, např. za vestavěným nábytkem nebo v místě, kde máte keramické či jiné obklady a chcete je tam ponechat."}]
[{"$f":"Settings!A11","v":"Jaká je podlahová plocha místnosti?"},null,null,null,null,null,{"$f":"Settings!G11","v":"m2"},null,null,{"$f":"Settings!J11","v":"Tip: Pokud má místnost složitější tvar, zkuste si jej rozdělit na pomyslné obdélníky a ty vzájemně odečtěte či přičtěte."}]
[{"$f":"Settings!A12","v":"Jaká je plocha otvorů a jiných nemalovaných ploch?"},null,null,null,null,null,{"$f":"Settings!G12","v":"m2"},null,null,{"$f":"Settings!J12","v":"Okna, dveře, dvířka k revizní šachtě apod. plochy."}]
[{"$f":"Settings!A13","v":"Jaká je výška místnosti?"},null,null,null,null,null,{"$f":"Settings!G13","v":"m"},null,null,{"$f":"Settings!J13","v":"Ostatní potřebné míry dopočteme za Vás."}]
[]
[{"$f":"Settings!A15","v":"Podklad:"}]
[{"$f":"Settings!A16","v":"Místnost: (1) …."}]
[{"$f":"Settings!A17","v":"Abychom Vám mohli poradit s postupem, potřebujeme vědět, jaký je stávající podklad v místě plánované malby."}]
[{"$f":"Settings!A18","v":"V místě plánované malby se právě nachází:"}]
[null,{"$f":"Settings!B19","v":"keramický nebo jiný obklad"},null,null,null,{"$f":"Settings!F19","v":"m2"}]
[null,{"$f":"Settings!B20","v":"stará malba"},null,null,null,{"$f":"Settings!F20","v":"m2"}]
[null,{"$f":"Settings!B21","v":"tapety"},null,null,null,{"$f":"Settings!F21","v":"m2"}]
[null,{"$f":"Settings!B22","v":"nová omítka"},null,null,null,{"$f":"Settings!F22","v":"m2"}]
[null,{"$f":"Settings!B23","v":"nová SDK deska"},null,null,null,"m2"]
[null,{"$f":"Settings!B24","v":"hrubá konstrukce"},null,null,null,{"$f":"Settings!F24","v":"m2"}]
[]
[null,{"$f":"Settings!B26","v":"Malba"}]
[null,{"$f":"Settings!B27","v":"Chci malbu oškrábat. (Nebo vím, že stávající malba je vápenná/latexová/klihová, a tudíž se musí oškrábat.)"},null,null,null,null,null,null,null,{"$f":"Settings!J27","v":"Vypsané barvy nejsou jako podklad pro novou barvu vhodné, později by docházelo k oprýskání a loupání nové malby."}]
[null,{"$f":"Settings!B28","v":"Pokud možno chci ji jen přetřít novou malbou."},null,null,null,null,null,null,null,{"$f":"Settings!J28","v":"Pokud se malba nachází ve vhodném stavu, je možné provést novou malbu jen jako další vrstvu bez nutnosti škrábání. Poradíme Vám, zda je to u Vás možné."}]
[]
[null,null,{"$f":"Settings!C30","v":"Na stěně se nachází nerovnosti, které mi vadí (praskliny, prohlubně, vypoukliny, stěna je \"vlnitá\", ...)."}]
[null,null,{"$f":"Settings!C31","v":"Stěna je krásně rovná nebo mi drobné nerovnosti nevadí."}]
[]
[null,null,null,{"$f":"Settings!D33","v":"V jakém je stávající malba stavu?"}]
[null,null,null,{"$f":"Settings!D34","v":"Malba se loupe, je oprýskaná nebo tvoří boule."}]
[null,null,null,{"$f":"Settings!D35","v":"Malba se jeví na pohled v pořádku."}]
[]
[null,null,null,null,{"$f":"Settings!E37","v":"Test: Vyzkoušejte následující testy a zaškrtněte pravdivé."}]
[null,null,null,null,{"$f":"Settings!E38","v":"Pokud po stěně přejedu silnějším tlakem rukou, barva se mi na ruku otře."}]
[null,null,null,null,{"$f":"Settings!E39","v":"Když malbu více namočím, ztmavne a vytvoří mazlavou skvrnu, po stírání palcem krouživými pohyby na palci ulpí mazlavá hmota."}]
[null,null,null,null,{"$f":"Settings!E40","v":"Po přilepení kusu lepící pásky pevně na stěnu a následném strhnutí na pásce ulpí větší částice."}]
[null,null,null,null,{"$f":"Settings!E41","v":"Po provedení testů se nestalo nic z výše uvedeného."}]
[]
[null,{"$f":"Settings!B43","v":"Tapety"}]
[null,{"$f":"Settings!B44","v":"Tapety chci strhnout."}]
[null,{"$f":"Settings!B45","v":"Pokud možno, chci je jen přetřít novou malbou."}]
[]
[null,null,{"$f":"Settings!C47","v":"Na stěně se nachází nerovnosti, které mi vadí (praskliny, prohlubně, vypoukliny, stěna je \"vlnitá\", ...)."}]
[null,null,{"$f":"Settings!C48","v":"Stěna je krásně rovná nebo mi drobné nerovnosti nevadí."}]
[]
[null,null,null,{"$f":"Settings!D50","v":"V jakém je stávající tapeta stavu?"}]
[null,null,null,{"$f":"Settings!D51","v":"Tapety se odlupují a/nebo tvoří boule."}]
[null,null,null,{"$f":"Settings!D52","v":"Tapety jsou naprosto v pořádku, nikde se neodlupují, netvoří boule, pevně drží na svém podkladu."}]
[]
[null,null,null,null,{"$f":"Settings!E54","v":"Na tapetách se žádná malba nenachází."}]
[null,null,null,null,{"$f":"Settings!E55","v":"Na tapetách se nachází malba."}]
[]
[null,null,null,null,null,{"$f":"Settings!F57","v":"Test: Vyzkoušejte následující testy a zaškrtněte pravdivé."}]
[null,null,null,null,null,{"$f":"Settings!F58","v":"Pokud po stěně přejedu silnějším tlakem rukou, barva se mi na ruku otře."}]
[null,null,null,null,null,{"$f":"Settings!F59","v":"Když malbu více namočím, ztmavne a vytvoří mazlavou skvrnu, po stírání palcem krouživými pohyby na palci ulpí mazlavá hmota."}]
[null,null,null,null,null,{"$f":"Settings!F60","v":"Po přilepení kusu lepící pásky pevně na stěnu a následném strhnutí na pásce ulpí větší částice."}]
[null,null,null,null,null,{"$f":"Settings!F61","v":"Po provedení testů se nestalo nic z výše uvedeného."}]
[]
[null,{"$f":"Settings!B63","v":"Nová omítka"}]
[null,{"$f":"Settings!B64","v":"Chci opravit omítku."},null,null,null,null,null,null,null,{"$f":"Settings!J64","v":"m2"}]
[]
[null,null,{"$f":"Settings!C66","v":"Stávající omítka je v nepoužitelném stavu, drolí se a opadává."}]
[null,null,{"$f":"Settings!C67","v":"Omítka má jen drobné nerovnosti (praskliny, prohlubně, vypoukliny, stěna je \"vlnitá\", ...)."}]
[]
[null,{"$f":"Settings!B69","v":"Chci malovat  na již hotovou novou omítku."},null,null,null,null,null,null,null,{"$f":"Settings!J69","v":"m2"}]
[]
[null,null,{"$f":"Settings!C71","v":"Omítka je oprýskaná, odlupuje se, opadává."}]
[null,null,{"$f":"Settings!C72","v":"Omítka má jen drobné nerovnosti, které mi vadí (drobné vypoukliny, či prohlubně, drobné rýhy)."}]
[null,null,{"$f":"Settings!C73","v":"Omítka je naprosto v pořádku, nikde se neodlupuje, neopadává, pevně drží na svém podkladu a nemá žádné nerovnosti, popř. mi nevadí."}]
[]
[{"$f":"Settings!A75","v":"Vyskytují se v místě nové malby plísně?"}]
[null,{"$f":"Settings!B76","v":"Ano, vyskytují v přibližné ploše."},null,null,null,{"$f":"Settings!F76","v":"V přibližné ploše"},null,null,{"$f":"Settings!I76","v":"m2"}]
[null,{"$f":"Settings!B77","v":"Ne, nevyskytují."}]
[]
[{"$f":"Settings!A79","v":"Nová malba:"}]
[{"$f":"Settings!A80","v":"Místnost: (1) …."}]
[{"$f":"Settings!A81","v":"Jakou bude mít malba podobu?"}]
[null,{"$f":"Settings!B82","v":"Chci, aby výsledný vzhled byl hladký bez jakýchkoli vzorů."}]
[null,{"$f":"Settings!B83","v":"Chci, aby výsledný vzhled byl strukturovaný (se vzorem) a proto bude pod malbou tapeta."}]
[null,null,{"$f":"Settings!C84","v":"bez"},null,{"$f":"Settings!E84","v":"m2"}]
[null,null,{"$f":"Settings!C85","v":"tapeta"},null,{"$f":"Settings!E85","v":"m2"}]
[]
[{"$f":"Settings!A87","v":"Jakou barvu?"}]
[null,{"$f":"Settings!B88","v":"Nemám žádné nároky, stačí mi běžná interiérová barva."}]
[]
[null,null,{"$f":"Settings!C90","v":"bílá"},null,{"$f":"Settings!E90","v":"m2"}]
[null,null,{"$f":"Settings!C91","v":"barevná"},null,{"$f":"Settings!E91","v":"m2"}]
[]
[null,{"$f":"Settings!B93","v":"Mám vyšší nároky na otěruodolný nebo omyvatelný povrch."}]
[]
[null,null,{"$f":"Settings!C95","v":"bílá"},null,{"$f":"Settings!E95","v":"m2"}]
[null,null,{"$f":"Settings!C96","v":"barevná"},null,{"$f":"Settings!E96","v":"m2"}]
[]
[]
[{"$f":"Settings!A99","v":"Závěr:"}]
[{"$f":"Settings!A100","v":"Na závěr už bychom Vás jen rádi požádali o e-mail, abychom Vám mohli zaslat celou kalkulaci v digitální podobě."}]
[{"$f":"Settings!A101","v":"e-mail:"}]

{"sheet":"Room02","index":7,"n_rows":101,"n_cols":10,"rows_kept":101,"cut":false,"hidden":true,"merged":[[37,4,37,12],[1,0,1,7],[16,0,16,7],[23,9,23,16],[26,1,26,7],[26,9,26,16],[27,1,27,7],[27,9,27,16],[29,2,29,7],[30,2,30,7],[32,3,32,7],[33,3,33,7],[34,3,34,7],[58,5,58,13],[38,4,38,12],[39,4,39,12],[40,4,40,12],[46,2,46,7],[47,2,47,7],[49,3,49,7],[50,3,50,7],[51,3,51,7],[53,4,53,7],[54,4,54,7],[57,5,57,13],[81,1,81,7],[59,5,59,13],[60,5,60,13],[65,2,65,7],[66,2,66,7],[68,1,68,7],[70,2,70,7],[71,2,71,7],[72,2,72,7],[75,1,75,3],[75,5,75,6],[76,1,76,3],[99,0,99,7],[100,1,100,7],[82,1,82,7],[82,9,82,16],[86,0,86,7],[86,9,86,16],[87,9,87,16],[92,9,92,16]]}
[{"$f":"Settings!A1","v":"Úvod:"}]
[{"$f":"Settings!A2","v":"Chápeme, že ne všechny práce chcete svěřit profesionálům, ať už kvůli ceně nebo z jiných důvodů, přesto vše vyplňte. Řekneme Vám, kolik by Vás práce stála od profesionálů a Vy sami se potom můžete na základě ceny rozhodnout, zda si zvolíte práci profesionála či si některou činnost zkusíte sami.\n\nRádi bychom Vás také informovali o tom, že výsledky této kalkulace předpokládají běžné bytové (i rodinné domy) podmínky, tedy pokud plánujete výmalbu atypických, sklepních, vlhkých či jinak nestandardních prostor, doporučujeme návštěvu profesionála ke konzultaci."}]
[]
[{"$f":"Settings!A4","v":"Kolik místností plánujete malovat?"}]
[]
[{"$f":"Settings!A6","v":"Základní rozměry:"}]
[{"$f":"Settings!A7","v":"Název místnosti:"}]
[]
[{"$f":"Settings!A9","v":"Jelikož malování je věc rozměrová, potřebujeme znát několik málo čísel."}]
[{"$f":"Settings!A10","v":"Jakou plochu stěn plánujete malovat (vč. otvorů)?"},null,null,null,null,null,{"$f":"Settings!G10","v":"m2"},null,null,{"$f":"Settings!J10","v":"Neodečítejte plochy otvorů jako jsou např. okna a dveře. Pozor!, ať sem nezapočtete místa, která malovat nechcete nebo nemůžete, např. za vestavěným nábytkem nebo v místě, kde máte keramické či jiné obklady a chcete je tam ponechat."}]
[{"$f":"Settings!A11","v":"Jaká je podlahová plocha místnosti?"},null,null,null,null,null,{"$f":"Settings!G11","v":"m2"},null,null,{"$f":"Settings!J11","v":"Tip: Pokud má místnost složitější tvar, zkuste si jej rozdělit na pomyslné obdélníky a ty vzájemně odečtěte či přičtěte."}]
[{"$f":"Settings!A12","v":"Jaká je plocha otvorů a jiných nemalovaných ploch?"},null,null,null,null,null,{"$f":"Settings!G12","v":"m2"},null,null,{"$f":"Settings!J12","v":"Okna, dveře, dvířka k revizní šachtě apod. plochy."}]
[{"$f":"Settings!A13","v":"Jaká je výška místnosti?"},null,null,null,null,null,{"$f":"Settings!G13","v":"m"},null,null,{"$f":"Settings!J13","v":"Ostatní potřebné míry dopočteme za Vás."}]
[]
[{"$f":"Settings!A15","v":"Podklad:"}]
[{"$f":"Settings!A16","v":"Místnost: (1) …."}]
[{"$f":"Settings!A17","v":"Abychom Vám mohli poradit s postupem, potřebujeme vědět, jaký je stávající podklad v místě plánované malby."}]
[{"$f":"Settings!A18","v":"V místě plánované malby se právě nachází:"}]
[null,{"$f":"Settings!B19","v":"keramický nebo jiný obklad"},null,null,null,{"$f":"Settings!F19","v":"m2"}]
[null,{"$f":"Settings!B20","v":"stará malba"},null,null,null,{"$f":"Settings!F20","v":"m2"}]
[null,{"$f":"Settings!B21","v":"tapety"},null,null,null,{"$f":"Settings!F21","v":"m2"}]
[null,{"$f":"Settings!B22","v":"nová omítka"},null,null,null,{"$f":"Settings!F22","v":"m2"}]
[null,{"$f":"Settings!B23","v":"nová SDK deska"},null,null,null,"m2"]
[null,{"$f":"Settings!B24","v":"hrubá konstrukce"},null,null,null,{"$f":"Settings!F24","v":"m2"}]
[]
[null,{"$f":"Settings!B26","v":"Malba"}]
[null,{"$f":"Settings!B27","v":"Chci malbu oškrábat. (Nebo vím, že stávající malba je vápenná/latexová/klihová, a tudíž se musí oškrábat.)"},null,null,null,null,null,null,null,{"$f":"Settings!J27","v":"Vypsané barvy nejsou jako podklad pro novou barvu vhodné, později by docházelo k oprýskání a loupání nové malby."}]
[null,{"$f":"Settings!B28","v":"Pokud možno chci ji jen přetřít novou malbou."},null,null,null,null,null,null,null,{"$f":"Settings!J28","v":"Pokud se malba nachází ve vhodném stavu, je možné provést novou malbu jen jako další vrstvu bez nutnosti škrábání. Poradíme Vám, zda je to u Vás možné."}]
[]
[null,null,{"$f":"Settings!C30","v":"Na stěně se nachází nerovnosti, které mi vadí (praskliny, prohlubně, vypoukliny, stěna je \"vlnitá\", ...)."}]
[null,null,{"$f":"Settings!C31","v":"Stěna je krásně rovná nebo mi drobné nerovnosti nevadí."}]
[]
[null,null,null,{"$f":"Settings!D33","v":"V jakém je stávající malba stavu?"}]
[null,null,null,{"$f":"Settings!D34","v":"Malba se loupe, je oprýskaná nebo tvoří boule."}]
[null,null,null,{"$f":"Settings!D35","v":"Malba se jeví na pohled v pořádku."}]
[]
[null,null,null,null,{"$f":"Settings!E37","v":"Test: Vyzkoušejte následující testy a zaškrtněte pravdivé."}]
[null,null,null,null,{"$f":"Settings!E38","v":"Pokud po stěně přejedu silnějším tlakem rukou, barva se mi na ruku otře."}]
[null,null,null,null,{"$f":"Settings!E39","v":"Když malbu více namočím, ztmavne a vytvoří mazlavou skvrnu, po stírání palcem krouživými pohyby na palci ulpí mazlavá hmota."}]
[null,null,null,null,{"$f":"Settings!E40","v":"Po přilepení kusu lepící pásky pevně na stěnu a následném strhnutí na pásce ulpí větší částice."}]
[null,null,null,null,{"$f":"Settings!E41","v":"Po provedení testů se nestalo nic z výše uvedeného."}]
[]
[null,{"$f":"Settings!B43","v":"Tapety"}]
[null,{"$f":"Settings!B44","v":"Tapety chci strhnout."}]
[null,{"$f":"Settings!B45","v":"Pokud možno, chci je jen přetřít novou malbou."}]
[]
[null,null,{"$f":"Settings!C47","v":"Na stěně se nachází nerovnosti, které mi vadí (praskliny, prohlubně, vypoukliny, stěna je \"vlnitá\", ...)."}]
[null,null,{"$f":"Settings!C48","v":"Stěna je krásně rovná nebo mi drobné nerovnosti nevadí."}]
[]
[null,null,null,{"$f":"Settings!D50","v":"V jakém je stávající tapeta stavu?"}]
[null,null,null,{"$f":"Settings!D51","v":"Tapety se odlupují a/nebo tvoří boule."}]
[null,null,null,{"$f":"Settings!D52","v":"Tapety jsou naprosto v pořádku, nikde se neodlupují, netvoří boule, pevně drží na svém podkladu."}]
[]
[null,null,null,null,{"$f":"Settings!E54","v":"Na tapetách se žádná malba nenachází."}]
[null,null,null,null,{"$f":"Settings!E55","v":"Na tapetách se nachází malba."}]
[]
[null,null,null,null,null,{"$f":"Settings!F57","v":"Test: Vyzkoušejte následující testy a zaškrtněte pravdivé."}]
[null,null,null,null,null,{"$f":"Settings!F58","v":"Pokud po stěně přejedu silnějším tlakem rukou, barva se mi na ruku otře."}]
[null,null,null,null,null,{"$f":"Settings!F59","v":"Když malbu více namočím, ztmavne a vytvoří mazlavou skvrnu, po stírání palcem krouživými pohyby na palci ulpí mazlavá hmota."}]
[null,null,null,null,null,{"$f":"Settings!F60","v":"Po přilepení kusu lepící pásky pevně na stěnu a následném strhnutí na pásce ulpí větší částice."}]
[null,null,null,null,null,{"$f":"Settings!F61","v":"Po provedení testů se nestalo nic z výše uvedeného."}]
[]
[null,{"$f":"Settings!B63","v":"Nová omítka"}]
[null,{"$f":"Settings!B64","v":"Chci opravit omítku."},null,null,null,null,null,null,null,{"$f":"Settings!J64","v":"m2"}]
[]
[null,null,{"$f":"Settings!C66","v":"Stávající omítka je v nepoužitelném stavu, drolí se a opadává."}]
[null,null,{"$f":"Settings!C67","v":"Omítka má jen drobné nerovnosti (praskliny, prohlubně, vypoukliny, stěna je \"vlnitá\", ...)."}]
[]
[null,{"$f":"Settings!B69","v":"Chci malovat  na již hotovou novou omítku."},null,null,null,null,null,null,null,{"$f":"Settings!J69","v":"m2"}]
[]
[null,null,{"$f":"Settings!C71","v":"Omítka je oprýskaná, odlupuje se, opadává."}]
[null,null,{"$f":"Settings!C72","v":"Omítka má jen drobné nerovnosti, které mi vadí (drobné vypoukliny, či prohlubně, drobné rýhy)."}]
[null,null,{"$f":"Settings!C73","v":"Omítka je naprosto v pořádku, nikde se neodlupuje, neopadává, pevně drží na svém podkladu a nemá žádné nerovnosti, popř. mi nevadí."}]
[]
[{"$f":"Settings!A75","v":"Vyskytují se v místě nové malby plísně?"}]
[null,{"$f":"Settings!B76","v":"Ano, vyskytují v přibližné ploše."},null,null,null,{"$f":"Settings!F76","v":"V přibližné ploše"},null,null,{"$f":"Settings!I76","v":"m2"}]
[null,{"$f":"Settings!B77","v":"Ne, nevyskytují."}]
[]
[{"$f":"Settings!A79","v":"Nová malba:"}]
[{"$f":"Settings!A80","v":"Místnost: (1) …."}]
[{"$f":"Settings!A81","v":"Jakou bude mít malba podobu?"}]
[null,{"$f":"Settings!B82","v":"Chci, aby výsledný vzhled byl hladký bez jakýchkoli vzorů."}]
[null,{"$f":"Settings!B83","v":"Chci, aby výsledný vzhled byl strukturovaný (se vzorem) a proto bude pod malbou tapeta."}]
[null,null,{"$f":"Settings!C84","v":"bez"},null,{"$f":"Settings!E84","v":"m2"}]
[null,null,{"$f":"Settings!C85","v":"tapeta"},null,{"$f":"Settings!E85","v":"m2"}]
[]
[{"$f":"Settings!A87","v":"Jakou barvu?"}]
[null,{"$f":"Settings!B88","v":"Nemám žádné nároky, stačí mi běžná interiérová barva."}]
[]
[null,null,{"$f":"Settings!C90","v":"bílá"},null,{"$f":"Settings!E90","v":"m2"}]
[null,null,{"$f":"Settings!C91","v":"barevná"},null,{"$f":"Settings!E91","v":"m2"}]
[]
[null,{"$f":"Settings!B93","v":"Mám vyšší nároky na otěruodolný nebo omyvatelný povrch."}]
[]
[null,null,{"$f":"Settings!C95","v":"bílá"},null,{"$f":"Settings!E95","v":"m2"}]
[null,null,{"$f":"Settings!C96","v":"barevná"},null,{"$f":"Settings!E96","v":"m2"}]
[]
[]
[{"$f":"Settings!A99","v":"Závěr:"}]
[{"$f":"Settings!A100","v":"Na závěr už bychom Vás jen rádi požádali o e-mail, abychom Vám mohli zaslat celou kalkulaci v digitální podobě."}]
[{"$f":"Settings!A101","v":"e-mail:"}]

{"sheet":"Room03","index":8,"n_rows":101,"n_cols":10,"rows_kept":101,"cut":false,"hidden":true,"merged":[[37,4,37,12],[1,0,1,7],[16,0,16,7],[23,9,23,16],[26,1,26,7],[26,9,26,16],[27,1,27,7],[27,9,27,16],[29,2,29,7],[30,2,30,7],[32,3,32,7],[33,3,33,7],[34,3,34,7],[58,5,58,13],[38,4,38,12],[39,4,39,12],[40,4,40,12],[46,2,46,7],[47,2,47,7],[49,3,49,7],[50,3,50,7],[51,3,51,7],[53,4,53,7],[54,4,54,7],[57,5,57,13],[81,1,81,7],[59,5,59,13],[60,5,60,13],[65,2,65,7],[66,2,66,7],[68,1,68,7],[70,2,70,7],[71,2,71,7],[72,2,72,7],[75,1,75,3],[75,5,75,6],[76,1,76,3],[99,0,99,7],[100,1,100,7],[82,1,82,7],[82,9,82,16],[86,0,86,7],[86,9,86,16],[87,9,87,16],[92,9,92,16]]}
[{"$f":"Settings!A1","v":"Úvod:"}]
[{"$f":"Settings!A2","v":"Chápeme, že ne všechny práce chcete svěřit profesionálům, ať už kvůli ceně nebo z jiných důvodů, přesto vše vyplňte. Řekneme Vám, kolik by Vás práce stála od profesionálů a Vy sami se potom můžete na základě ceny rozhodnout, zda si zvolíte práci profesionála či si některou činnost zkusíte sami.\n\nRádi bychom Vás také informovali o tom, že výsledky této kalkulace předpokládají běžné bytové (i rodinné domy) podmínky, tedy pokud plánujete výmalbu atypických, sklepních, vlhkých či jinak nestandardních prostor, doporučujeme návštěvu profesionála ke konzultaci."}]
[]
[{"$f":"Settings!A4","v":"Kolik místností plánujete malovat?"}]
[]
[{"$f":"Settings!A6","v":"Základní rozměry:"}]
[{"$f":"Settings!A7","v":"Název místnosti:"}]
[]
[{"$f":"Settings!A9","v":"Jelikož malování je věc rozměrová, potřebujeme znát několik málo čísel."}]
[{"$f":"Settings!A10","v":"Jakou plochu stěn plánujete malovat (vč. otvorů)?"},null,null,null,null,null,{"$f":"Settings!G10","v":"m2"},null,null,{"$f":"Settings!J10","v":"Neodečítejte plochy otvorů jako jsou např. okna a dveře. Pozor!, ať sem nezapočtete místa, která malovat nechcete nebo nemůžete, např. za vestavěným nábytkem nebo v místě, kde máte keramické či jiné obklady a chcete je tam ponechat."}]
[{"$f":"Settings!A11","v":"Jaká je podlahová plocha místnosti?"},null,null,null,null,null,{"$f":"Settings!G11","v":"m2"},null,null,{"$f":"Settings!J11","v":"Tip: Pokud má místnost složitější tvar, zkuste si jej rozdělit na pomyslné obdélníky a ty vzájemně odečtěte či přičtěte."}]
[{"$f":"Settings!A12","v":"Jaká je plocha otvorů a jiných nemalovaných ploch?"},null,null,null,null,null,{"$f":"Settings!G12","v":"m2"},null,null,{"$f":"Settings!J12","v":"Okna, dveře, dvířka k revizní šachtě apod. plochy."}]
[{"$f":"Settings!A13","v":"Jaká je výška místnosti?"},null,null,null,null,null,{"$f":"Settings!G13","v":"m"},null,null,{"$f":"Settings!J13","v":"Ostatní potřebné míry dopočteme za Vás."}]
[]
[{"$f":"Settings!A15","v":"Podklad:"}]
[{"$f":"Settings!A16","v":"Místnost: (1) …."}]
[{"$f":"Settings!A17","v":"Abychom Vám mohli poradit s postupem, potřebujeme vědět, jaký je stávající podklad v místě plánované malby."}]
[{"$f":"Settings!A18","v":"V místě plánované malby se právě nachází:"}]
[null,{"$f":"Settings!B19","v":"keramický nebo jiný obklad"},null,null,null,{"$f":"Settings!F19","v":"m2"}]
[null,{"$f":"Settings!B20","v":"stará malba"},null,null,null,{"$f":"Settings!F20","v":"m2"}]
[null,{"$f":"Settings!B21","v":"tapety"},null,null,null,{"$f":"Settings!F21","v":"m2"}]
[null,{"$f":"Settings!B22","v":"nová omítka"},null,null,null,{"$f":"Settings!F22","v":"m2"}]
[null,{"$f":"Settings!B23","v":"nová SDK deska"},null,null,null,"m2"]
[null,{"$f":"Settings!B24","v":"hrubá konstrukce"},null,null,null,{"$f":"Settings!F24","v":"m2"}]
[]
[null,{"$f":"Settings!B26","v":"Malba"}]
[null,{"$f":"Settings!B27","v":"Chci malbu oškrábat. (Nebo vím, že stávající malba je vápenná/latexová/klihová, a tudíž se musí oškrábat.)"},null,null,null,null,null,null,null,{"$f":"Settings!J27","v":"Vypsané barvy nejsou jako podklad pro novou barvu vhodné, později by docházelo k oprýskání a loupání nové malby."}]
[null,{"$f":"Settings!B28","v":"Pokud možno chci ji jen přetřít novou malbou."},null,null,null,null,null,null,null,{"$f":"Settings!J28","v":"Pokud se malba nachází ve vhodném stavu, je možné provést novou malbu jen jako další vrstvu bez nutnosti škrábání. Poradíme Vám, zda je to u Vás možné."}]
[]
[null,null,{"$f":"Settings!C30","v":"Na stěně se nachází nerovnosti, které mi vadí (praskliny, prohlubně, vypoukliny, stěna je \"vlnitá\", ...)."}]
[null,null,{"$f":"Settings!C31","v":"Stěna je krásně rovná nebo mi drobné nerovnosti nevadí."}]
[]
[null,null,null,{"$f":"Settings!D33","v":"V jakém je stávající malba stavu?"}]
[null,null,null,{"$f":"Settings!D34","v":"Malba se loupe, je oprýskaná nebo tvoří boule."}]
[null,null,null,{"$f":"Settings!D35","v":"Malba se jeví na pohled v pořádku."}]
[]
[null,null,null,null,{"$f":"Settings!E37","v":"Test: Vyzkoušejte následující testy a zaškrtněte pravdivé."}]
[null,null,null,null,{"$f":"Settings!E38","v":"Pokud po stěně přejedu silnějším tlakem rukou, barva se mi na ruku otře."}]
[null,null,null,null,{"$f":"Settings!E39","v":"Když malbu více namočím, ztmavne a vytvoří mazlavou skvrnu, po stírání palcem krouživými pohyby na palci ulpí mazlavá hmota."}]
[null,null,null,null,{"$f":"Settings!E40","v":"Po přilepení kusu lepící pásky pevně na stěnu a následném strhnutí na pásce ulpí větší částice."}]
[null,null,null,null,{"$f":"Settings!E41","v":"Po provedení testů se nestalo nic z výše uvedeného."}]
[]
[null,{"$f":"Settings!B43","v":"Tapety"}]
[null,{"$f":"Settings!B44","v":"Tapety chci strhnout."}]
[null,{"$f":"Settings!B45","v":"Pokud možno, chci je jen přetřít novou malbou."}]
[]
[null,null,{"$f":"Settings!C47","v":"Na stěně se nachází nerovnosti, které mi vadí (praskliny, prohlubně, vypoukliny, stěna je \"vlnitá\", ...)."}]
[null,null,{"$f":"Settings!C48","v":"Stěna je krásně rovná nebo mi drobné nerovnosti nevadí."}]
[]
[null,null,null,{"$f":"Settings!D50","v":"V jakém je stávající tapeta stavu?"}]
[null,null,null,{"$f":"Settings!D51","v":"Tapety se odlupují a/nebo tvoří boule."}]
[null,null,null,{"$f":"Settings!D52","v":"Tapety jsou naprosto v pořádku, nikde se neodlupují, netvoří boule, pevně drží na svém podkladu."}]
[]
[null,null,null,null,{"$f":"Settings!E54","v":"Na tapetách se žádná malba nenachází."}]
[null,null,null,null,{"$f":"Settings!E55","v":"Na tapetách se nachází malba."}]
[]
[null,null,null,null,null,{"$f":"Settings!F57","v":"Test: Vyzkoušejte následující testy a zaškrtněte pravdivé."}]
[null,null,null,null,null,{"$f":"Settings!F58","v":"Pokud po stěně přejedu silnějším tlakem rukou, barva se mi na ruku otře."}]
[null,null,null,null,null,{"$f":"Settings!F59","v":"Když malbu více namočím, ztmavne a vytvoří mazlavou skvrnu, po stírání palcem krouživými pohyby na palci ulpí mazlavá hmota."}]
[null,null,null,null,null,{"$f":"Settings!F60","v":"Po přilepení kusu lepící pásky pevně na stěnu a následném strhnutí na pásce ulpí větší částice."}]
[null,null,null,null,null,{"$f":"Settings!F61","v":"Po provedení testů se nestalo nic z výše uvedeného."}]
[]
[null,{"$f":"Settings!B63","v":"Nová omítka"}]
[null,{"$f":"Settings!B64","v":"Chci opravit omítku."},null,null,null,null,null,null,null,{"$f":"Settings!J64","v":"m2"}]
[]
[null,null,{"$f":"Settings!C66","v":"Stávající omítka je v nepoužitelném stavu, drolí se a opadává."}]
[null,null,{"$f":"Settings!C67","v":"Omítka má jen drobné nerovnosti (praskliny, prohlubně, vypoukliny, stěna je \"vlnitá\", ...)."}]
[]
[null,{"$f":"Settings!B69","v":"Chci malovat  na již hotovou novou omítku."},null,null,null,null,null,null,null,{"$f":"Settings!J69","v":"m2"}]
[]
[null,null,{"$f":"Settings!C71","v":"Omítka je oprýskaná, odlupuje se, opadává."}]
[null,null,{"$f":"Settings!C72","v":"Omítka má jen drobné nerovnosti, které mi vadí (drobné vypoukliny, či prohlubně, drobné rýhy)."}]
[null,null,{"$f":"Settings!C73","v":"Omítka je naprosto v pořádku, nikde se neodlupuje, neopadává, pevně drží na svém podkladu a nemá žádné nerovnosti, popř. mi nevadí."}]
[]
[{"$f":"Settings!A75","v":"Vyskytují se v místě nové malby plísně?"}]
[null,{"$f":"Settings!B76","v":"Ano, vyskytují v přibližné ploše."},null,null,null,{"$f":"Settings!F76","v":"V přibližné ploše"},null,null,{"$f":"Settings!I76","v":"m2"}]
[null,{"$f":"Settings!B77","v":"Ne, nevyskytují."}]
[]
[{"$f":"Settings!A79","v":"Nová malba:"}]
[{"$f":"Settings!A80","v":"Místnost: (1) …."}]
[{"$f":"Settings!A81","v":"Jakou bude mít malba podobu?"}]
[null,{"$f":"Settings!B82","v":"Chci, aby výsledný vzhled byl hladký bez jakýchkoli vzorů."}]
[null,{"$f":"Settings!B83","v":"Chci, aby výsledný vzhled byl strukturovaný (se vzorem) a proto bude pod malbou tapeta."}]
[null,null,{"$f":"Settings!C84","v":"bez"},null,{"$f":"Settings!E84","v":"m2"}]
[null,null,{"$f":"Settings!C85","v":"tapeta"},null,{"$f":"Settings!E85","v":"m2"}]
[]
[{"$f":"Settings!A87","v":"Jakou barvu?"}]
[null,{"$f":"Settings!B88","v":"Nemám žádné nároky, stačí mi běžná interiérová barva."}]
[]
[null,null,{"$f":"Settings!C90","v":"bílá"},null,{"$f":"Settings!E90","v":"m2"}]
[null,null,{"$f":"Settings!C91","v":"barevná"},null,{"$f":"Settings!E91","v":"m2"}]
[]
[null,{"$f":"Settings!B93","v":"Mám vyšší nároky na otěruodolný nebo omyvatelný povrch."}]
[]
[null,null,{"$f":"Settings!C95","v":"bílá"},null,{"$f":"Settings!E95","v":"m2"}]
[null,null,{"$f":"Settings!C96","v":"barevná"},null,{"$f":"Settings!E96","v":"m2"}]
[]
[]
[{"$f":"Settings!A99","v":"Závěr:"}]
[{"$f":"Settings!A100","v":"Na závěr už bychom Vás jen rádi požádali o e-mail, abychom Vám mohli zaslat celou kalkulaci v digitální podobě."}]
[{"$f":"Settings!A101","v":"e-mail:"}]

{"sheet":"Room04","index":9,"n_rows":101,"n_cols":10,"rows_kept":101,"cut":false,"hidden":true,"merged":[[37,4,37,12],[1,0,1,7],[16,0,16,7],[23,9,23,16],[26,1,26,7],[26,9,26,16],[27,1,27,7],[27,9,27,16],[29,2,29,7],[30,2,30,7],[32,3,32,7],[33,3,33,7],[34,3,34,7],[58,5,58,13],[38,4,38,12],[39,4,39,12],[40,4,40,12],[46,2,46,7],[47,2,47,7],[49,3,49,7],[50,3,50,7],[51,3,51,7],[53,4,53,7],[54,4,54,7],[57,5,57,13],[81,1,81,7],[59,5,59,13],[60,5,60,13],[65,2,65,7],[66,2,66,7],[68,1,68,7],[70,2,70,7],[71,2,71,7],[72,2,72,7],[75,1,75,3],[75,5,75,6],[76,1,76,3],[99,0,99,7],[100,1,100,7],[82,1,82,7],[82,9,82,16],[86,0,86,7],[86,9,86,16],[87,9,87,16],[92,9,92,16]]}
[{"$f":"Settings!A1","v":"Úvod:"}]
[{"$f":"Settings!A2","v":"Chápeme, že ne všechny práce chcete svěřit profesionálům, ať už kvůli ceně nebo z jiných důvodů, přesto vše vyplňte. Řekneme Vám, kolik by Vás práce stála od profesionálů a Vy sami se potom můžete na základě ceny rozhodnout, zda si zvolíte práci profesionála či si některou činnost zkusíte sami.\n\nRádi bychom Vás také informovali o tom, že výsledky této kalkulace předpokládají běžné bytové (i rodinné domy) podmínky, tedy pokud plánujete výmalbu atypických, sklepních, vlhkých či jinak nestandardních prostor, doporučujeme návštěvu profesionála ke konzultaci."}]
[]
[{"$f":"Settings!A4","v":"Kolik místností plánujete malovat?"}]
[]
[{"$f":"Settings!A6","v":"Základní rozměry:"}]
[{"$f":"Settings!A7","v":"Název místnosti:"}]
[]
[{"$f":"Settings!A9","v":"Jelikož malování je věc rozměrová, potřebujeme znát několik málo čísel."}]
[{"$f":"Settings!A10","v":"Jakou plochu stěn plánujete malovat (vč. otvorů)?"},null,null,null,null,null,{"$f":"Settings!G10","v":"m2"},null,null,{"$f":"Settings!J10","v":"Neodečítejte plochy otvorů jako jsou např. okna a dveře. Pozor!, ať sem nezapočtete místa, která malovat nechcete nebo nemůžete, např. za vestavěným nábytkem nebo v místě, kde máte keramické či jiné obklady a chcete je tam ponechat."}]
[{"$f":"Settings!A11","v":"Jaká je podlahová plocha místnosti?"},null,null,null,null,null,{"$f":"Settings!G11","v":"m2"},null,null,{"$f":"Settings!J11","v":"Tip: Pokud má místnost složitější tvar, zkuste si jej rozdělit na pomyslné obdélníky a ty vzájemně odečtěte či přičtěte."}]
[{"$f":"Settings!A12","v":"Jaká je plocha otvorů a jiných nemalovaných ploch?"},null,null,null,null,null,{"$f":"Settings!G12","v":"m2"},null,null,{"$f":"Settings!J12","v":"Okna, dveře, dvířka k revizní šachtě apod. plochy."}]
[{"$f":"Settings!A13","v":"Jaká je výška místnosti?"},null,null,null,null,null,{"$f":"Settings!G13","v":"m"},null,null,{"$f":"Settings!J13","v":"Ostatní potřebné míry dopočteme za Vás."}]
[]
[{"$f":"Settings!A15","v":"Podklad:"}]
[{"$f":"Settings!A16","v":"Místnost: (1) …."}]
[{"$f":"Settings!A17","v":"Abychom Vám mohli poradit s postupem, potřebujeme vědět, jaký je stávající podklad v místě plánované malby."}]
[{"$f":"Settings!A18","v":"V místě plánované malby se právě nachází:"}]
[null,{"$f":"Settings!B19","v":"keramický nebo jiný obklad"},null,null,null,{"$f":"Settings!F19","v":"m2"}]
[null,{"$f":"Settings!B20","v":"stará malba"},null,null,null,{"$f":"Settings!F20","v":"m2"}]
[null,{"$f":"Settings!B21","v":"tapety"},null,null,null,{"$f":"Settings!F21","v":"m2"}]
[null,{"$f":"Settings!B22","v":"nová omítka"},null,null,null,{"$f":"Settings!F22","v":"m2"}]
[null,{"$f":"Settings!B23","v":"nová SDK deska"},null,null,null,"m2"]
[null,{"$f":"Settings!B24","v":"hrubá konstrukce"},null,null,null,{"$f":"Settings!F24","v":"m2"}]
[]
[null,{"$f":"Settings!B26","v":"Malba"}]
[null,{"$f":"Settings!B27","v":"Chci malbu oškrábat. (Nebo vím, že stávající malba je vápenná/latexová/klihová, a tudíž se musí oškrábat.)"},null,null,null,null,null,null,null,{"$f":"Settings!J27","v":"Vypsané barvy nejsou jako podklad pro novou barvu vhodné, později by docházelo k oprýskání a loupání nové malby."}]
[null,{"$f":"Settings!B28","v":"Pokud možno chci ji jen přetřít novou malbou."},null,null,null,null,null,null,null,{"$f":"Settings!J28","v":"Pokud se malba nachází ve vhodném stavu, je možné provést novou malbu jen jako další vrstvu bez nutnosti škrábání. Poradíme Vám, zda je to u Vás možné."}]
[]
[null,null,{"$f":"Settings!C30","v":"Na stěně se nachází nerovnosti, které mi vadí (praskliny, prohlubně, vypoukliny, stěna je \"vlnitá\", ...)."}]
[null,null,{"$f":"Settings!C31","v":"Stěna je krásně rovná nebo mi drobné nerovnosti nevadí."}]
[]
[null,null,null,{"$f":"Settings!D33","v":"V jakém je stávající malba stavu?"}]
[null,null,null,{"$f":"Settings!D34","v":"Malba se loupe, je oprýskaná nebo tvoří boule."}]
[null,null,null,{"$f":"Settings!D35","v":"Malba se jeví na pohled v pořádku."}]
[]
[null,null,null,null,{"$f":"Settings!E37","v":"Test: Vyzkoušejte následující testy a zaškrtněte pravdivé."}]
[null,null,null,null,{"$f":"Settings!E38","v":"Pokud po stěně přejedu silnějším tlakem rukou, barva se mi na ruku otře."}]
[null,null,null,null,{"$f":"Settings!E39","v":"Když malbu více namočím, ztmavne a vytvoří mazlavou skvrnu, po stírání palcem krouživými pohyby na palci ulpí mazlavá hmota."}]
[null,null,null,null,{"$f":"Settings!E40","v":"Po přilepení kusu lepící pásky pevně na stěnu a následném strhnutí na pásce ulpí větší částice."}]
[null,null,null,null,{"$f":"Settings!E41","v":"Po provedení testů se nestalo nic z výše uvedeného."}]
[]
[null,{"$f":"Settings!B43","v":"Tapety"}]
[null,{"$f":"Settings!B44","v":"Tapety chci strhnout."}]
[null,{"$f":"Settings!B45","v":"Pokud možno, chci je jen přetřít novou malbou."}]
[]
[null,null,{"$f":"Settings!C47","v":"Na stěně se nachází nerovnosti, které mi vadí (praskliny, prohlubně, vypoukliny, stěna je \"vlnitá\", ...)."}]
[null,null,{"$f":"Settings!C48","v":"Stěna je krásně rovná nebo mi drobné nerovnosti nevadí."}]
[]
[null,null,null,{"$f":"Settings!D50","v":"V jakém je stávající tapeta stavu?"}]
[null,null,null,{"$f":"Settings!D51","v":"Tapety se odlupují a/nebo tvoří boule."}]
[null,null,null,{"$f":"Settings!D52","v":"Tapety jsou naprosto v pořádku, nikde se neodlupují, netvoří boule, pevně drží na svém podkladu."}]
[]
[null,null,null,null,{"$f":"Settings!E54","v":"Na tapetách se žádná malba nenachází."}]
[null,null,null,null,{"$f":"Settings!E55","v":"Na tapetách se nachází malba."}]
[]
[null,null,null,null,null,{"$f":"Settings!F57","v":"Test: Vyzkoušejte následující testy a zaškrtněte pravdivé."}]
[null,null,null,null,null,{"$f":"Settings!F58","v":"Pokud po stěně přejedu silnějším tlakem rukou, barva se mi na ruku otře."}]
[null,null,null,null,null,{"$f":"Settings!F59","v":"Když malbu více namočím, ztmavne a vytvoří mazlavou skvrnu, po stírání palcem krouživými pohyby na palci ulpí mazlavá hmota."}]
[null,null,null,null,null,{"$f":"Settings!F60","v":"Po přilepení kusu lepící pásky pevně na stěnu a následném strhnutí na pásce ulpí větší částice."}]
[null,null,null,null,null,{"$f":"Settings!F61","v":"Po provedení testů se nestalo nic z výše uvedeného."}]
[]
[null,{"$f":"Settings!B63","v":"Nová omítka"}]
[null,{"$f":"Settings!B64","v":"Chci opravit omítku."},null,null,null,null,null,null,null,{"$f":"Settings!J64","v":"m2"}]
[]
[null,null,{"$f":"Settings!C66","v":"Stávající omítka je v nepoužitelném stavu, drolí se a opadává."}]
[null,null,{"$f":"Settings!C67","v":"Omítka má jen drobné nerovnosti (praskliny, prohlubně, vypoukliny, stěna je \"vlnitá\", ...)."}]
[]
[null,{"$f":"Settings!B69","v":"Chci malovat  na již hotovou novou omítku."},null,null,null,null,null,null,null,{"$f":"Settings!J69","v":"m2"}]
[]
[null,null,{"$f":"Settings!C71","v":"Omítka je oprýskaná, odlupuje se, opadává."}]
[null,null,{"$f":"Settings!C72","v":"Omítka má jen drobné nerovnosti, které mi vadí (drobné vypoukliny, či prohlubně, drobné rýhy)."}]
[null,null,{"$f":"Settings!C73","v":"Omítka je naprosto v pořádku, nikde se neodlupuje, neopadává, pevně drží na svém podkladu a nemá žádné nerovnosti, popř. mi nevadí."}]
[]
[{"$f":"Settings!A75","v":"Vyskytují se v místě nové malby plísně?"}]
[null,{"$f":"Settings!B76","v":"Ano, vyskytují v přibližné ploše."},null,null,null,{"$f":"Settings!F76","v":"V přibližné ploše"},null,null,{"$f":"Settings!I76","v":"m2"}]
[null,{"$f":"Settings!B77","v":"Ne, nevyskytují."}]
[]
[{"$f":"Settings!A79","v":"Nová malba:"}]
[{"$f":"Settings!A80","v":"Místnost: (1) …."}]
[{"$f":"Settings!A81","v":"Jakou bude mít malba podobu?"}]
[null,{"$f":"Settings!B82","v":"Chci, aby výsledný vzhled byl hladký bez jakýchkoli vzorů."}]
[null,{"$f":"Settings!B83","v":"Chci, aby výsledný vzhled byl strukturovaný (se vzorem) a proto bude pod malbou tapeta."}]
[null,null,{"$f":"Settings!C84","v":"bez"},null,{"$f":"Settings!E84","v":"m2"}]
[null,null,{"$f":"Settings!C85","v":"tapeta"},null,{"$f":"Settings!E85","v":"m2"}]
[]
[{"$f":"Settings!A87","v":"Jakou barvu?"}]
[null,{"$f":"Settings!B88","v":"Nemám žádné nároky, stačí mi běžná interiérová barva."}]
[]
[null,null,{"$f":"Settings!C90","v":"bílá"},null,{"$f":"Settings!E90","v":"m2"}]
[null,null,{"$f":"Settings!C91","v":"barevná"},null,{"$f":"Settings!E91","v":"m2"}]
[]
[null,{"$f":"Settings!B93","v":"Mám vyšší nároky na otěruodolný nebo omyvatelný povrch."}]
[]
[null,null,{"$f":"Settings!C95","v":"bílá"},null,{"$f":"Settings!E95","v":"m2"}]
[null,null,{"$f":"Settings!C96","v":"barevná"},null,{"$f":"Settings!E96","v":"m2"}]
[]
[]
[{"$f":"Settings!A99","v":"Závěr:"}]
[{"$f":"Settings!A100","v":"Na závěr už bychom Vás jen rádi požádali o e-mail, abychom Vám mohli zaslat celou kalkulaci v digitální podobě."}]
[{"$f":"Settings!A101","v":"e-mail:"}]

{"sheet":"Room05","index":10,"n_rows":101,"n_cols":10,"rows_kept":101,"cut":false,"hidden":true,"merged":[[37,4,37,12],[1,0,1,7],[16,0,16,7],[23,9,23,16],[26,1,26,7],[26,9,26,16],[27,1,27,7],[27,9,27,16],[29,2,29,7],[30,2,30,7],[32,3,32,7],[33,3,33,7],[34,3,34,7],[58,5,58,13],[38,4,38,12],[39,4,39,12],[40,4,40,12],[46,2,46,7],[47,2,47,7],[49,3,49,7],[50,3,50,7],[51,3,51,7],[53,4,53,7],[54,4,54,7],[57,5,57,13],[81,1,81,7],[59,5,59,13],[60,5,60,13],[65,2,65,7],[66,2,66,7],[68,1,68,7],[70,2,70,7],[71,2,71,7],[72,2,72,7],[75,1,75,3],[75,5,75,6],[76,1,76,3],[99,0,99,7],[100,1,100,7],[82,1,82,7],[82,9,82,16],[86,0,86,7],[86,9,86,16],[87,9,87,16],[92,9,92,16]]}
[{"$f":"Settings!A1","v":"Úvod:"}]
[{"$f":"Settings!A2","v":"Chápeme, že ne všechny práce chcete svěřit profesionálům, ať už kvůli ceně nebo z jiných důvodů, přesto vše vyplňte. Řekneme Vám, kolik by Vás práce stála od profesionálů a Vy sami se potom můžete na základě ceny rozhodnout, zda si zvolíte práci profesionála či si některou činnost zkusíte sami.\n\nRádi bychom Vás také informovali o tom, že výsledky této kalkulace předpokládají běžné bytové (i rodinné domy) podmínky, tedy pokud plánujete výmalbu atypických, sklepních, vlhkých či jinak nestandardních prostor, doporučujeme návštěvu profesionála ke konzultaci."}]
[]
[{"$f":"Settings!A4","v":"Kolik místností plánujete malovat?"}]
[]
[{"$f":"Settings!A6","v":"Základní rozměry:"}]
[{"$f":"Settings!A7","v":"Název místnosti:"}]
[]
[{"$f":"Settings!A9","v":"Jelikož malování je věc rozměrová, potřebujeme znát několik málo čísel."}]
[{"$f":"Settings!A10","v":"Jakou plochu stěn plánujete malovat (vč. otvorů)?"},null,null,null,null,null,{"$f":"Settings!G10","v":"m2"},null,null,{"$f":"Settings!J10","v":"Neodečítejte plochy otvorů jako jsou např. okna a dveře. Pozor!, ať sem nezapočtete místa, která malovat nechcete nebo nemůžete, např. za vestavěným nábytkem nebo v místě, kde máte keramické či jiné obklady a chcete je tam ponechat."}]
[{"$f":"Settings!A11","v":"Jaká je podlahová plocha místnosti?"},null,null,null,null,null,{"$f":"Settings!G11","v":"m2"},null,null,{"$f":"Settings!J11","v":"Tip: Pokud má místnost složitější tvar, zkuste si jej rozdělit na pomyslné obdélníky a ty vzájemně odečtěte či přičtěte."}]
[{"$f":"Settings!A12","v":"Jaká je plocha otvorů a jiných nemalovaných ploch?"},null,null,null,null,null,{"$f":"Settings!G12","v":"m2"},null,null,{"$f":"Settings!J12","v":"Okna, dveře, dvířka k revizní šachtě apod. plochy."}]
[{"$f":"Settings!A13","v":"Jaká je výška místnosti?"},null,null,null,null,null,{"$f":"Settings!G13","v":"m"},null,null,{"$f":"Settings!J13","v":"Ostatní potřebné míry dopočteme za Vás."}]
[]
[{"$f":"Settings!A15","v":"Podklad:"}]
[{"$f":"Settings!A16","v":"Místnost: (1) …."}]
[{"$f":"Settings!A17","v":"Abychom Vám mohli poradit s postupem, potřebujeme vědět, jaký je stávající podklad v místě plánované malby."}]
[{"$f":"Settings!A18","v":"V místě plánované malby se právě nachází:"}]
[null,{"$f":"Settings!B19","v":"keramický nebo jiný obklad"},null,null,null,{"$f":"Settings!F19","v":"m2"}]
[null,{"$f":"Settings!B20","v":"stará malba"},null,null,null,{"$f":"Settings!F20","v":"m2"}]
[null,{"$f":"Settings!B21","v":"tapety"},null,null,null,{"$f":"Settings!F21","v":"m2"}]
[null,{"$f":"Settings!B22","v":"nová omítka"},null,null,null,{"$f":"Settings!F22","v":"m2"}]
[null,{"$f":"Settings!B23","v":"nová SDK deska"},null,null,null,"m2"]
[null,{"$f":"Settings!B24","v":"hrubá konstrukce"},null,null,null,{"$f":"Settings!F24","v":"m2"}]
[]
[null,{"$f":"Settings!B26","v":"Malba"}]
[null,{"$f":"Settings!B27","v":"Chci malbu oškrábat. (Nebo vím, že stávající malba je vápenná/latexová/klihová, a tudíž se musí oškrábat.)"},null,null,null,null,null,null,null,{"$f":"Settings!J27","v":"Vypsané barvy nejsou jako podklad pro novou barvu vhodné, později by docházelo k oprýskání a loupání nové malby."}]
[null,{"$f":"Settings!B28","v":"Pokud možno chci ji jen přetřít novou malbou."},null,null,null,null,null,null,null,{"$f":"Settings!J28","v":"Pokud se malba nachází ve vhodném stavu, je možné provést novou malbu jen jako další vrstvu bez nutnosti škrábání. Poradíme Vám, zda je to u Vás možné."}]
[]
[null,null,{"$f":"Settings!C30","v":"Na stěně se nachází nerovnosti, které mi vadí (praskliny, prohlubně, vypoukliny, stěna je \"vlnitá\", ...)."}]
[null,null,{"$f":"Settings!C31","v":"Stěna je krásně rovná nebo mi drobné nerovnosti nevadí."}]
[]
[null,null,null,{"$f":"Settings!D33","v":"V jakém je stávající malba stavu?"}]
[null,null,null,{"$f":"Settings!D34","v":"Malba se loupe, je oprýskaná nebo tvoří boule."}]
[null,null,null,{"$f":"Settings!D35","v":"Malba se jeví na pohled v pořádku."}]
[]
[null,null,null,null,{"$f":"Settings!E37","v":"Test: Vyzkoušejte následující testy a zaškrtněte pravdivé."}]
[null,null,null,null,{"$f":"Settings!E38","v":"Pokud po stěně přejedu silnějším tlakem rukou, barva se mi na ruku otře."}]
[null,null,null,null,{"$f":"Settings!E39","v":"Když malbu více namočím, ztmavne a vytvoří mazlavou skvrnu, po stírání palcem krouživými pohyby na palci ulpí mazlavá hmota."}]
[null,null,null,null,{"$f":"Settings!E40","v":"Po přilepení kusu lepící pásky pevně na stěnu a následném strhnutí na pásce ulpí větší částice."}]
[null,null,null,null,{"$f":"Settings!E41","v":"Po provedení testů se nestalo nic z výše uvedeného."}]
[]
[null,{"$f":"Settings!B43","v":"Tapety"}]
[null,{"$f":"Settings!B44","v":"Tapety chci strhnout."}]
[null,{"$f":"Settings!B45","v":"Pokud možno, chci je jen přetřít novou malbou."}]
[]
[null,null,{"$f":"Settings!C47","v":"Na stěně se nachází nerovnosti, které mi vadí (praskliny, prohlubně, vypoukliny, stěna je \"vlnitá\", ...)."}]
[null,null,{"$f":"Settings!C48","v":"Stěna je krásně rovná nebo mi drobné nerovnosti nevadí."}]
[]
[null,null,null,{"$f":"Settings!D50","v":"V jakém je stávající tapeta stavu?"}]
[null,null,null,{"$f":"Settings!D51","v":"Tapety se odlupují a/nebo tvoří boule."}]
[null,null,null,{"$f":"Settings!D52","v":"Tapety jsou naprosto v pořádku, nikde se neodlupují, netvoří boule, pevně drží na svém podkladu."}]
[]
[null,null,null,null,{"$f":"Settings!E54","v":"Na tapetách se žádná malba nenachází."}]
[null,null,null,null,{"$f":"Settings!E55","v":"Na tapetách se nachází malba."}]
[]
[null,null,null,null,null,{"$f":"Settings!F57","v":"Test: Vyzkoušejte následující testy a zaškrtněte pravdivé."}]
[null,null,null,null,null,{"$f":"Settings!F58","v":"Pokud po stěně přejedu silnějším tlakem rukou, barva se mi na ruku otře."}]
[null,null,null,null,null,{"$f":"Settings!F59","v":"Když malbu více namočím, ztmavne a vytvoří mazlavou skvrnu, po stírání palcem krouživými pohyby na palci ulpí mazlavá hmota."}]
[null,null,null,null,null,{"$f":"Settings!F60","v":"Po přilepení kusu lepící pásky pevně na stěnu a následném strhnutí na pásce ulpí větší částice."}]
[null,null,null,null,null,{"$f":"Settings!F61","v":"Po provedení testů se nestalo nic z výše uvedeného."}]
[]
[null,{"$f":"Settings!B63","v":"Nová omítka"}]
[null,{"$f":"Settings!B64","v":"Chci opravit omítku."},null,null,null,null,null,null,null,{"$f":"Settings!J64","v":"m2"}]
[]
[null,null,{"$f":"Settings!C66","v":"Stávající omítka je v nepoužitelném stavu, drolí se a opadává."}]
[null,null,{"$f":"Settings!C67","v":"Omítka má jen drobné nerovnosti (praskliny, prohlubně, vypoukliny, stěna je \"vlnitá\", ...)."}]
[]
[null,{"$f":"Settings!B69","v":"Chci malovat  na již hotovou novou omítku."},null,null,null,null,null,null,null,{"$f":"Settings!J69","v":"m2"}]
[]
[null,null,{"$f":"Settings!C71","v":"Omítka je oprýskaná, odlupuje se, opadává."}]
[null,null,{"$f":"Settings!C72","v":"Omítka má jen drobné nerovnosti, které mi vadí (drobné vypoukliny, či prohlubně, drobné rýhy)."}]
[null,null,{"$f":"Settings!C73","v":"Omítka je naprosto v pořádku, nikde se neodlupuje, neopadává, pevně drží na svém podkladu a nemá žádné nerovnosti, popř. mi nevadí."}]
[]
[{"$f":"Settings!A75","v":"Vyskytují se v místě nové malby plísně?"}]
[null,{"$f":"Settings!B76","v":"Ano, vyskytují v přibližné ploše."},null,null,null,{"$f":"Settings!F76","v":"V přibližné ploše"},null,null,{"$f":"Settings!I76","v":"m2"}]
[null,{"$f":"Settings!B77","v":"Ne, nevyskytují."}]
[]
[{"$f":"Settings!A79","v":"Nová malba:"}]
[{"$f":"Settings!A80","v":"Místnost: (1) …."}]
[{"$f":"Settings!A81","v":"Jakou bude mít malba podobu?"}]
[null,{"$f":"Settings!B82","v":"Chci, aby výsledný vzhled byl hladký bez jakýchkoli vzorů."}]
[null,{"$f":"Settings!B83","v":"Chci, aby výsledný vzhled byl strukturovaný (se vzorem) a proto bude pod malbou tapeta."}]
[null,null,{"$f":"Settings!C84","v":"bez"},null,{"$f":"Settings!E84","v":"m2"}]
[null,null,{"$f":"Settings!C85","v":"tapeta"},null,{"$f":"Settings!E85","v":"m2"}]
[]
[{"$f":"Settings!A87","v":"Jakou barvu?"}]
[null,{"$f":"Settings!B88","v":"Nemám žádné nároky, stačí mi běžná interiérová barva."}]
[]
[null,null,{"$f":"Settings!C90","v":"bílá"},null,{"$f":"Settings!E90","v":"m2"}]
[null,null,{"$f":"Settings!C91","v":"barevná"},null,{"$f":"Settings!E91","v":"m2"}]
[]
[null,{"$f":"Settings!B93","v":"Mám vyšší nároky na otěruodolný nebo omyvatelný povrch."}]
[]
[null,null,{"$f":"Settings!C95","v":"bílá"},null,{"$f":"Settings!E95","v":"m2"}]
[null,null,{"$f":"Settings!C96","v":"barevná"},null,{"$f":"Settings!E96","v":"m2"}]
[]
[]
[{"$f":"Settings!A99","v":"Závěr:"}]
[{"$f":"Settings!A100","v":"Na závěr už bychom Vás jen rádi požádali o e-mail, abychom Vám mohli zaslat celou kalkulaci v digitální podobě."}]
[{"$f":"Settings!A101","v":"e-mail:"}]

{"sheet":"Room06","index":11,"n_rows":101,"n_cols":10,"rows_kept":101,"cut":false,"hidden":true,"merged":[[37,4,37,12],[1,0,1,7],[16,0,16,7],[23,9,23,16],[26,1,26,7],[26,9,26,16],[27,1,27,7],[27,9,27,16],[29,2,29,7],[30,2,30,7],[32,3,32,7],[33,3,33,7],[34,3,34,7],[58,5,58,13],[38,4,38,12],[39,4,39,12],[40,4,40,12],[46,2,46,7],[47,2,47,7],[49,3,49,7],[50,3,50,7],[51,3,51,7],[53,4,53,7],[54,4,54,7],[57,5,57,13],[81,1,81,7],[59,5,59,13],[60,5,60,13],[65,2,65,7],[66,2,66,7],[68,1,68,7],[70,2,70,7],[71,2,71,7],[72,2,72,7],[75,1,75,3],[75,5,75,6],[76,1,76,3],[99,0,99,7],[100,1,100,7],[82,1,82,7],[82,9,82,16],[86,0,86,7],[86,9,86,16],[87,9,87,16],[92,9,92,16]]}
[{"$f":"Settings!A1","v":"Úvod:"}]
[{"$f":"Settings!A2","v":"Chápeme, že ne všechny práce chcete svěřit profesionálům, ať už kvůli ceně nebo z jiných důvodů, přesto vše vyplňte. Řekneme Vám, kolik by Vás práce stála od profesionálů a Vy sami se potom můžete na základě ceny rozhodnout, zda si zvolíte práci profesionála či si některou činnost zkusíte sami.\n\nRádi bychom Vás také informovali o tom, že výsledky této kalkulace předpokládají běžné bytové (i rodinné domy) podmínky, tedy pokud plánujete výmalbu atypických, sklepních, vlhkých či jinak nestandardních prostor, doporučujeme návštěvu profesionála ke konzultaci."}]
[]
[{"$f":"Settings!A4","v":"Kolik místností plánujete malovat?"}]
[]
[{"$f":"Settings!A6","v":"Základní rozměry:"}]
[{"$f":"Settings!A7","v":"Název místnosti:"}]
[]
[{"$f":"Settings!A9","v":"Jelikož malování je věc rozměrová, potřebujeme znát několik málo čísel."}]
[{"$f":"Settings!A10","v":"Jakou plochu stěn plánujete malovat (vč. otvorů)?"},null,null,null,null,null,{"$f":"Settings!G10","v":"m2"},null,null,{"$f":"Settings!J10","v":"Neodečítejte plochy otvorů jako jsou např. okna a dveře. Pozor!, ať sem nezapočtete místa, která malovat nechcete nebo nemůžete, např. za vestavěným nábytkem nebo v místě, kde máte keramické či jiné obklady a chcete je tam ponechat."}]
[{"$f":"Settings!A11","v":"Jaká je podlahová plocha místnosti?"},null,null,null,null,null,{"$f":"Settings!G11","v":"m2"},null,null,{"$f":"Settings!J11","v":"Tip: Pokud má místnost složitější tvar, zkuste si jej rozdělit na pomyslné obdélníky a ty vzájemně odečtěte či přičtěte."}]
[{"$f":"Settings!A12","v":"Jaká je plocha otvorů a jiných nemalovaných ploch?"},null,null,null,null,null,{"$f":"Settings!G12","v":"m2"},null,null,{"$f":"Settings!J12","v":"Okna, dveře, dvířka k revizní šachtě apod. plochy."}]
[{"$f":"Settings!A13","v":"Jaká je výška místnosti?"},null,null,null,null,null,{"$f":"Settings!G13","v":"m"},null,null,{"$f":"Settings!J13","v":"Ostatní potřebné míry dopočteme za Vás."}]
[]
[{"$f":"Settings!A15","v":"Podklad:"}]
[{"$f":"Settings!A16","v":"Místnost: (1) …."}]
[{"$f":"Settings!A17","v":"Abychom Vám mohli poradit s postupem, potřebujeme vědět, jaký je stávající podklad v místě plánované malby."}]
[{"$f":"Settings!A18","v":"V místě plánované malby se právě nachází:"}]
[null,{"$f":"Settings!B19","v":"keramický nebo jiný obklad"},null,null,null,{"$f":"Settings!F19","v":"m2"}]
[null,{"$f":"Settings!B20","v":"stará malba"},null,null,null,{"$f":"Settings!F20","v":"m2"}]
[null,{"$f":"Settings!B21","v":"tapety"},null,null,null,{"$f":"Settings!F21","v":"m2"}]
[null,{"$f":"Settings!B22","v":"nová omítka"},null,null,null,{"$f":"Settings!F22","v":"m2"}]
[null,{"$f":"Settings!B23","v":"nová SDK deska"},null,null,null,"m2"]
[null,{"$f":"Settings!B24","v":"hrubá konstrukce"},null,null,null,{"$f":"Settings!F24","v":"m2"}]
[]
[null,{"$f":"Settings!B26","v":"Malba"}]
[null,{"$f":"Settings!B27","v":"Chci malbu oškrábat. (Nebo vím, že stávající malba je vápenná/latexová/klihová, a tudíž se musí oškrábat.)"},null,null,null,null,null,null,null,{"$f":"Settings!J27","v":"Vypsané barvy nejsou jako podklad pro novou barvu vhodné, později by docházelo k oprýskání a loupání nové malby."}]
[null,{"$f":"Settings!B28","v":"Pokud možno chci ji jen přetřít novou malbou."},null,null,null,null,null,null,null,{"$f":"Settings!J28","v":"Pokud se malba nachází ve vhodném stavu, je možné provést novou malbu jen jako další vrstvu bez nutnosti škrábání. Poradíme Vám, zda je to u Vás možné."}]
[]
[null,null,{"$f":"Settings!C30","v":"Na stěně se nachází nerovnosti, které mi vadí (praskliny, prohlubně, vypoukliny, stěna je \"vlnitá\", ...)."}]
[null,null,{"$f":"Settings!C31","v":"Stěna je krásně rovná nebo mi drobné nerovnosti nevadí."}]
[]
[null,null,null,{"$f":"Settings!D33","v":"V jakém je stávající malba stavu?"}]
[null,null,null,{"$f":"Settings!D34","v":"Malba se loupe, je oprýskaná nebo tvoří boule."}]
[null,null,null,{"$f":"Settings!D35","v":"Malba se jeví na pohled v pořádku."}]
[]
[null,null,null,null,{"$f":"Settings!E37","v":"Test: Vyzkoušejte následující testy a zaškrtněte pravdivé."}]
[null,null,null,null,{"$f":"Settings!E38","v":"Pokud po stěně přejedu silnějším tlakem rukou, barva se mi na ruku otře."}]
[null,null,null,null,{"$f":"Settings!E39","v":"Když malbu více namočím, ztmavne a vytvoří mazlavou skvrnu, po stírání palcem krouživými pohyby na palci ulpí mazlavá hmota."}]
[null,null,null,null,{"$f":"Settings!E40","v":"Po přilepení kusu lepící pásky pevně na stěnu a následném strhnutí na pásce ulpí větší částice."}]
[null,null,null,null,{"$f":"Settings!E41","v":"Po provedení testů se nestalo nic z výše uvedeného."}]
[]
[null,{"$f":"Settings!B43","v":"Tapety"}]
[null,{"$f":"Settings!B44","v":"Tapety chci strhnout."}]
[null,{"$f":"Settings!B45","v":"Pokud možno, chci je jen přetřít novou malbou."}]
[]
[null,null,{"$f":"Settings!C47","v":"Na stěně se nachází nerovnosti, které mi vadí (praskliny, prohlubně, vypoukliny, stěna je \"vlnitá\", ...)."}]
[null,null,{"$f":"Settings!C48","v":"Stěna je krásně rovná nebo mi drobné nerovnosti nevadí."}]
[]
[null,null,null,{"$f":"Settings!D50","v":"V jakém je stávající tapeta stavu?"}]
[null,null,null,{"$f":"Settings!D51","v":"Tapety se odlupují a/nebo tvoří boule."}]
[null,null,null,{"$f":"Settings!D52","v":"Tapety jsou naprosto v pořádku, nikde se neodlupují, netvoří boule, pevně drží na svém podkladu."}]
[]
[null,null,null,null,{"$f":"Settings!E54","v":"Na tapetách se žádná malba nenachází."}]
[null,null,null,null,{"$f":"Settings!E55","v":"Na tapetách se nachází malba."}]
[]
[null,null,null,null,null,{"$f":"Settings!F57","v":"Test: Vyzkoušejte následující testy a zaškrtněte pravdivé."}]
[null,null,null,null,null,{"$f":"Settings!F58","v":"Pokud po stěně přejedu silnějším tlakem rukou, barva se mi na ruku otře."}]
[null,null,null,null,null,{"$f":"Settings!F59","v":"Když malbu více namočím, ztmavne a vytvoří mazlavou skvrnu, po stírání palcem krouživými pohyby na palci ulpí mazlavá hmota."}]
[null,null,null,null,null,{"$f":"Settings!F60","v":"Po přilepení kusu lepící pásky pevně na stěnu a následném strhnutí na pásce ulpí větší částice."}]
[null,null,null,null,null,{"$f":"Settings!F61","v":"Po provedení testů se nestalo nic z výše uvedeného."}]
[]
[null,{"$f":"Settings!B63","v":"Nová omítka"}]
[null,{"$f":"Settings!B64","v":"Chci opravit omítku."},null,null,null,null,null,null,null,{"$f":"Settings!J64","v":"m2"}]
[]
[null,null,{"$f":"Settings!C66","v":"Stávající omítka je v nepoužitelném stavu, drolí se a opadává."}]
[null,null,{"$f":"Settings!C67","v":"Omítka má jen drobné nerovnosti (praskliny, prohlubně, vypoukliny, stěna je \"vlnitá\", ...)."}]
[]
[null,{"$f":"Settings!B69","v":"Chci malovat  na již hotovou novou omítku."},null,null,null,null,null,null,null,{"$f":"Settings!J69","v":"m2"}]
[]
[null,null,{"$f":"Settings!C71","v":"Omítka je oprýskaná, odlupuje se, opadává."}]
[null,null,{"$f":"Settings!C72","v":"Omítka má jen drobné nerovnosti, které mi vadí (drobné vypoukliny, či prohlubně, drobné rýhy)."}]
[null,null,{"$f":"Settings!C73","v":"Omítka je naprosto v pořádku, nikde se neodlupuje, neopadává, pevně drží na svém podkladu a nemá žádné nerovnosti, popř. mi nevadí."}]
[]
[{"$f":"Settings!A75","v":"Vyskytují se v místě nové malby plísně?"}]
[null,{"$f":"Settings!B76","v":"Ano, vyskytují v přibližné ploše."},null,null,null,{"$f":"Settings!F76","v":"V přibližné ploše"},null,null,{"$f":"Settings!I76","v":"m2"}]
[null,{"$f":"Settings!B77","v":"Ne, nevyskytují."}]
[]
[{"$f":"Settings!A79","v":"Nová malba:"}]
[{"$f":"Settings!A80","v":"Místnost: (1) …."}]
[{"$f":"Settings!A81","v":"Jakou bude mít malba podobu?"}]
[null,{"$f":"Settings!B82","v":"Chci, aby výsledný vzhled byl hladký bez jakýchkoli vzorů."}]
[null,{"$f":"Settings!B83","v":"Chci, aby výsledný vzhled byl strukturovaný (se vzorem) a proto bude pod malbou tapeta."}]
[null,null,{"$f":"Settings!C84","v":"bez"},null,{"$f":"Settings!E84","v":"m2"}]
[null,null,{"$f":"Settings!C85","v":"tapeta"},null,{"$f":"Settings!E85","v":"m2"}]
[]
[{"$f":"Settings!A87","v":"Jakou barvu?"}]
[null,{"$f":"Settings!B88","v":"Nemám žádné nároky, stačí mi běžná interiérová barva."}]
[]
[null,null,{"$f":"Settings!C90","v":"bílá"},null,{"$f":"Settings!E90","v":"m2"}]
[null,null,{"$f":"Settings!C91","v":"barevná"},null,{"$f":"Settings!E91","v":"m2"}]
[]
[null,{"$f":"Settings!B93","v":"Mám vyšší nároky na otěruodolný nebo omyvatelný povrch."}]
[]
[null,null,{"$f":"Settings!C95","v":"bílá"},null,{"$f":"Settings!E95","v":"m2"}]
[null,null,{"$f":"Settings!C96","v":"barevná"},null,{"$f":"Settings!E96","v":"m2"}]
[]
[]
[{"$f":"Settings!A99","v":"Závěr:"}]
[{"$f":"Settings!A100","v":"Na závěr už bychom Vás jen rádi požádali o e-mail, abychom Vám mohli zaslat celou kalkulaci v digitální podobě."}]
[{"$f":"Settings!A101","v":"e-mail:"}]

{"sheet":"Room07","index":12,"n_rows":101,"n_cols":10,"rows_kept":101,"cut":false,"hidden":true,"merged":[[37,4,37,12],[1,0,1,7],[16,0,16,7],[23,9,23,16],[26,1,26,7],[26,9,26,16],[27,1,27,7],[27,9,27,16],[29,2,29,7],[30,2,30,7],[32,3,32,7],[33,3,33,7],[34,3,34,7],[58,5,58,13],[38,4,38,12],[39,4,39,12],[40,4,40,12],[46,2,46,7],[47,2,47,7],[49,3,49,7],[50,3,50,7],[51,3,51,7],[53,4,53,7],[54,4,54,7],[57,5,57,13],[81,1,81,7],[59,5,59,13],[60,5,60,13],[65,2,65,7],[66,2,66,7],[68,1,68,7],[70,2,70,7],[71,2,71,7],[72,2,72,7],[75,1,75,3],[75,5,75,6],[76,1,76,3],[99,0,99,7],[100,1,100,7],[82,1,82,7],[82,9,82,16],[86,0,86,7],[86,9,86,16],[87,9,87,16],[92,9,92,16]]}
[{"$f":"Settings!A1","v":"Úvod:"}]
[{"$f":"Settings!A2","v":"Chápeme, že ne všechny práce chcete svěřit profesionálům, ať už kvůli ceně nebo z jiných důvodů, přesto vše vyplňte. Řekneme Vám, kolik by Vás práce stála od profesionálů a Vy sami se potom můžete na základě ceny rozhodnout, zda si zvolíte práci profesionála či si některou činnost zkusíte sami.\n\nRádi bychom Vás také informovali o tom, že výsledky této kalkulace předpokládají běžné bytové (i rodinné domy) podmínky, tedy pokud plánujete výmalbu atypických, sklepních, vlhkých či jinak nestandardních prostor, doporučujeme návštěvu profesionála ke konzultaci."}]
[]
[{"$f":"Settings!A4","v":"Kolik místností plánujete malovat?"}]
[]
[{"$f":"Settings!A6","v":"Základní rozměry:"}]
[{"$f":"Settings!A7","v":"Název místnosti:"}]
[]
[{"$f":"Settings!A9","v":"Jelikož malování je věc rozměrová, potřebujeme znát několik málo čísel."}]
[{"$f":"Settings!A10","v":"Jakou plochu stěn plánujete malovat (vč. otvorů)?"},null,null,null,null,null,{"$f":"Settings!G10","v":"m2"},null,null,{"$f":"Settings!J10","v":"Neodečítejte plochy otvorů jako jsou např. okna a dveře. Pozor!, ať sem nezapočtete místa, která malovat nechcete nebo nemůžete, např. za vestavěným nábytkem nebo v místě, kde máte keramické či jiné obklady a chcete je tam ponechat."}]
[{"$f":"Settings!A11","v":"Jaká je podlahová plocha místnosti?"},null,null,null,null,null,{"$f":"Settings!G11","v":"m2"},null,null,{"$f":"Settings!J11","v":"Tip: Pokud má místnost složitější tvar, zkuste si jej rozdělit na pomyslné obdélníky a ty vzájemně odečtěte či přičtěte."}]
[{"$f":"Settings!A12","v":"Jaká je plocha otvorů a jiných nemalovaných ploch?"},null,null,null,null,null,{"$f":"Settings!G12","v":"m2"},null,null,{"$f":"Settings!J12","v":"Okna, dveře, dvířka k revizní šachtě apod. plochy."}]
[{"$f":"Settings!A13","v":"Jaká je výška místnosti?"},null,null,null,null,null,{"$f":"Settings!G13","v":"m"},null,null,{"$f":"Settings!J13","v":"Ostatní potřebné míry dopočteme za Vás."}]
[]
[{"$f":"Settings!A15","v":"Podklad:"}]
[{"$f":"Settings!A16","v":"Místnost: (1) …."}]
[{"$f":"Settings!A17","v":"Abychom Vám mohli poradit s postupem, potřebujeme vědět, jaký je stávající podklad v místě plánované malby."}]
[{"$f":"Settings!A18","v":"V místě plánované malby se právě nachází:"}]
[null,{"$f":"Settings!B19","v":"keramický nebo jiný obklad"},null,null,null,{"$f":"Settings!F19","v":"m2"}]
[null,{"$f":"Settings!B20","v":"stará malba"},null,null,null,{"$f":"Settings!F20","v":"m2"}]
[null,{"$f":"Settings!B21","v":"tapety"},null,null,null,{"$f":"Settings!F21","v":"m2"}]
[null,{"$f":"Settings!B22","v":"nová omítka"},null,null,null,{"$f":"Settings!F22","v":"m2"}]
[null,{"$f":"Settings!B23","v":"nová SDK deska"},null,null,null,"m2"]
[null,{"$f":"Settings!B24","v":"hrubá konstrukce"},null,null,null,{"$f":"Settings!F24","v":"m2"}]
[]
[null,{"$f":"Settings!B26","v":"Malba"}]
[null,{"$f":"Settings!B27","v":"Chci malbu oškrábat. (Nebo vím, že stávající malba je vápenná/latexová/klihová, a tudíž se musí oškrábat.)"},null,null,null,null,null,null,null,{"$f":"Settings!J27","v":"Vypsané barvy nejsou jako podklad pro novou barvu vhodné, později by docházelo k oprýskání a loupání nové malby."}]
[null,{"$f":"Settings!B28","v":"Pokud možno chci ji jen přetřít novou malbou."},null,null,null,null,null,null,null,{"$f":"Settings!J28","v":"Pokud se malba nachází ve vhodném stavu, je možné provést novou malbu jen jako další vrstvu bez nutnosti škrábání. Poradíme Vám, zda je to u Vás možné."}]
[]
[null,null,{"$f":"Settings!C30","v":"Na stěně se nachází nerovnosti, které mi vadí (praskliny, prohlubně, vypoukliny, stěna je \"vlnitá\", ...)."}]
[null,null,{"$f":"Settings!C31","v":"Stěna je krásně rovná nebo mi drobné nerovnosti nevadí."}]
[]
[null,null,null,{"$f":"Settings!D33","v":"V jakém je stávající malba stavu?"}]
[null,null,null,{"$f":"Settings!D34","v":"Malba se loupe, je oprýskaná nebo tvoří boule."}]
[null,null,null,{"$f":"Settings!D35","v":"Malba se jeví na pohled v pořádku."}]
[]
[null,null,null,null,{"$f":"Settings!E37","v":"Test: Vyzkoušejte následující testy a zaškrtněte pravdivé."}]
[null,null,null,null,{"$f":"Settings!E38","v":"Pokud po stěně přejedu silnějším tlakem rukou, barva se mi na ruku otře."}]
[null,null,null,null,{"$f":"Settings!E39","v":"Když malbu více namočím, ztmavne a vytvoří mazlavou skvrnu, po stírání palcem krouživými pohyby na palci ulpí mazlavá hmota."}]
[null,null,null,null,{"$f":"Settings!E40","v":"Po přilepení kusu lepící pásky pevně na stěnu a následném strhnutí na pásce ulpí větší částice."}]
[null,null,null,null,{"$f":"Settings!E41","v":"Po provedení testů se nestalo nic z výše uvedeného."}]
[]
[null,{"$f":"Settings!B43","v":"Tapety"}]
[null,{"$f":"Settings!B44","v":"Tapety chci strhnout."}]
[null,{"$f":"Settings!B45","v":"Pokud možno, chci je jen přetřít novou malbou."}]
[]
[null,null,{"$f":"Settings!C47","v":"Na stěně se nachází nerovnosti, které mi vadí (praskliny, prohlubně, vypoukliny, stěna je \"vlnitá\", ...)."}]
[null,null,{"$f":"Settings!C48","v":"Stěna je krásně rovná nebo mi drobné nerovnosti nevadí."}]
[]
[null,null,null,{"$f":"Settings!D50","v":"V jakém je stávající tapeta stavu?"}]
[null,null,null,{"$f":"Settings!D51","v":"Tapety se odlupují a/nebo tvoří boule."}]
[null,null,null,{"$f":"Settings!D52","v":"Tapety jsou naprosto v pořádku, nikde se neodlupují, netvoří boule, pevně drží na svém podkladu."}]
[]
[null,null,null,null,{"$f":"Settings!E54","v":"Na tapetách se žádná malba nenachází."}]
[null,null,null,null,{"$f":"Settings!E55","v":"Na tapetách se nachází malba."}]
[]
[null,null,null,null,null,{"$f":"Settings!F57","v":"Test: Vyzkoušejte následující testy a zaškrtněte pravdivé."}]
[null,null,null,null,null,{"$f":"Settings!F58","v":"Pokud po stěně přejedu silnějším tlakem rukou, barva se mi na ruku otře."}]
[null,null,null,null,null,{"$f":"Settings!F59","v":"Když malbu více namočím, ztmavne a vytvoří mazlavou skvrnu, po stírání palcem krouživými pohyby na palci ulpí mazlavá hmota."}]
[null,null,null,null,null,{"$f":"Settings!F60","v":"Po přilepení kusu lepící pásky pevně na stěnu a následném strhnutí na pásce ulpí větší částice."}]
[null,null,null,null,null,{"$f":"Settings!F61","v":"Po provedení testů se nestalo nic z výše uvedeného."}]
[]
[null,{"$f":"Settings!B63","v":"Nová omítka"}]
[null,{"$f":"Settings!B64","v":"Chci opravit omítku."},null,null,null,null,null,null,null,{"$f":"Settings!J64","v":"m2"}]
[]
[null,null,{"$f":"Settings!C66","v":"Stávající omítka je v nepoužitelném stavu, drolí se a opadává."}]
[null,null,{"$f":"Settings!C67","v":"Omítka má jen drobné nerovnosti (praskliny, prohlubně, vypoukliny, stěna je \"vlnitá\", ...)."}]
[]
[null,{"$f":"Settings!B69","v":"Chci malovat  na již hotovou novou omítku."},null,null,null,null,null,null,null,{"$f":"Settings!J69","v":"m2"}]
[]
[null,null,{"$f":"Settings!C71","v":"Omítka je oprýskaná, odlupuje se, opadává."}]
[null,null,{"$f":"Settings!C72","v":"Omítka má jen drobné nerovnosti, které mi vadí (drobné vypoukliny, či prohlubně, drobné rýhy)."}]
[null,null,{"$f":"Settings!C73","v":"Omítka je naprosto v pořádku, nikde se neodlupuje, neopadává, pevně drží na svém podkladu a nemá žádné nerovnosti, popř. mi nevadí."}]
[]
[{"$f":"Settings!A75","v":"Vyskytují se v místě nové malby plísně?"}]
[null,{"$f":"Settings!B76","v":"Ano, vyskytují v přibližné ploše."},null,null,null,{"$f":"Settings!F76","v":"V přibližné ploše"},null,null,{"$f":"Settings!I76","v":"m2"}]
[null,{"$f":"Settings!B77","v":"Ne, nevyskytují."}]
[]
[{"$f":"Settings!A79","v":"Nová malba:"}]
[{"$f":"Settings!A80","v":"Místnost: (1) …."}]
[{"$f":"Settings!A81","v":"Jakou bude mít malba podobu?"}]
[null,{"$f":"Settings!B82","v":"Chci, aby výsledný vzhled byl hladký bez jakýchkoli vzorů."}]
[null,{"$f":"Settings!B83","v":"Chci, aby výsledný vzhled byl strukturovaný (se vzorem) a proto bude pod malbou tapeta."}]
[null,null,{"$f":"Settings!C84","v":"bez"},null,{"$f":"Settings!E84","v":"m2"}]
[null,null,{"$f":"Settings!C85","v":"tapeta"},null,{"$f":"Settings!E85","v":"m2"}]
[]
[{"$f":"Settings!A87","v":"Jakou barvu?"}]
[null,{"$f":"Settings!B88","v":"Nemám žádné nároky, stačí mi běžná interiérová barva."}]
[]
[null,null,{"$f":"Settings!C90","v":"bílá"},null,{"$f":"Settings!E90","v":"m2"}]
[null,null,{"$f":"Settings!C91","v":"barevná"},null,{"$f":"Settings!E91","v":"m2"}]
[]
[null,{"$f":"Settings!B93","v":"Mám vyšší nároky na otěruodolný nebo omyvatelný povrch."}]
[]
[null,null,{"$f":"Settings!C95","v":"bílá"},null,{"$f":"Settings!E95","v":"m2"}]
[null,null,{"$f":"Settings!C96","v":"barevná"},null,{"$f":"Settings!E96","v":"m2"}]
[]
[]
[{"$f":"Settings!A99","v":"Závěr:"}]
[{"$f":"Settings!A100","v":"Na závěr už bychom Vás jen rádi požádali o e-mail, abychom Vám mohli zaslat celou kalkulaci v digitální podobě."}]
[{"$f":"Settings!A101","v":"e-mail:"}]

{"sheet":"Room08","index":13,"n_rows":101,"n_cols":10,"rows_kept":101,"cut":false,"hidden":true,"merged":[[37,4,37,12],[1,0,1,7],[16,0,16,7],[23,9,23,16],[26,1,26,7],[26,9,26,16],[27,1,27,7],[27,9,27,16],[29,2,29,7],[30,2,30,7],[32,3,32,7],[33,3,33,7],[34,3,34,7],[58,5,58,13],[38,4,38,12],[39,4,39,12],[40,4,40,12],[46,2,46,7],[47,2,47,7],[49,3,49,7],[50,3,50,7],[51,3,51,7],[53,4,53,7],[54,4,54,7],[57,5,57,13],[81,1,81,7],[59,5,59,13],[60,5,60,13],[65,2,65,7],[66,2,66,7],[68,1,68,7],[70,2,70,7],[71,2,71,7],[72,2,72,7],[75,1,75,3],[75,5,75,6],[76,1,76,3],[99,0,99,7],[100,1,100,7],[82,1,82,7],[82,9,82,16],[86,0,86,7],[86,9,86,16],[87,9,87,16],[92,9,92,16]]}
[{"$f":"Settings!A1","v":"Úvod:"}]
[{"$f":"Settings!A2","v":"Chápeme, že ne všechny práce chcete svěřit profesionálům, ať už kvůli ceně nebo z jiných důvodů, přesto vše vyplňte. Řekneme Vám, kolik by Vás práce stála od profesionálů a Vy sami se potom můžete na základě ceny rozhodnout, zda si zvolíte práci profesionála či si některou činnost zkusíte sami.\n\nRádi bychom Vás také informovali o tom, že výsledky této kalkulace předpokládají běžné bytové (i rodinné domy) podmínky, tedy pokud plánujete výmalbu atypických, sklepních, vlhkých či jinak nestandardních prostor, doporučujeme návštěvu profesionála ke konzultaci."}]
[]
[{"$f":"Settings!A4","v":"Kolik místností plánujete malovat?"}]
[]
[{"$f":"Settings!A6","v":"Základní rozměry:"}]
[{"$f":"Settings!A7","v":"Název místnosti:"}]
[]
[{"$f":"Settings!A9","v":"Jelikož malování je věc rozměrová, potřebujeme znát několik málo čísel."}]
[{"$f":"Settings!A10","v":"Jakou plochu stěn plánujete malovat (vč. otvorů)?"},null,null,null,null,null,{"$f":"Settings!G10","v":"m2"},null,null,{"$f":"Settings!J10","v":"Neodečítejte plochy otvorů jako jsou např. okna a dveře. Pozor!, ať sem nezapočtete místa, která malovat nechcete nebo nemůžete, např. za vestavěným nábytkem nebo v místě, kde máte keramické či jiné obklady a chcete je tam ponechat."}]
[{"$f":"Settings!A11","v":"Jaká je podlahová plocha místnosti?"},null,null,null,null,null,{"$f":"Settings!G11","v":"m2"},null,null,{"$f":"Settings!J11","v":"Tip: Pokud má místnost složitější tvar, zkuste si jej rozdělit na pomyslné obdélníky a ty vzájemně odečtěte či přičtěte."}]
[{"$f":"Settings!A12","v":"Jaká je plocha otvorů a jiných nemalovaných ploch?"},null,null,null,null,null,{"$f":"Settings!G12","v":"m2"},null,null,{"$f":"Settings!J12","v":"Okna, dveře, dvířka k revizní šachtě apod. plochy."}]
[{"$f":"Settings!A13","v":"Jaká je výška místnosti?"},null,null,null,null,null,{"$f":"Settings!G13","v":"m"},null,null,{"$f":"Settings!J13","v":"Ostatní potřebné míry dopočteme za Vás."}]
[]
[{"$f":"Settings!A15","v":"Podklad:"}]
[{"$f":"Settings!A16","v":"Místnost: (1) …."}]
[{"$f":"Settings!A17","v":"Abychom Vám mohli poradit s postupem, potřebujeme vědět, jaký je stávající podklad v místě plánované malby."}]
[{"$f":"Settings!A18","v":"V místě plánované malby se právě nachází:"}]
[null,{"$f":"Settings!B19","v":"keramický nebo jiný obklad"},null,null,null,{"$f":"Settings!F19","v":"m2"}]
[null,{"$f":"Settings!B20","v":"stará malba"},null,null,null,{"$f":"Settings!F20","v":"m2"}]
[null,{"$f":"Settings!B21","v":"tapety"},null,null,null,{"$f":"Settings!F21","v":"m2"}]
[null,{"$f":"Settings!B22","v":"nová omítka"},null,null,null,{"$f":"Settings!F22","v":"m2"}]
[null,{"$f":"Settings!B23","v":"nová SDK deska"},null,null,null,"m2"]
[null,{"$f":"Settings!B24","v":"hrubá konstrukce"},null,null,null,{"$f":"Settings!F24","v":"m2"}]
[]
[null,{"$f":"Settings!B26","v":"Malba"}]
[null,{"$f":"Settings!B27","v":"Chci malbu oškrábat. (Nebo vím, že stávající malba je vápenná/latexová/klihová, a tudíž se musí oškrábat.)"},null,null,null,null,null,null,null,{"$f":"Settings!J27","v":"Vypsané barvy nejsou jako podklad pro novou barvu vhodné, později by docházelo k oprýskání a loupání nové malby."}]
[null,{"$f":"Settings!B28","v":"Pokud možno chci ji jen přetřít novou malbou."},null,null,null,null,null,null,null,{"$f":"Settings!J28","v":"Pokud se malba nachází ve vhodném stavu, je možné provést novou malbu jen jako další vrstvu bez nutnosti škrábání. Poradíme Vám, zda je to u Vás možné."}]
[]
[null,null,{"$f":"Settings!C30","v":"Na stěně se nachází nerovnosti, které mi vadí (praskliny, prohlubně, vypoukliny, stěna je \"vlnitá\", ...)."}]
[null,null,{"$f":"Settings!C31","v":"Stěna je krásně rovná nebo mi drobné nerovnosti nevadí."}]
[]
[null,null,null,{"$f":"Settings!D33","v":"V jakém je stávající malba stavu?"}]
[null,null,null,{"$f":"Settings!D34","v":"Malba se loupe, je oprýskaná nebo tvoří boule."}]
[null,null,null,{"$f":"Settings!D35","v":"Malba se jeví na pohled v pořádku."}]
[]
[null,null,null,null,{"$f":"Settings!E37","v":"Test: Vyzkoušejte následující testy a zaškrtněte pravdivé."}]
[null,null,null,null,{"$f":"Settings!E38","v":"Pokud po stěně přejedu silnějším tlakem rukou, barva se mi na ruku otře."}]
[null,null,null,null,{"$f":"Settings!E39","v":"Když malbu více namočím, ztmavne a vytvoří mazlavou skvrnu, po stírání palcem krouživými pohyby na palci ulpí mazlavá hmota."}]
[null,null,null,null,{"$f":"Settings!E40","v":"Po přilepení kusu lepící pásky pevně na stěnu a následném strhnutí na pásce ulpí větší částice."}]
[null,null,null,null,{"$f":"Settings!E41","v":"Po provedení testů se nestalo nic z výše uvedeného."}]
[]
[null,{"$f":"Settings!B43","v":"Tapety"}]
[null,{"$f":"Settings!B44","v":"Tapety chci strhnout."}]
[null,{"$f":"Settings!B45","v":"Pokud možno, chci je jen přetřít novou malbou."}]
[]
[null,null,{"$f":"Settings!C47","v":"Na stěně se nachází nerovnosti, které mi vadí (praskliny, prohlubně, vypoukliny, stěna je \"vlnitá\", ...)."}]
[null,null,{"$f":"Settings!C48","v":"Stěna je krásně rovná nebo mi drobné nerovnosti nevadí."}]
[]
[null,null,null,{"$f":"Settings!D50","v":"V jakém je stávající tapeta stavu?"}]
[null,null,null,{"$f":"Settings!D51","v":"Tapety se odlupují a/nebo tvoří boule."}]
[null,null,null,{"$f":"Settings!D52","v":"Tapety jsou naprosto v pořádku, nikde se neodlupují, netvoří boule, pevně drží na svém podkladu."}]
[]
[null,null,null,null,{"$f":"Settings!E54","v":"Na tapetách se žádná malba nenachází."}]
[null,null,null,null,{"$f":"Settings!E55","v":"Na tapetách se nachází malba."}]
[]
[null,null,null,null,null,{"$f":"Settings!F57","v":"Test: Vyzkoušejte následující testy a zaškrtněte pravdivé."}]
[null,null,null,null,null,{"$f":"Settings!F58","v":"Pokud po stěně přejedu silnějším tlakem rukou, barva se mi na ruku otře."}]
[null,null,null,null,null,{"$f":"Settings!F59","v":"Když malbu více namočím, ztmavne a vytvoří mazlavou skvrnu, po stírání palcem krouživými pohyby na palci ulpí mazlavá hmota."}]
[null,null,null,null,null,{"$f":"Settings!F60","v":"Po přilepení kusu lepící pásky pevně na stěnu a následném strhnutí na pásce ulpí větší částice."}]
[null,null,null,null,null,{"$f":"Settings!F61","v":"Po provedení testů se nestalo nic z výše uvedeného."}]
[]
[null,{"$f":"Settings!B63","v":"Nová omítka"}]
[null,{"$f":"Settings!B64","v":"Chci opravit omítku."},null,null,null,null,null,null,null,{"$f":"Settings!J64","v":"m2"}]
[]
[null,null,{"$f":"Settings!C66","v":"Stávající omítka je v nepoužitelném stavu, drolí se a opadává."}]
[null,null,{"$f":"Settings!C67","v":"Omítka má jen drobné nerovnosti (praskliny, prohlubně, vypoukliny, stěna je \"vlnitá\", ...)."}]
[]
[null,{"$f":"Settings!B69","v":"Chci malovat  na již hotovou novou omítku."},null,null,null,null,null,null,null,{"$f":"Settings!J69","v":"m2"}]
[]
[null,null,{"$f":"Settings!C71","v":"Omítka je oprýskaná, odlupuje se, opadává."}]
[null,null,{"$f":"Settings!C72","v":"Omítka má jen drobné nerovnosti, které mi vadí (drobné vypoukliny, či prohlubně, drobné rýhy)."}]
[null,null,{"$f":"Settings!C73","v":"Omítka je naprosto v pořádku, nikde se neodlupuje, neopadává, pevně drží na svém podkladu a nemá žádné nerovnosti, popř. mi nevadí."}]
[]
[{"$f":"Settings!A75","v":"Vyskytují se v místě nové malby plísně?"}]
[null,{"$f":"Settings!B76","v":"Ano, vyskytují v přibližné ploše."},null,null,null,{"$f":"Settings!F76","v":"V přibližné ploše"},null,null,{"$f":"Settings!I76","v":"m2"}]
[null,{"$f":"Settings!B77","v":"Ne, nevyskytují."}]
[]
[{"$f":"Settings!A79","v":"Nová malba:"}]
[{"$f":"Settings!A80","v":"Místnost: (1) …."}]
[{"$f":"Settings!A81","v":"Jakou bude mít malba podobu?"}]
[null,{"$f":"Settings!B82","v":"Chci, aby výsledný vzhled byl hladký bez jakýchkoli vzorů."}]
[null,{"$f":"Settings!B83","v":"Chci, aby výsledný vzhled byl strukturovaný (se vzorem) a proto bude pod malbou tapeta."}]
[null,null,{"$f":"Settings!C84","v":"bez"},null,{"$f":"Settings!E84","v":"m2"}]
[null,null,{"$f":"Settings!C85","v":"tapeta"},null,{"$f":"Settings!E85","v":"m2"}]
[]
[{"$f":"Settings!A87","v":"Jakou barvu?"}]
[null,{"$f":"Settings!B88","v":"Nemám žádné nároky, stačí mi běžná interiérová barva."}]
[]
[null,null,{"$f":"Settings!C90","v":"bílá"},null,{"$f":"Settings!E90","v":"m2"}]
[null,null,{"$f":"Settings!C91","v":"barevná"},null,{"$f":"Settings!E91","v":"m2"}]
[]
[null,{"$f":"Settings!B93","v":"Mám vyšší nároky na otěruodolný nebo omyvatelný povrch."}]
[]
[null,null,{"$f":"Settings!C95","v":"bílá"},null,{"$f":"Settings!E95","v":"m2"}]
[null,null,{"$f":"Settings!C96","v":"barevná"},null,{"$f":"Settings!E96","v":"m2"}]
[]
[]
[{"$f":"Settings!A99","v":"Závěr:"}]
[{"$f":"Settings!A100","v":"Na závěr už bychom Vás jen rádi požádali o e-mail, abychom Vám mohli zaslat celou kalkulaci v digitální podobě."}]
[{"$f":"Settings!A101","v":"e-mail:"}]

{"sheet":"Room09","index":14,"n_rows":101,"n_cols":10,"rows_kept":101,"cut":false,"hidden":true,"merged":[[37,4,37,12],[1,0,1,7],[16,0,16,7],[23,9,23,16],[26,1,26,7],[26,9,26,16],[27,1,27,7],[27,9,27,16],[29,2,29,7],[30,2,30,7],[32,3,32,7],[33,3,33,7],[34,3,34,7],[58,5,58,13],[38,4,38,12],[39,4,39,12],[40,4,40,12],[46,2,46,7],[47,2,47,7],[49,3,49,7],[50,3,50,7],[51,3,51,7],[53,4,53,7],[54,4,54,7],[57,5,57,13],[81,1,81,7],[59,5,59,13],[60,5,60,13],[65,2,65,7],[66,2,66,7],[68,1,68,7],[70,2,70,7],[71,2,71,7],[72,2,72,7],[75,1,75,3],[75,5,75,6],[76,1,76,3],[99,0,99,7],[100,1,100,7],[82,1,82,7],[82,9,82,16],[86,0,86,7],[86,9,86,16],[87,9,87,16],[92,9,92,16]]}
[{"$f":"Settings!A1","v":"Úvod:"}]
[{"$f":"Settings!A2","v":"Chápeme, že ne všechny práce chcete svěřit profesionálům, ať už kvůli ceně nebo z jiných důvodů, přesto vše vyplňte. Řekneme Vám, kolik by Vás práce stála od profesionálů a Vy sami se potom můžete na základě ceny rozhodnout, zda si zvolíte práci profesionála či si některou činnost zkusíte sami.\n\nRádi bychom Vás také informovali o tom, že výsledky této kalkulace předpokládají běžné bytové (i rodinné domy) podmínky, tedy pokud plánujete výmalbu atypických, sklepních, vlhkých či jinak nestandardních prostor, doporučujeme návštěvu profesionála ke konzultaci."}]
[]
[{"$f":"Settings!A4","v":"Kolik místností plánujete malovat?"}]
[]
[{"$f":"Settings!A6","v":"Základní rozměry:"}]
[{"$f":"Settings!A7","v":"Název místnosti:"}]
[]
[{"$f":"Settings!A9","v":"Jelikož malování je věc rozměrová, potřebujeme znát několik málo čísel."}]
[{"$f":"Settings!A10","v":"Jakou plochu stěn plánujete malovat (vč. otvorů)?"},null,null,null,null,null,{"$f":"Settings!G10","v":"m2"},null,null,{"$f":"Settings!J10","v":"Neodečítejte plochy otvorů jako jsou např. okna a dveře. Pozor!, ať sem nezapočtete místa, která malovat nechcete nebo nemůžete, např. za vestavěným nábytkem nebo v místě, kde máte keramické či jiné obklady a chcete je tam ponechat."}]
[{"$f":"Settings!A11","v":"Jaká je podlahová plocha místnosti?"},null,null,null,null,null,{"$f":"Settings!G11","v":"m2"},null,null,{"$f":"Settings!J11","v":"Tip: Pokud má místnost složitější tvar, zkuste si jej rozdělit na pomyslné obdélníky a ty vzájemně odečtěte či přičtěte."}]
[{"$f":"Settings!A12","v":"Jaká je plocha otvorů a jiných nemalovaných ploch?"},null,null,null,null,null,{"$f":"Settings!G12","v":"m2"},null,null,{"$f":"Settings!J12","v":"Okna, dveře, dvířka k revizní šachtě apod. plochy."}]
[{"$f":"Settings!A13","v":"Jaká je výška místnosti?"},null,null,null,null,null,{"$f":"Settings!G13","v":"m"},null,null,{"$f":"Settings!J13","v":"Ostatní potřebné míry dopočteme za Vás."}]
[]
[{"$f":"Settings!A15","v":"Podklad:"}]
[{"$f":"Settings!A16","v":"Místnost: (1) …."}]
[{"$f":"Settings!A17","v":"Abychom Vám mohli poradit s postupem, potřebujeme vědět, jaký je stávající podklad v místě plánované malby."}]
[{"$f":"Settings!A18","v":"V místě plánované malby se právě nachází:"}]
[null,{"$f":"Settings!B19","v":"keramický nebo jiný obklad"},null,null,null,{"$f":"Settings!F19","v":"m2"}]
[null,{"$f":"Settings!B20","v":"stará malba"},null,null,null,{"$f":"Settings!F20","v":"m2"}]
[null,{"$f":"Settings!B21","v":"tapety"},null,null,null,{"$f":"Settings!F21","v":"m2"}]
[null,{"$f":"Settings!B22","v":"nová omítka"},null,null,null,{"$f":"Settings!F22","v":"m2"}]
[null,{"$f":"Settings!B23","v":"nová SDK deska"},null,null,null,"m2"]
[null,{"$f":"Settings!B24","v":"hrubá konstrukce"},null,null,null,{"$f":"Settings!F24","v":"m2"}]
[]
[null,{"$f":"Settings!B26","v":"Malba"}]
[null,{"$f":"Settings!B27","v":"Chci malbu oškrábat. (Nebo vím, že stávající malba je vápenná/latexová/klihová, a tudíž se musí oškrábat.)"},null,null,null,null,null,null,null,{"$f":"Settings!J27","v":"Vypsané barvy nejsou jako podklad pro novou barvu vhodné, později by docházelo k oprýskání a loupání nové malby."}]
[null,{"$f":"Settings!B28","v":"Pokud možno chci ji jen přetřít novou malbou."},null,null,null,null,null,null,null,{"$f":"Settings!J28","v":"Pokud se malba nachází ve vhodném stavu, je možné provést novou malbu jen jako další vrstvu bez nutnosti škrábání. Poradíme Vám, zda je to u Vás možné."}]
[]
[null,null,{"$f":"Settings!C30","v":"Na stěně se nachází nerovnosti, které mi vadí (praskliny, prohlubně, vypoukliny, stěna je \"vlnitá\", ...)."}]
[null,null,{"$f":"Settings!C31","v":"Stěna je krásně rovná nebo mi drobné nerovnosti nevadí."}]
[]
[null,null,null,{"$f":"Settings!D33","v":"V jakém je stávající malba stavu?"}]
[null,null,null,{"$f":"Settings!D34","v":"Malba se loupe, je oprýskaná nebo tvoří boule."}]
[null,null,null,{"$f":"Settings!D35","v":"Malba se jeví na pohled v pořádku."}]
[]
[null,null,null,null,{"$f":"Settings!E37","v":"Test: Vyzkoušejte následující testy a zaškrtněte pravdivé."}]
[null,null,null,null,{"$f":"Settings!E38","v":"Pokud po stěně přejedu silnějším tlakem rukou, barva se mi na ruku otře."}]
[null,null,null,null,{"$f":"Settings!E39","v":"Když malbu více namočím, ztmavne a vytvoří mazlavou skvrnu, po stírání palcem krouživými pohyby na palci ulpí mazlavá hmota."}]
[null,null,null,null,{"$f":"Settings!E40","v":"Po přilepení kusu lepící pásky pevně na stěnu a následném strhnutí na pásce ulpí větší částice."}]
[null,null,null,null,{"$f":"Settings!E41","v":"Po provedení testů se nestalo nic z výše uvedeného."}]
[]
[null,{"$f":"Settings!B43","v":"Tapety"}]
[null,{"$f":"Settings!B44","v":"Tapety chci strhnout."}]
[null,{"$f":"Settings!B45","v":"Pokud možno, chci je jen přetřít novou malbou."}]
[]
[null,null,{"$f":"Settings!C47","v":"Na stěně se nachází nerovnosti, které mi vadí (praskliny, prohlubně, vypoukliny, stěna je \"vlnitá\", ...)."}]
[null,null,{"$f":"Settings!C48","v":"Stěna je krásně rovná nebo mi drobné nerovnosti nevadí."}]
[]
[null,null,null,{"$f":"Settings!D50","v":"V jakém je stávající tapeta stavu?"}]
[null,null,null,{"$f":"Settings!D51","v":"Tapety se odlupují a/nebo tvoří boule."}]
[null,null,null,{"$f":"Settings!D52","v":"Tapety jsou naprosto v pořádku, nikde se neodlupují, netvoří boule, pevně drží na svém podkladu."}]
[]
[null,null,null,null,{"$f":"Settings!E54","v":"Na tapetách se žádná malba nenachází."}]
[null,null,null,null,{"$f":"Settings!E55","v":"Na tapetách se nachází malba."}]
[]
[null,null,null,null,null,{"$f":"Settings!F57","v":"Test: Vyzkoušejte následující testy a zaškrtněte pravdivé."}]
[null,null,null,null,null,{"$f":"Settings!F58","v":"Pokud po stěně přejedu silnějším tlakem rukou, barva se mi na ruku otře."}]
[null,null,null,null,null,{"$f":"Settings!F59","v":"Když malbu více namočím, ztmavne a vytvoří mazlavou skvrnu, po stírání palcem krouživými pohyby na palci ulpí mazlavá hmota."}]
[null,null,null,null,null,{"$f":"Settings!F60","v":"Po přilepení kusu lepící pásky pevně na stěnu a následném strhnutí na pásce ulpí větší částice."}]
[null,null,null,null,null,{"$f":"Settings!F61","v":"Po provedení testů se nestalo nic z výše uvedeného."}]
[]
[null,{"$f":"Settings!B63","v":"Nová omítka"}]
[null,{"$f":"Settings!B64","v":"Chci opravit omítku."},null,null,null,null,null,null,null,{"$f":"Settings!J64","v":"m2"}]
[]
[null,null,{"$f":"Settings!C66","v":"Stávající omítka je v nepoužitelném stavu, drolí se a opadává."}]
[null,null,{"$f":"Settings!C67","v":"Omítka má jen drobné nerovnosti (praskliny, prohlubně, vypoukliny, stěna je \"vlnitá\", ...)."}]
[]
[null,{"$f":"Settings!B69","v":"Chci malovat  na již hotovou novou omítku."},null,null,null,null,null,null,null,{"$f":"Settings!J69","v":"m2"}]
[]
[null,null,{"$f":"Settings!C71","v":"Omítka je oprýskaná, odlupuje se, opadává."}]
[null,null,{"$f":"Settings!C72","v":"Omítka má jen drobné nerovnosti, které mi vadí (drobné vypoukliny, či prohlubně, drobné rýhy)."}]
[null,null,{"$f":"Settings!C73","v":"Omítka je naprosto v pořádku, nikde se neodlupuje, neopadává, pevně drží na svém podkladu a nemá žádné nerovnosti, popř. mi nevadí."}]
[]
[{"$f":"Settings!A75","v":"Vyskytují se v místě nové malby plísně?"}]
[null,{"$f":"Settings!B76","v":"Ano, vyskytují v přibližné ploše."},null,null,null,{"$f":"Settings!F76","v":"V přibližné ploše"},null,null,{"$f":"Settings!I76","v":"m2"}]
[null,{"$f":"Settings!B77","v":"Ne, nevyskytují."}]
[]
[{"$f":"Settings!A79","v":"Nová malba:"}]
[{"$f":"Settings!A80","v":"Místnost: (1) …."}]
[{"$f":"Settings!A81","v":"Jakou bude mít malba podobu?"}]
[null,{"$f":"Settings!B82","v":"Chci, aby výsledný vzhled byl hladký bez jakýchkoli vzorů."}]
[null,{"$f":"Settings!B83","v":"Chci, aby výsledný vzhled byl strukturovaný (se vzorem) a proto bude pod malbou tapeta."}]
[null,null,{"$f":"Settings!C84","v":"bez"},null,{"$f":"Settings!E84","v":"m2"}]
[null,null,{"$f":"Settings!C85","v":"tapeta"},null,{"$f":"Settings!E85","v":"m2"}]
[]
[{"$f":"Settings!A87","v":"Jakou barvu?"}]
[null,{"$f":"Settings!B88","v":"Nemám žádné nároky, stačí mi běžná interiérová barva."}]
[]
[null,null,{"$f":"Settings!C90","v":"bílá"},null,{"$f":"Settings!E90","v":"m2"}]
[null,null,{"$f":"Settings!C91","v":"barevná"},null,{"$f":"Settings!E91","v":"m2"}]
[]
[null,{"$f":"Settings!B93","v":"Mám vyšší nároky na otěruodolný nebo omyvatelný povrch."}]
[]
[null,null,{"$f":"Settings!C95","v":"bílá"},null,{"$f":"Settings!E95","v":"m2"}]
[null,null,{"$f":"Settings!C96","v":"barevná"},null,{"$f":"Settings!E96","v":"m2"}]
[]
[]
[{"$f":"Settings!A99","v":"Závěr:"}]
[{"$f":"Settings!A100","v":"Na závěr už bychom Vás jen rádi požádali o e-mail, abychom Vám mohli zaslat celou kalkulaci v digitální podobě."}]
[{"$f":"Settings!A101","v":"e-mail:"}]

{"sheet":"Room10","index":15,"n_rows":101,"n_cols":10,"rows_kept":101,"cut":false,"hidden":true,"merged":[[37,4,37,12],[1,0,1,7],[16,0,16,7],[23,9,23,16],[26,1,26,7],[26,9,26,16],[27,1,27,7],[27,9,27,16],[29,2,29,7],[30,2,30,7],[32,3,32,7],[33,3,33,7],[34,3,34,7],[58,5,58,13],[38,4,38,12],[39,4,39,12],[40,4,40,12],[46,2,46,7],[47,2,47,7],[49,3,49,7],[50,3,50,7],[51,3,51,7],[53,4,53,7],[54,4,54,7],[57,5,57,13],[81,1,81,7],[59,5,59,13],[60,5,60,13],[65,2,65,7],[66,2,66,7],[68,1,68,7],[70,2,70,7],[71,2,71,7],[72,2,72,7],[75,1,75,3],[75,5,75,6],[76,1,76,3],[99,0,99,7],[100,1,100,7],[82,1,82,7],[82,9,82,16],[86,0,86,7],[86,9,86,16],[87,9,87,16],[92,9,92,16]]}
[{"$f":"Settings!A1","v":"Úvod:"}]
[{"$f":"Settings!A2","v":"Chápeme, že ne všechny práce chcete svěřit profesionálům, ať už kvůli ceně nebo z jiných důvodů, přesto vše vyplňte. Řekneme Vám, kolik by Vás práce stála od profesionálů a Vy sami se potom můžete na základě ceny rozhodnout, zda si zvolíte práci profesionála či si některou činnost zkusíte sami.\n\nRádi bychom Vás také informovali o tom, že výsledky této kalkulace předpokládají běžné bytové (i rodinné domy) podmínky, tedy pokud plánujete výmalbu atypických, sklepních, vlhkých či jinak nestandardních prostor, doporučujeme návštěvu profesionála ke konzultaci."}]
[]
[{"$f":"Settings!A4","v":"Kolik místností plánujete malovat?"}]
[]
[{"$f":"Settings!A6","v":"Základní rozměry:"}]
[{"$f":"Settings!A7","v":"Název místnosti:"}]
[]
[{"$f":"Settings!A9","v":"Jelikož malování je věc rozměrová, potřebujeme znát několik málo čísel."}]
[{"$f":"Settings!A10","v":"Jakou plochu stěn plánujete malovat (vč. otvorů)?"},null,null,null,null,null,{"$f":"Settings!G10","v":"m2"},null,null,{"$f":"Settings!J10","v":"Neodečítejte plochy otvorů jako jsou např. okna a dveře. Pozor!, ať sem nezapočtete místa, která malovat nechcete nebo nemůžete, např. za vestavěným nábytkem nebo v místě, kde máte keramické či jiné obklady a chcete je tam ponechat."}]
[{"$f":"Settings!A11","v":"Jaká je podlahová plocha místnosti?"},null,null,null,null,null,{"$f":"Settings!G11","v":"m2"},null,null,{"$f":"Settings!J11","v":"Tip: Pokud má místnost složitější tvar, zkuste si jej rozdělit na pomyslné obdélníky a ty vzájemně odečtěte či přičtěte."}]
[{"$f":"Settings!A12","v":"Jaká je plocha otvorů a jiných nemalovaných ploch?"},null,null,null,null,null,{"$f":"Settings!G12","v":"m2"},null,null,{"$f":"Settings!J12","v":"Okna, dveře, dvířka k revizní šachtě apod. plochy."}]
[{"$f":"Settings!A13","v":"Jaká je výška místnosti?"},null,null,null,null,null,{"$f":"Settings!G13","v":"m"},null,null,{"$f":"Settings!J13","v":"Ostatní potřebné míry dopočteme za Vás."}]
[]
[{"$f":"Settings!A15","v":"Podklad:"}]
[{"$f":"Settings!A16","v":"Místnost: (1) …."}]
[{"$f":"Settings!A17","v":"Abychom Vám mohli poradit s postupem, potřebujeme vědět, jaký je stávající podklad v místě plánované malby."}]
[{"$f":"Settings!A18","v":"V místě plánované malby se právě nachází:"}]
[null,{"$f":"Settings!B19","v":"keramický nebo jiný obklad"},null,null,null,{"$f":"Settings!F19","v":"m2"}]
[null,{"$f":"Settings!B20","v":"stará malba"},null,null,null,{"$f":"Settings!F20","v":"m2"}]
[null,{"$f":"Settings!B21","v":"tapety"},null,null,null,{"$f":"Settings!F21","v":"m2"}]
[null,{"$f":"Settings!B22","v":"nová omítka"},null,null,null,{"$f":"Settings!F22","v":"m2"}]
[null,{"$f":"Settings!B23","v":"nová SDK deska"},null,null,null,"m2"]
[null,{"$f":"Settings!B24","v":"hrubá konstrukce"},null,null,null,{"$f":"Settings!F24","v":"m2"}]
[]
[null,{"$f":"Settings!B26","v":"Malba"}]
[null,{"$f":"Settings!B27","v":"Chci malbu oškrábat. (Nebo vím, že stávající malba je vápenná/latexová/klihová, a tudíž se musí oškrábat.)"},null,null,null,null,null,null,null,{"$f":"Settings!J27","v":"Vypsané barvy nejsou jako podklad pro novou barvu vhodné, později by docházelo k oprýskání a loupání nové malby."}]
[null,{"$f":"Settings!B28","v":"Pokud možno chci ji jen přetřít novou malbou."},null,null,null,null,null,null,null,{"$f":"Settings!J28","v":"Pokud se malba nachází ve vhodném stavu, je možné provést novou malbu jen jako další vrstvu bez nutnosti škrábání. Poradíme Vám, zda je to u Vás možné."}]
[]
[null,null,{"$f":"Settings!C30","v":"Na stěně se nachází nerovnosti, které mi vadí (praskliny, prohlubně, vypoukliny, stěna je \"vlnitá\", ...)."}]
[null,null,{"$f":"Settings!C31","v":"Stěna je krásně rovná nebo mi drobné nerovnosti nevadí."}]
[]
[null,null,null,{"$f":"Settings!D33","v":"V jakém je stávající malba stavu?"}]
[null,null,null,{"$f":"Settings!D34","v":"Malba se loupe, je oprýskaná nebo tvoří boule."}]
[null,null,null,{"$f":"Settings!D35","v":"Malba se jeví na pohled v pořádku."}]
[]
[null,null,null,null,{"$f":"Settings!E37","v":"Test: Vyzkoušejte následující testy a zaškrtněte pravdivé."}]
[null,null,null,null,{"$f":"Settings!E38","v":"Pokud po stěně přejedu silnějším tlakem rukou, barva se mi na ruku otře."}]
[null,null,null,null,{"$f":"Settings!E39","v":"Když malbu více namočím, ztmavne a vytvoří mazlavou skvrnu, po stírání palcem krouživými pohyby na palci ulpí mazlavá hmota."}]
[null,null,null,null,{"$f":"Settings!E40","v":"Po přilepení kusu lepící pásky pevně na stěnu a následném strhnutí na pásce ulpí větší částice."}]
[null,null,null,null,{"$f":"Settings!E41","v":"Po provedení testů se nestalo nic z výše uvedeného."}]
[]
[null,{"$f":"Settings!B43","v":"Tapety"}]
[null,{"$f":"Settings!B44","v":"Tapety chci strhnout."}]
[null,{"$f":"Settings!B45","v":"Pokud možno, chci je jen přetřít novou malbou."}]
[]
[null,null,{"$f":"Settings!C47","v":"Na stěně se nachází nerovnosti, které mi vadí (praskliny, prohlubně, vypoukliny, stěna je \"vlnitá\", ...)."}]
[null,null,{"$f":"Settings!C48","v":"Stěna je krásně rovná nebo mi drobné nerovnosti nevadí."}]
[]
[null,null,null,{"$f":"Settings!D50","v":"V jakém je stávající tapeta stavu?"}]
[null,null,null,{"$f":"Settings!D51","v":"Tapety se odlupují a/nebo tvoří boule."}]
[null,null,null,{"$f":"Settings!D52","v":"Tapety jsou naprosto v pořádku, nikde se neodlupují, netvoří boule, pevně drží na svém podkladu."}]
[]
[null,null,null,null,{"$f":"Settings!E54","v":"Na tapetách se žádná malba nenachází."}]
[null,null,null,null,{"$f":"Settings!E55","v":"Na tapetách se nachází malba."}]
[]
[null,null,null,null,null,{"$f":"Settings!F57","v":"Test: Vyzkoušejte následující testy a zaškrtněte pravdivé."}]
[null,null,null,null,null,{"$f":"Settings!F58","v":"Pokud po stěně přejedu silnějším tlakem rukou, barva se mi na ruku otře."}]
[null,null,null,null,null,{"$f":"Settings!F59","v":"Když malbu více namočím, ztmavne a vytvoří mazlavou skvrnu, po stírání palcem krouživými pohyby na palci ulpí mazlavá hmota."}]
[null,null,null,null,null,{"$f":"Settings!F60","v":"Po přilepení kusu lepící pásky pevně na stěnu a následném strhnutí na pásce ulpí větší částice."}]
[null,null,null,null,null,{"$f":"Settings!F61","v":"Po provedení testů se nestalo nic z výše uvedeného."}]
[]
[null,{"$f":"Settings!B63","v":"Nová omítka"}]
[null,{"$f":"Settings!B64","v":"Chci opravit omítku."},null,null,null,null,null,null,null,{"$f":"Settings!J64","v":"m2"}]
[]
[null,null,{"$f":"Settings!C66","v":"Stávající omítka je v nepoužitelném stavu, drolí se a opadává."}]
[null,null,{"$f":"Settings!C67","v":"Omítka má jen drobné nerovnosti (praskliny, prohlubně, vypoukliny, stěna je \"vlnitá\", ...)."}]
[]
[null,{"$f":"Settings!B69","v":"Chci malovat  na již hotovou novou omítku."},null,null,null,null,null,null,null,{"$f":"Settings!J69","v":"m2"}]
[]
[null,null,{"$f":"Settings!C71","v":"Omítka je oprýskaná, odlupuje se, opadává."}]
[null,null,{"$f":"Settings!C72","v":"Omítka má jen drobné nerovnosti, které mi vadí (drobné vypoukliny, či prohlubně, drobné rýhy)."}]
[null,null,{"$f":"Settings!C73","v":"Omítka je naprosto v pořádku, nikde se neodlupuje, neopadává, pevně drží na svém podkladu a nemá žádné nerovnosti, popř. mi nevadí."}]
[]
[{"$f":"Settings!A75","v":"Vyskytují se v místě nové malby plísně?"}]
[null,{"$f":"Settings!B76","v":"Ano, vyskytují v přibližné ploše."},null,null,null,{"$f":"Settings!F76","v":"V přibližné ploše"},null,null,{"$f":"Settings!I76","v":"m2"}]
[null,{"$f":"Settings!B77","v":"Ne, nevyskytují."}]
[]
[{"$f":"Settings!A79","v":"Nová malba:"}]
[{"$f":"Settings!A80","v":"Místnost: (1) …."}]
[{"$f":"Settings!A81","v":"Jakou bude mít malba podobu?"}]
[null,{"$f":"Settings!B82","v":"Chci, aby výsledný vzhled byl hladký bez jakýchkoli vzorů."}]
[null,{"$f":"Settings!B83","v":"Chci, aby výsledný vzhled byl strukturovaný (se vzorem) a proto bude pod malbou tapeta."}]
[null,null,{"$f":"Settings!C84","v":"bez"},null,{"$f":"Settings!E84","v":"m2"}]
[null,null,{"$f":"Settings!C85","v":"tapeta"},null,{"$f":"Settings!E85","v":"m2"}]
[]
[{"$f":"Settings!A87","v":"Jakou barvu?"}]
[null,{"$f":"Settings!B88","v":"Nemám žádné nároky, stačí mi běžná interiérová barva."}]
[]
[null,null,{"$f":"Settings!C90","v":"bílá"},null,{"$f":"Settings!E90","v":"m2"}]
[null,null,{"$f":"Settings!C91","v":"barevná"},null,{"$f":"Settings!E91","v":"m2"}]
[]
[null,{"$f":"Settings!B93","v":"Mám vyšší nároky na otěruodolný nebo omyvatelný povrch."}]
[]
[null,null,{"$f":"Settings!C95","v":"bílá"},null,{"$f":"Settings!E95","v":"m2"}]
[null,null,{"$f":"Settings!C96","v":"barevná"},null,{"$f":"Settings!E96","v":"m2"}]
[]
[]
[{"$f":"Settings!A99","v":"Závěr:"}]
[{"$f":"Settings!A100","v":"Na závěr už bychom Vás jen rádi požádali o e-mail, abychom Vám mohli zaslat celou kalkulaci v digitální podobě."}]
[{"$f":"Settings!A101","v":"e-mail:"}]